{"text_format":"1","workbook":"xlsx","n_sheets":17,"sheets":["Início","Introdução","Instruções de uso","Síntese das emissões","Fatores de emissão","listas de formulários","Fatores variáveis","Equipe","Algodão","Arroz","Cana-de-açúcar","Feijão","Milho","Pecuária e pastagem","Soja","Trigo","Compra de energia elétrica"],"not_rendered":{"charts":0,"images":4,"macros":1,"external_links":0,"defined_names":832,"comments":0,"pivot_tables":0},"unopened":[],"bounds":{"document_bytes":16777216,"sheet_cells":100000,"rows_first":2000,"rows_last":500,"rows_between":2000,"halvings":0,"cell_chars":16384,"cell_head_chars":4096},"cells_cut":0,"cells_raw":0,"read":"whole","date_system":"1900"}

{"sheet":"Início","index":0,"n_rows":24,"n_cols":2,"rows_kept":24,"cut":false,"hidden":false,"merged":[[23,1,23,8],[19,2,19,5],[20,2,20,5],[13,1,13,5],[14,2,14,5],[15,2,15,5],[17,2,17,5],[18,2,18,5]]}
[]
[]
[]
[]
[]
[]
[]
[]
[]
[]
[]
[]
[]
[null,"Cadastro de usuário"]
[null,"Nome da organização"]
[null,"Endereço"]
[]
[null,"Nome do responsável"]
[null,"Contato"]
[null,"Data do inventário"]
[null,"Ano-safra"]
[]
[null,"Atenção:"]
[null,"Antes de utilizar a ferramenta, leia as orientações de uso na tela 'Instruções'."]

{"sheet":"Introdução","index":1,"n_rows":68,"n_cols":4,"rows_kept":68,"cut":false,"hidden":false,"merged":[[47,2,47,5],[17,2,17,5],[18,2,18,5],[19,2,19,5],[30,2,30,5],[46,2,46,5],[67,3,67,5],[53,2,53,5],[55,3,55,5],[57,3,57,5],[59,3,59,5],[61,2,61,5],[63,3,63,5],[65,3,65,5]]}
[]
[]
[]
[]
[]
[]
[]
[]
[]
[]
[]
[]
[]
[]
[]
[null,null,"O GHG Protocol Agrícola"]
[]
[null,null,"O World Resources Institute (WRI) tem criado, em parceria com o World Business Council for Sustainable Development (WBCSD), protocolos internacionalmente aceitos para o desenvolvimento de inventários corporativos de gases de efeito estufa (GEE) há mais de 13 anos. Esses padrões, denominados genericamente de GHG Protocol, definem as melhores práticas internacionalmente aceitas para o desenvolvimento de inventários de GEE corporativos, de projetos ou de produtos. Para mais detalhes acesse: http://www.ghgprotocol.org/"]
[null,null,"Ao longo dos últimos anos, a demanda por diretrizes técnicas específicas para o setor agrícola mundial cresceu consideravelmente. No contexto brasileiro, as emissões estimadas dos setores agrícolas e de mudanças no uso do solo contribuem, respectivamente, com 35% e 22% das emissões nacionais (Segundo as Estimativas Anuais de emissões de gases e efeito estufa no Brasil, MCTI 2013. Disponível no menu de links acima). Por estes motivos, o WRI iniciou em 2012 um projeto de 2 anos para criar novos recursos técnicos que fornecem às empresas e legisladores do Brasil ferramentas para mensurar e gerir de forma mais efetiva emissões agrícolas, o Projeto GHG Protocol Agrícola. No período compreendido entre 2012 e 2013, o projeto gerou dois recursos técnicos, as Diretrizes Agrícolas Brasileiras (Disponível no menu de links acima) e a presente Ferramenta de Cálculo do GHG Protocol Agrícola."]
[null,null,"Combinados, estes recursos auxiliam os produtores, assim como outros atores das cadeias de valor do setor, a:"]
[null,null,null," - Incluir o reporte e a mitigação de emissões de GEE não mecânicas em suas estratégias de produção e planejamento anual;"]
[null,null,null," - Identificar oportunidades de redução destas emissões de GEE;"]
[null,null,null," - Rastrear progresso em direção de metas de redução;"]
[null,null,null," - Comunicar os resultados aos investidores e aos consumidores finais; e"]
[null,null,null," - Responder às demandas nacionais e internacionais por produtos menos intensivos em carbono."]
[]
[]
[]
[null,null,"A Ferramenta de Cálculo"]
[]
[null,null,"A Ferramenta de Cálculo do GHG Protocol Agrícola (referenciada também como “Ferramenta de Cálculo GHGPAg” ou apenas “Ferramenta”) é um produto proveniente de uma parceria entre WRI, Embrapa (Empresa Brasileira de Pesquisa Agropecuária) e Unicamp (Universidade Estadual de Campinas), que permite a contabilização das emissões de GEE utilizando metodologias específicas para a realidade nacional e focadas em fontes de emissão não mecânicas. A ferramenta é dividida em tipos de atividades agrícolas (soja, milho, algodão, trigo, feijão, arroz, cana-de-açúcar, pecuária e pastagem), sendo que as fontes de emissão consideradas pela Ferramenta em cada uma delas são:"]
[null,null,null," - Adubação orgânica"]
[null,null,null," - Aplicação de calcário"]
[null,null,null," - Aplicação de fertilizante nitrogenado sintético"]
[null,null,null," - Aplicação de ureia"]
[null,null,null," - Consumo de energia elétrica"]
[null,null,null," - Cultivo de arroz"]
[null,null,null," - Dejetos de animais em pastagens"]
[null,null,null," - Fermentação entérica"]
[null,null,null," - Fontes secundárias (deposição atmosférica e lixiviação ou escoamento superficial)"]
[null,null,null," - Manejo de dejetos"]
[null,null,null," - Manejo de dejetos de animais (exceto animais em pastagens)"]
[null,null,null," - Mudança de uso do solo"]
[null,null,null," - Operações mecanizadas"]
[null,null,null," - Queima de resíduos vegetais"]
[null,null,null," - Resíduos das culturas "]
[null,null,"A alocação de emissões realizada pela Ferramenta de Cálculo GHGPAg considera o produtor como seu público-alvo. Nos casos em que outros atores de cadeias agrícolas como, por exemplo, compradores, processadores, varejistas e consumidores finais, utilizarem os resultados fornecidos pela Ferramenta, é necessário um processo de realocação das emissões no escopo pertinente (ver item abaixo para mais detalhes sobre o reporte das emissões nos escopos do GHG Protocol)."]
[null,null,"É imprescindível que a Ferramenta de Cálculo GHGPAg e as Diretrizes Agrícolas Brasileiras sejam utilizadas em conjunto para a elaboração de um inventário de GEE agrícola, garantindo a consistência dos resultados de emissões de GEE com as diretrizes propostas pelo Projeto GHG Protocol Agrícola."]
[]
[]
[]
[null,null,"Reporte das emissões"]
[]
[null,null,"Segundo as diretrizes do GHG Protocol, o reporte das emissões de GEE são classificados de acordo com o grau de responsabilidade ou controle da organização inventariante perante a fonte das emissões – fontes diretas (fontes que pertencem ou são controladas pela organização inventariante) e fontes indiretas (fontes que pertencem ou são controladas por outra organização, mas são resultantes das atividades da organização inventariante). Este grau de responsabilidade é representado pelos Escopos 1, 2 e 3, cuja definição segue abaixo. Para facilitar a interpretação e evitar equívocos os escopos são marcados por diferentes cores na Ferramenta, conforme os quadros abaixo (Escopo1 = azul; Escopo 2 = laranja; Escopo 3 = amarelo e Emissões Biogênicas = verde):"]
[]
[null,null,null,"Escopo 1: São emissões diretas advindas de fontes da organização inventariante ou controladas por ela."]
[]
[null,null,null,"Escopo 2: Emissões indiretas provenientes da aquisição de energia elétrica e térmica que é consumida pela organização inventariante. Nesta categoria são incluídas as emissões de GEE relativas à geração de energia elétrica e térmica comprada pela organização."]
[]
[null,null,null,"Escopo 3: Todas as outras emissões indiretas, não relatadas no Escopo 2. As emissões do Escopo 3 são uma consequência das atividades da empresa, mas ocorrem em fontes que não pertencem ou não são controladas pela oraganização inventariante, geralmente relacionadas à cadeia de valor desta.  "]
[]
[null,null,"Além das emissões reportadas dentro dos Escopos, também são reportadas emissões biogênicas, sequestros de carbono, emissões líquidas e outros gases, conforme descritas abaixo: "]
[]
[null,null,null,"Emissões biogênicas: Emissões de CO2 que provém da queima de biomassa (material biológico feito de carbono, hidrogênio e oxigênio). Queimar biomassa resulta em emissões consideradas neutras em termos de impacto climático, pois o CO2 é gerado através de um ciclo biológico curto (e não um ciclo geológico, como no caso do CO2 de origem fóssil). A queima de biomassa de vegetação nativa advinda de mudanças no uso da terra (ou seja, de desmatamento), não é considerada neutra em termos de impacto climático e deve ser reportada dentro dos escopos 1 ou 3.\nRemoções biogênicas: A fixação biológica do carbono ocorre através da fotossíntese e, quando realizada, reduz temporariamente a concentração de CO2 na atmosfera. Dessa forma, o incremento de carbono em tecido vegetal deve ser contabilizado como remoção biogênica de CO2. Exemplos: vegetação plantada (silvicultura com objetivo comercial), aumento do estoque de carbono no solo, culturas sazonais (grãos, cana-de-açúcar), adubação verde, mudanças no uso do solo que aumentem o estoque de carbono, entre outros."]
[]
[null,null,null,"Mudança de uso e ocupação do solo: Exemplo: pastagem, agricultura e área degradada. É considerado o carbono presente no solo e na biomassa (exceto vegetação nativa e outros usos). "]
[]
[null,null,null,"Emissões líquidas: Diferença entre as emissões totais e o sequestro de carbono, de acordo com a fórmula abaixo:"]

{"sheet":"Instruções de uso","index":2,"n_rows":45,"n_cols":2,"rows_kept":45,"cut":false,"hidden":false,"merged":[[13,1,13,20],[29,1,29,20],[34,1,34,20],[40,1,40,20],[19,1,19,20]]}
[]
[]
[]
[]
[]
[]
[]
[]
[]
[]
[]
[]
[]
[null,"Instruções gerais"]
[null,"(A) As estimativas de emissões contempladas nesta ferramenta estão divididas por cultura agrícola."]
[null,"(B) Os fatores de emissão utilizados podem ser consultados nas abas 'Fatores de emissão' e 'Fatores variáveis'. A alteração destes valores também modificará o cálculo das emissões."]
[null,"(C) Na tela 'Introdução' o usuário encontra a descrição da ferramenta, os processos por ela contemplados e a descrição dos escopos em que as emissões são divididas."]
[null,"(D) O referencial teórico utilizado nas estimavias das emissões de GEE na agricultura pode ser acessado pelo botão 'Metodologia', presente no menu de navegação."]
[]
[null,"Compatibilidade e segurança"]
[null,"ATENÇÃO"]
[null,"(A) Esta ferramenta foi desenvolvida exclusivamente para Microsoft Excel (Versão 2007 ou superior) em ambiente Windows. Seu uso em outros sistemas operacionais (Ex: Mac OS, Linux) pode causar"]
[null," falhas na execução de algumas funções e estimar as emissões incorretamente."]
[null,"(B) Algumas rotinas desta ferramenta estão implementadas em macros (bloqueadas pelo Microsoft Excel automaticamente), portanto as configurações de segurança devem permitir sua execução."]
[null,"Para alterar o controle de segurança de macros, siga um dos seguintes procedimentos:"]
[null,"(a) 'Opções > Central de confiabilidade do Excel > Configurações da central de confiabilidade > Configurações de macro' e marque a opção 'Habilitar todas as macros'."]
[null,"(b) 'Opções > Central de confiabilidade do Excel > Configurações da central de confiabilidade > Locais confiáveis' e adicione a pasta de instalação da ferramenta."]
[null,"Após executar (a) ou (b), feche todos os programas do Microsoft Office (Word, Excel, Power Point, etc.) e abra a ferramenta novamente para que as alterações tenham efeito."]
[]
[null,"Menus e navegação"]
[null,"(A) A navegação do usuário pela ferramenta pode ser feita pelo menu no topo das telas e pelo menu de abas do Excel."]
[null,"(B) Algumas telas dispõe de um menu de opções com funcionalidades exclusivas."]
[null,"(C) Na tela 'Síntese das emissões', item 5, o usuário pode acessar os detalhes das emissões por cultura agrícola acionando o botão '+' à esquerda do nome de cada cultura."]
[]
[null,"Preenchimento de formulários"]
[null,"(A) Nos formulários, as informações devem ser inseridas apenas nas células PREENCHIDAS COM ESTA COR."]
[null,"(B) Nos formulários de culturas agrícolas, as colunas 'Detalhes' e 'Unidade' são apenas informativas."]
[null,"(C) No formulário 'Compra de energia elétrica', os campos 'Data inicial' e 'Data final' (Tabela 1) são preenchidos automaticamente pelo sistema e não devem ser alterados pelo usuário."]
[null,"O usuário deve informar o consumo total de energia elétrica no período estipulado e o ano base para o cálculo que deve ser, preferencialmente, o ano em que o sistema produtivo permaneceu mais tempo ativo."]
[]
[null,"Salvar, recuperar e imprimir inventários"]
[null,"(A) Para salvar, recuperar e imprimir inventários, o usuário deve primeiro preencher os dados de identificação localizados na tela 'Início'. É aconselhável que a ferramenta só seja utilizada após este procedimento."]
[null,"(B) A ferramenta salva inventários no computador e permite a recuperação destes utilizando os dados de identificação do usuário."]
[null,"(C) A verificação é feita pelos campos 'Nome da organização', 'Nome do usuário' e 'Ano-safra'."]
[null,"(D) A impressão do inventário das emissões é feita no formato 'PDF'."]

{"sheet":"Síntese das emissões","index":3,"n_rows":531,"n_cols":9,"rows_kept":531,"cut":false,"hidden":false,"merged":[[516,1,516,2],[517,1,517,2],[518,1,518,2],[527,1,527,2],[377,1,377,2],[368,1,368,2],[263,1,263,2],[187,1,187,7],[17,5,17,7],[307,4,307,6],[307,7,308,7],[308,1,308,2],[319,1,319,2],[320,1,320,2],[454,1,454,2],[458,4,458,6],[460,1,460,2],[459,1,459,2],[470,1,470,2],[315,1,315,2],[317,1,317,4],[269,1,269,4],[312,1,312,7],[306,1,306,7],[17,8,18,8],[41,1,41,4],[477,1,477,4],[61,1,61,2],[60,4,60,6],[51,1,51,4],[47,1,47,4],[400,1,400,4],[391,2,391,3],[392,2,392,3],[393,2,393,3],[394,2,394,3],[395,2,395,3],[383,2,383,3],[384,2,384,3],[385,2,385,3],[387,1,387,4],[398,2,398,3],[397,1,397,4],[388,2,388,3],[386,2,386,3],[396,2,396,3],[390,1,390,4],[440,1,440,2],[466,1,466,2],[463,1,463,7],[275,1,275,4],[279,1,279,4],[283,1,283,4],[468,1,468,4],[313,4,313,6],[313,7,314,7],[15,1,15,8],[27,1,27,8],[33,1,33,8],[29,1,29,2],[17,2,17,4],[461,1,461,2],[288,4,288,6],[289,1,289,2],[23,1,23,8],[35,1,35,3],[25,1,25,3],[287,1,287,7],[420,1,420,4],[441,1,448,1],[452,1,452,7],[453,4,453,6],[37,1,37,8],[439,7,440,7],[453,7,454,7],[471,1,471,2],[458,7,459,7],[438,1,438,7],[439,4,439,6],[426,1,426,4],[13,1,13,11],[418,1,418,11],[267,1,267,11],[39,1,39,11],[31,1,31,2],[59,1,59,7],[86,1,86,2],[55,1,55,4],[302,7,303,7],[60,7,61,7],[73,1,73,7],[74,4,74,6],[74,7,75,7],[174,7,175,7],[79,4,79,6],[79,7,80,7],[475,1,475,11],[96,1,96,11],[210,1,210,11],[153,1,153,11],[324,1,324,11],[193,4,193,6],[193,7,194,7],[194,1,194,2],[195,1,195,2],[196,1,196,2],[205,1,205,2],[201,1,201,2],[117,7,118,7],[144,1,144,2],[176,1,183,1],[303,1,303,2],[301,1,301,7],[302,4,302,6],[290,1,297,1],[288,7,289,7],[309,1,309,2],[310,1,310,2],[261,1,261,3],[174,1,174,3],[528,1,528,2],[104,1,104,4],[108,1,108,4],[112,1,112,4],[98,1,98,4],[117,1,117,3],[142,7,143,7],[143,1,143,2],[408,1,408,5],[495,1,495,7],[116,1,116,7],[230,1,230,7],[173,1,173,7],[344,1,344,7],[362,1,362,2],[360,1,360,7],[361,4,361,6],[361,7,362,7],[206,1,206,2],[347,1,356,1],[378,1,378,2],[366,4,366,6],[366,7,367,7],[521,1,521,3],[525,1,525,4],[256,7,257,7],[257,1,257,2],[258,1,258,2],[382,2,382,3],[326,1,326,4],[62,1,69,1],[260,1,260,4],[255,1,255,7],[169,1,169,4],[147,1,147,3],[231,1,231,3],[245,1,245,3],[231,7,232,7],[218,1,218,4],[222,1,222,4],[226,1,226,4],[212,1,212,4],[155,1,155,4],[375,1,375,4],[361,1,361,3],[203,1,203,4],[204,1,204,3],[370,1,370,7],[515,7,516,7],[381,2,381,3],[75,1,75,2],[430,1,430,4],[464,4,464,6],[464,7,465,7],[465,1,465,2],[434,1,434,4],[457,1,457,7],[380,1,380,4],[149,1,149,2],[244,1,244,7],[245,4,245,6],[245,7,246,7],[246,1,246,2],[233,1,240,1],[232,1,232,2],[231,4,231,6],[146,1,146,4],[509,1,509,7],[510,4,510,6],[510,7,511,7],[132,1,132,2],[314,1,314,2],[491,1,491,4],[521,4,521,6],[521,7,522,7],[522,1,522,2],[87,1,87,2],[89,1,89,4],[483,1,483,4],[487,1,487,4],[498,1,505,1],[497,1,497,2],[496,7,497,7],[496,4,496,6],[91,1,91,2],[92,1,92,2],[514,1,514,7],[520,1,520,7],[511,1,511,2],[515,4,515,6],[138,1,138,2],[139,1,139,2],[365,1,365,7],[340,1,340,4],[250,1,250,3],[256,1,256,3],[80,1,80,2],[81,1,81,2],[82,1,82,2],[148,1,148,2],[130,1,130,7],[131,4,131,6],[142,4,142,6],[85,7,86,7],[367,1,367,2],[174,4,174,6],[175,1,175,2],[346,1,346,2],[131,1,131,3],[136,1,136,3],[142,1,142,3],[193,1,193,3],[199,1,199,3],[200,1,200,2],[523,1,523,2],[526,1,526,3],[118,1,118,2],[117,4,117,6],[136,4,136,6],[199,4,199,6],[198,1,198,7],[192,1,192,7],[135,1,135,7],[131,7,132,7],[136,7,137,7],[137,1,137,2],[188,4,188,6],[188,7,189,7],[189,1,189,2],[345,7,346,7],[141,1,141,7],[373,1,373,2],[345,1,345,3],[249,1,249,7],[161,1,161,4],[165,1,165,4],[199,7,200,7],[188,1,188,3],[371,4,371,6],[371,7,372,7],[372,1,372,2],[345,4,345,6],[250,4,250,6],[250,7,251,7],[251,1,251,2],[252,1,252,2],[253,1,253,2],[262,1,262,2],[256,4,256,6],[366,1,366,3],[371,1,371,3],[336,1,336,4],[60,1,60,3],[74,1,74,3],[79,1,79,3],[85,1,85,3],[90,1,90,3],[496,1,496,3],[510,1,510,3],[515,1,515,3],[332,1,332,4],[119,1,126,1],[84,1,84,7],[78,1,78,7],[85,4,85,6],[376,1,376,3],[439,1,439,3],[453,1,453,3],[458,1,458,3],[464,1,464,3],[469,1,469,3],[288,1,288,3],[302,1,302,3],[307,1,307,3],[313,1,313,3],[318,1,318,3]]}
[]
[]
[]
[]
[]
[]
[]
[]
[]
[]
[]
[]
[]
[null,"Síntese das emissões e remoções"]
[]
[null,"1. Emissões por escopo"]
[]
[null,null,"GEE (tonelada)",null,null,"CO2 eq. (tonelada)",null,null,"Total\n(tonelada de CO2 eq.)"]
[null,"Escopo","CO2","N2O","CH4","CO2","N2O","CH4"]
[null,"Escopo 1",{"$f":"SUM(E442:E451,E291:E300,E63:E72,E499:E508,E120:E129,E234:E243,E177:E186,E348:E359)","v":0},{"$f":"SUM(F442:F451,F291:F300,F63:F72,F499:F508,F120:F129,F234:F243,F177:F186,F348:F359)","v":0},{"$f":"SUM(G442:G451,G291:G300,G63:G72,G499:G508,G120:G129,G234:G243,G177:G186,G348:G359)","v":0},{"$f":"IF(ISERROR(C20*pag_co2),0,C20*pag_co2)","v":0},{"$f":"IF(ISERROR(D20*pag_n2o),0,D20*pag_n2o)","v":0},{"$f":"IF(ISERROR(E20*pag_ch4),0,E20*pag_ch4)","v":0},{"$f":"IF(ISERROR(SUM(F20:H20)),0,SUM(F20:H20))","v":0}]
[null,"Escopo 2",{"$f":"SUM(C424,C273,C45,C481,C102,C216,C159,C330,)","v":0},null,null,{"$f":"IF(ISERROR(C21*pag_co2),0,C21*pag_co2)","v":0},null,null,{"$f":"IF(ISERROR(SUM(F21:H21)),0,SUM(F21:H21))","v":0}]
[null,"Escopo 3",{"$f":"SUM(E456,E305,E77,E513,E134,E248,E191,E364)","v":0},{"$f":"SUM(F456,F305,F77,F513,F134,F248,F191,F364)","v":0},{"$f":"SUM(G456,G305,G77,G513,G134,G248,G191,G364)","v":0},{"$f":"IF(ISERROR(C22*pag_co2),0,C22*pag_co2)","v":0},{"$f":"IF(ISERROR(D22*pag_n2o),0,D22*pag_n2o)","v":0},{"$f":"IF(ISERROR(E22*pag_ch4),0,E22*pag_ch4)","v":0},{"$f":"IF(ISERROR(SUM(F22:H22)),0,SUM(F22:H22))","v":0}]
[]
[null,"2. Emissões e remoções de uso e ocupação do solo (tonelada de CO2 equivalente)"]
[]
[null,"Mudança de uso e ocupação do solo",null,null,{"$f":"SUM(C437,C286,C58,C494,C115,C229,C172,C343)","v":0}]
[]
[null,"3. Emissões e remoções por processos biogênicos (tonelada de CO2 equivalente)"]
[]
[null,"Emissão biogênica",null,null,{"$f":"SUM(C429,C278,C50,C486,C107,C221,C164,C335)","v":0}]
[]
[null,"Remoção biogênica",null,null,{"$f":"SUM(C433,C282,C54,C490,C111,C225,C168,C339)","v":0}]
[]
[null,"4. Indicador de eficiência (tonelada de CO2 equivalente)"]
[]
[null,"Escopo 1 + Escopo 2 ± Processos biogênicos ± Mudança de uso e ocupação do solo",null,null,{"$f":"SUM(I20,I21,E26,E30,E32*-1)","v":0}]
[]
[null,"5. Emissões por atividade agrícola"]
[]
[null,"Algodão"]
[]
[null,"Tabela 1. Emissões por escopo."]
[null,null,"Total\n(tonelada de CO2 eq.)","Por área cultivada\n(tonelada CO2 eq./hectare)","Por tonelada produzida\n(tonelada CO2 eq./tonelada)"]
[null,"Escopo 1",{"$f":"SUM(H63:H72)","v":0},{"$f":"IF(ISERROR(C44/algodao_areacultivada),0,C44/algodao_areacultivada)","v":0},{"$f":"IF(ISERROR(C44/(algodao_produtividademedia*algodao_areacultivada)),0,C44/(algodao_produtividademedia*algodao_areacultivada))","v":0}]
[null,"Escopo 2",{"$f":"algodao_consumoenergia","v":0},{"$f":"IF(ISERROR(C45/algodao_areacultivada),0,C45/algodao_areacultivada)","v":0},{"$f":"IF(ISERROR(C45/(algodao_produtividademedia*algodao_areacultivada)),0,C45/(algodao_produtividademedia*algodao_areacultivada))","v":0}]
[null,"Escopo 3",{"$f":"H77","v":0},{"$f":"IF(ISERROR(C46/algodao_areacultivada),0,C46/algodao_areacultivada)","v":0},{"$f":"IF(ISERROR(C46/(algodao_produtividademedia*algodao_areacultivada)),0,C46/(algodao_produtividademedia*algodao_areacultivada))","v":0}]
[]
[null,"Tabela 2.1. Emissões por processos biogênicos."]
[null,null,"Total\n(tonelada de CO2 eq.)","Por área cultivada\n(tonelada CO2 eq./hectare)","Por tonelada produzida\n(tonelada CO2 eq./tonelada)"]
[null,"Processos biogênicos",{"$f":"SUM(H82:H83)","v":0},{"$f":"IF(ISERROR(C50/algodao_areacultivada),0,C50/algodao_areacultivada)","v":0},{"$f":"IF(ISERROR(C50/(algodao_produtividademedia*algodao_areacultivada)),0,C50/(algodao_produtividademedia*algodao_areacultivada))","v":0}]
[]
[null,"Tabela 2.2. Remoções por processos biogênicos."]
[null,null,"Total\n(tonelada de CO2 eq.)","Por área cultivada\n(tonelada CO2 eq./hectare)","Por tonelada produzida\n(tonelada CO2 eq./tonelada)"]
[null,"Processos biogênicos",{"$f":"H88","v":0},{"$f":"IF(ISERROR(C54/algodao_areacultivada),0,C54/algodao_areacultivada)","v":0},{"$f":"IF(ISERROR(C54/(algodao_produtividademedia*algodao_areacultivada)),0,C54/(algodao_produtividademedia*algodao_areacultivada))","v":0}]
[]
[null,"Tabela 3. Emissões/remoções por mudança de uso e ocupação do solo."]
[null,null,"Total\n(tonelada de CO2 eq.)","Por área cultivada\n(tonelada CO2 eq./hectare)","Por tonelada produzida\n(tonelada CO2 eq./tonelada)"]
[null,"Mudança de uso e ocupação do solo",{"$f":"E93","v":0},{"$f":"IF(ISERROR(C58/algodao_areacultivada),0,C58/algodao_areacultivada)","v":0},{"$f":"IF(ISERROR(C58/(algodao_produtividademedia*algodao_areacultivada)),0,C58/(algodao_produtividademedia*algodao_areacultivada))","v":0}]
[]
[null,"Tabela 4. Escopo 1."]
[null,null,null,null,"Emissões (tonelada)",null,null,"Total\n(tonelada de CO2 eq.)"]
[null,"Fonte",null,"Detalhes","CO2","N2O","CH4"]
[null,"Fontes não-mecânicas","Aplicação de uréia","-",{"$f":"IF(ISERROR((c_co2_ureia*algodao_aplicacaoureia*algodao_areacultivada)/1000),0,(c_co2_ureia*algodao_aplicacaoureia*algodao_areacultivada)/1000)","v":0},{"$f":"IF(ISERROR((c_n2o_nitrogenioureia*((algodao_aplicacaoureia*c_ureia_teornitrogenio)/100)*algodao_areacultivada)/1000),0,(c_n2o_nitrogenioureia*((algodao_aplicacaoureia*c_ureia_teornitrogenio)/100)*algodao_areacultivada)/1000)","v":0},null,{"$f":"SUM(E63,F63*pag_n2o,G63*pag_ch4)","v":0}]
[null,null,"Calagem e gessagem","-",{"$f":"SUM(IF(ISERROR(algodao_calcariocalcitico*c_co2_calcariocalcitico*algodao_areacultivada/1000),0,algodao_calcariocalcitico*c_co2_calcariocalcitico*algodao_areacultivada/1000),IF(ISERROR(algodao_calcariodolomitico*c_co2_calcariodolomitico*algodao_areacultivada/1000),0,algodao_calcariodolomitico*c_co2_calcariodolomitico*algodao_areacultivada/1000),IF(ISERROR(algodao_gessoagricola*c_co2_gesso*algodao_areacultivada/1000),0,algodao_gessoagricola*c_co2_gesso*algodao_areacultivada/1000))","v":0},null,null,0]
[null,null,"Fertilizante nitrogenado sintético","Exceto ureia",null,{"$f":"IF(ISERROR((c_n2o_fertilizantesintetico*((algodao_adubacaonitrogenadasintetica*algodao_nadubosintetico)/100)*algodao_areacultivada)/1000),0,(c_n2o_fertilizantesintetico*((algodao_adubacaonitrogenadasintetica*algodao_nadubosintetico)/100)*algodao_areacultivada)/1000)","v":0},null,0]
[null,null,"Adubação orgânica","-",null,{"$f":"SUM(IF(ISERROR(algodao_adubacaoorganicacompostoorganico*c_n2o_compostoorganico*algodao_areacultivada/1000),0,algodao_adubacaoorganicacompostoorganico*c_n2o_compostoorganico*algodao_areacultivada/1000),IF(ISERROR(algodao_adubacaoorganicaestercoavicola*c_n2o_estercoavicola*algodao_areacultivada/1000),0,algodao_adubacaoorganicaestercoavicola*c_n2o_estercoavicola*algodao_areacultivada/1000),IF(ISERROR(algodao_adubacaoorganicaestercogeral*c_n2o_estercogeral*algodao_areacultivada/1000),0,algodao_adubacaoorganicaestercogeral*c_n2o_estercogeral*algodao_areacultivada/1000),IF(ISERROR(algodao_adubacaoorganicaoutros*c_n2o_aduboorganicogeral*algodao_areacultivada/1000),0,algodao_adubacaoorganicaoutros*c_n2o_aduboorganicogeral*algodao_areacultivada/1000))","v":0},null,0]
[null,null,"Lixiviação/escoamento superficial","Emissões indiretas",null,{"$f":"SUM(IF(ISERROR(algodao_aplicacaoureia*c_ureia_teornitrogenio/100*c_n2o_ef4*conversor_nn2o_n2o*c_fracleach/100*algodao_areacultivada/1000),0,algodao_aplicacaoureia*c_ureia_teornitrogenio/100*c_n2o_ef4*conversor_nn2o_n2o*c_fracleach/100*algodao_areacultivada/1000),IF(ISERROR(algodao_adubacaonitrogenadasintetica*algodao_nadubosintetico/100*c_n2o_ef4*conversor_nn2o_n2o*c_fracleach/100*algodao_areacultivada/1000),0,algodao_adubacaonitrogenadasintetica*algodao_nadubosintetico/100*c_n2o_ef4*conversor_nn2o_n2o*c_fracleach/100*algodao_areacultivada/1000),IF(ISERROR(algodao_adubacaoorganicacompostoorganico*c_compostoorganico_teornitrogenio/100*c_n2o_ef4*conversor_nn2o_n2o*c_fracleach/100*algodao_areacultivada/1000),0,algodao_adubacaoorganicacompostoorganico*c_compostoorganico_teornitrogenio/100*c_n2o_ef4*conversor_nn2o_n2o*c_fracleach/100*algodao_areacultivada/1000),IF(ISERROR(algodao_adubacaoorganicaestercogeral*c_estercogeral_teornitrogenio/100*c_n2o_ef4*conversor_nn2o_n2o*c_fracleach/100*algodao_areacultivada/1000),0,algodao_adubacaoorganicaestercogeral*c_estercogeral_teornitrogenio/100*c_n2o_ef4*conversor_nn2o_n2o*c_fracleach/100*algodao_areacultivada/1000),IF(ISERROR(algodao_adubacaoorganicaestercoavicola*c_estercoavicola_teornitrogenio/100*c_n2o_ef4*conversor_nn2o_n2o*c_fracleach/100*algodao_areacultivada/1000),0,algodao_adubacaoorganicaestercoavicola*c_estercoavicola_teornitrogenio/100*c_n2o_ef4*conversor_nn2o_n2o*c_fracleach/100*algodao_areacultivada/1000),IF(ISERROR(algodao_adubacaoorganicaoutros*c_aduboorganicogeral_teornitrogenio*c_n2o_ef4*conversor_nn2o_n2o*c_fracleach/100*algodao_areacultivada/1000),0,algodao_adubacaoorganicaoutros*c_aduboorganicogeral_teornitrogenio*c_n2o_ef4*conversor_nn2o_n2o*c_fracleach/100*algodao_areacultivada/1000))","v":0},null,0]
[null,null,"Deposição atm. de N volatilizado","Emissões indiretas",null,{"$f":"SUM(IF(ISERROR(algodao_aplicacaoureia*c_ureia_teornitrogenio/100*c_fracgasf/100*c_n2o_ef3*conversor_nn2o_n2o*algodao_areacultivada/1000),0,algodao_aplicacaoureia*c_ureia_teornitrogenio/100*c_fracgasf/100*c_n2o_ef3*conversor_nn2o_n2o*algodao_areacultivada/1000),IF(ISERROR(algodao_adubacaonitrogenadasintetica*algodao_nadubosintetico/100*c_fracgasf/100*c_n2o_ef3*conversor_nn2o_n2o*algodao_areacultivada/1000),0,algodao_adubacaonitrogenadasintetica*algodao_nadubosintetico/100*c_fracgasf/100*c_n2o_ef3*conversor_nn2o_n2o*algodao_areacultivada/1000),IF(ISERROR(algodao_adubacaoorganicacompostoorganico*c_compostoorganico_teornitrogenio/100*c_fracgasm/100*c_n2o_ef3*conversor_nn2o_n2o*algodao_areacultivada/1000),0,algodao_adubacaoorganicacompostoorganico*c_compostoorganico_teornitrogenio/100*c_fracgasm/100*c_n2o_ef3*conversor_nn2o_n2o*algodao_areacultivada/1000),IF(ISERROR(algodao_adubacaoorganicaestercoavicola*c_estercoavicola_teornitrogenio/100*c_fracgasm/100*c_n2o_ef3*conversor_nn2o_n2o*algodao_areacultivada/1000),0,algodao_adubacaoorganicaestercoavicola*c_estercoavicola_teornitrogenio/100*c_fracgasm/100*c_n2o_ef3*conversor_nn2o_n2o*algodao_areacultivada/1000),IF(ISERROR(algodao_adubacaoorganicaestercogeral*c_estercogeral_teornitrogenio/100*c_fracgasm/100*c_n2o_ef3*conversor_nn2o_n2o*algodao_areacultivada/1000),0,algodao_adubacaoorganicaestercogeral*c_estercogeral_teornitrogenio/100*c_fracgasm/100*c_n2o_ef3*conversor_nn2o_n2o*algodao_areacultivada/1000),IF(ISERROR(algodao_adubacaoorganicaoutros*c_aduboorganicogeral_teornitrogenio/100*c_fracgasm/100*c_n2o_ef3*conversor_nn2o_n2o*algodao_areacultivada/1000),0,algodao_adubacaoorganicaoutros*c_aduboorganicogeral_teornitrogenio/100*c_fracgasm/100*c_n2o_ef3*conversor_nn2o_n2o*algodao_areacultivada/1000))","v":0},null,0]
[null,null,"Decomposição de resíduos","-",null,{"$f":"IF(ISERROR(((algodao_produtividademedia*c_residuoalgodao_n2o)+(algodao_adubacaoverdegraminea/1000*c_residuoadubacaoverdegraminea_n2o)+(algodao_adubacaoverdeleguminosa/1000*c_residuoadubacaoverdeleguminosa_n2o)+(algodao_adubacaoverdeoutros/1000*c_residuoadubacaoverdeoutros_n2o))*algodao_areacultivada),0,((algodao_produtividademedia*c_residuoalgodao_n2o)+(algodao_adubacaoverdegraminea/1000*c_residuoadubacaoverdegraminea_n2o)+(algodao_adubacaoverdeleguminosa/1000*c_residuoadubacaoverdeleguminosa_n2o)+(algodao_adubacaoverdeoutros/1000*c_residuoadubacaoverdeoutros_n2o))*algodao_areacultivada)","v":0},null,0]
[null,null,"Manejo de solos orgânicos","-",{"$f":"IF(ISERROR(algodao_cultivosoloorganico*c_co2eq_cultivosolosorganicos),0,algodao_cultivosoloorganico*c_co2eq_cultivosolosorganicos)","v":0},{"$f":"IF(ISERROR(algodao_cultivosoloorganico*c_n2o_perdanitrogenio),0,algodao_cultivosoloorganico*c_n2o_perdanitrogenio)","v":0},null,0]
[null,"Fontes mecânicas","Operações mecanizadas","-",{"$f":"SUM(IF(ISERROR(IF(algodao_tipoconsumocombustivel=\"Quantidade consumida\",algodao_consumodiesel*mistura_diesel_algodao/100*c_mecanizacao_co2,IF(algodao_tipoconsumocombustivel=\"Operações mecanizadas\",c_consumooperacoesmecanizadasalgodao*c_diesel_consumomedio*c_mecanizacao_co2*mistura_diesel_algodao/100,0))),0,IF(algodao_tipoconsumocombustivel=\"Quantidade consumida\",algodao_consumodiesel*mistura_diesel_algodao/100*c_mecanizacao_co2,IF(algodao_tipoconsumocombustivel=\"Operações mecanizadas\",c_consumooperacoesmecanizadasalgodao*c_diesel_consumomedio*c_mecanizacao_co2*mistura_diesel_algodao/100,0))),IF(ISERROR((algodao_operacoesinternas_gasolina*mistura_gasolinacomum/100*c_emissao_gasolina_a_co2)),0,algodao_operacoesinternas_gasolina*mistura_gasolinacomum/100*c_emissao_gasolina_a_co2))","v":0},{"$f":"IF(ISERROR(IF(algodao_tipoconsumocombustivel=\"Quantidade consumida\",algodao_consumodiesel*mistura_diesel_algodao/100*c_mecanizacao_n2o,IF(algodao_tipoconsumocombustivel=\"Operações mecanizadas\",c_consumooperacoesmecanizadasalgodao*c_diesel_consumomedio*c_mecanizacao_n2o*mistura_diesel_algodao/100,0))),0,IF(algodao_tipoconsumocombustivel=\"Quantidade consumida\",algodao_consumodiesel*mistura_diesel_algodao/100*c_mecanizacao_n2o,IF(algodao_tipoconsumocombustivel=\"Operações mecanizadas\",c_consumooperacoesmecanizadasalgodao*c_diesel_consumomedio*c_mecanizacao_n2o*mistura_diesel_algodao/100,0)))","v":0},{"$f":"IF(ISERROR(IF(algodao_tipoconsumocombustivel=\"Quantidade consumida\",algodao_consumodiesel*mistura_diesel_algodao/100*c_mecanizacao_ch4,IF(algodao_tipoconsumocombustivel=\"Operações mecanizadas\",c_consumooperacoesmecanizadasalgodao*c_diesel_consumomedio*c_mecanizacao_ch4*mistura_diesel_algodao/100,0))),0,IF(algodao_tipoconsumocombustivel=\"Quantidade consumida\",algodao_consumodiesel*mistura_diesel_algodao/100*c_mecanizacao_ch4,IF(algodao_tipoconsumocombustivel=\"Operações mecanizadas\",c_consumooperacoesmecanizadasalgodao*c_diesel_consumomedio*c_mecanizacao_ch4*mistura_diesel_algodao/100,0)))","v":0},0]
[null,"Mudança de uso do solo","Estoque inicial de carbono na veg. nativa","-",{"$f":"IF(AND(algodao_usoanteriorterra =\"Floresta nativa\",ISNUMBER(algodao_estoqueinicialcarbono)),algodao_estoqueinicialcarbono*algodao_areacultivada,0)","v":0},null,null,0]
[]
[null,"Tabela 5. Escopo 3."]
[null,null,null,null,"Emissões (tonelada)",null,null,"Total\n(tonelada de CO2 eq.)"]
[null,"Fonte",null,"Detalhes","CO2","N2O","CH4"]
[null,"Fontes mecânicas","Transporte da produção","-",{"$f":"SUM(IF(ISERROR(algodao_transporteproducao_quantidade*mistura_diesel_transporte_algodao/100*c_mecanizacao_co2),0,algodao_transporteproducao_quantidade*mistura_diesel_transporte_algodao/100*c_mecanizacao_co2),IF(ISERROR(algodao_transporteproducao_quantidade*(1-mistura_diesel_transporte_algodao/100)*c_emissao_biodiesel),0,algodao_transporteproducao_quantidade*(1-mistura_diesel_transporte_algodao/100)*c_emissao_biodiesel))","v":0},{"$f":"IF(ISERROR((algodao_transporteproducao_quantidade* mistura_diesel_transporte_algodao/100*c_mecanizacao_n2o)),0,(algodao_transporteproducao_quantidade* mistura_diesel_transporte_algodao/100*c_mecanizacao_n2o))","v":0},{"$f":"IF(ISERROR((algodao_transporteproducao_quantidade* mistura_diesel_transporte_algodao/100*c_mecanizacao_ch4)),0,(algodao_transporteproducao_quantidade* mistura_diesel_transporte_algodao/100*c_mecanizacao_ch4))","v":0},{"$f":"SUM(E77,F77*pag_n2o,G77*pag_ch4)","v":0}]
[]
[null,"Tabela 6.1. Processos biogênicos."]
[null,null,null,null,"Emissões (tonelada)",null,null,"Total\n(tonelada de CO2 eq.)"]
[null,"Fonte",null,"Detalhes","CO2","N2O","CH4"]
[null,"Biocombustíveis",null,"-",{"$f":"SUM(IF(ISERROR(IF(algodao_tipoconsumocombustivel=\"Quantidade consumida\",algodao_consumodiesel*(1-(mistura_diesel_algodao/100))*c_emissao_biodiesel,IF(algodao_tipoconsumocombustivel=\"Operações mecanizadas\",c_consumooperacoesmecanizadasalgodao*c_diesel_consumomedio*(1-(mistura_diesel_algodao/100))*c_emissao_biodiesel,0))),0,IF(algodao_tipoconsumocombustivel=\"Quantidade consumida\",algodao_consumodiesel*(1-(mistura_diesel_algodao/100))*c_emissao_biodiesel,IF(algodao_tipoconsumocombustivel=\"Operações mecanizadas\",c_consumooperacoesmecanizadasalgodao*c_diesel_consumomedio*(1-(mistura_diesel_algodao/100))*c_emissao_biodiesel,0))),IF(ISERROR((algodao_operacoesinternas_gasolina*(1-(mistura_gasolinacomum/100))*c_emissao_etanol_anidro_co2)),0,algodao_operacoesinternas_gasolina*(1-(mistura_gasolinacomum/100))*c_emissao_etanol_anidro_co2),IF(ISERROR(algodao_operacoesinternas_etanol*c_emissao_etanol_hidratado_co2),0,algodao_operacoesinternas_etanol*c_emissao_etanol_hidratado_co2))","v":0},null,null,{"$f":"SUM(E82,F82*pag_n2o,G82*pag_ch4)","v":0}]
[null,"Queima de resíduos",null,"-",{"$f":"IF(ISERROR(algodao_areaqueimaresiduos*algodao_produtividademedia*c_queimaresiduoalgodao_co*conversor_co_co2),0,algodao_areaqueimaresiduos*algodao_produtividademedia*c_queimaresiduoalgodao_co*conversor_co_co2)","v":0},{"$f":"IF(ISERROR((algodao_areaqueimaresiduos*algodao_produtividademedia*c_queimaresiduoalgodao_n2o)+(algodao_areaqueimaresiduos*algodao_produtividademedia*c_queimaresiduoalgodao_nox*conversor_no2_n2o)),0,(algodao_areaqueimaresiduos*algodao_produtividademedia*c_queimaresiduoalgodao_n2o)+(algodao_areaqueimaresiduos*algodao_produtividademedia*c_queimaresiduoalgodao_nox*conversor_no2_n2o))","v":0},{"$f":"IF(ISERROR(algodao_areaqueimaresiduos*algodao_produtividademedia*c_queimaresiduoalgodao_ch4),0,algodao_areaqueimaresiduos*algodao_produtividademedia*c_queimaresiduoalgodao_ch4)","v":0},{"$f":"SUM(E83,F83*pag_n2o,G83*pag_ch4)","v":0}]
[]
[null,"Tabela 6.2. Processos biogênicos."]
[null,null,null,null,"Remoções (tonelada)",null,null,"Total\n(tonelada de CO2 eq.)"]
[null,"Fonte",null,"Detalhes","CO2","N2O","CH4"]
[null,"Adubação verde",null,"-",{"$f":"IF(ISERROR(IF(SUM(algodao_adubacaoverdeleguminosa,algodao_adubacaoverdegraminea,algodao_adubacaoverdeoutros)>0,algodao_areacultivada*c_emissaobiogenica_adubacaoverde,0)),0,IF(SUM(algodao_adubacaoverdeleguminosa,algodao_adubacaoverdegraminea,algodao_adubacaoverdeoutros)>0,algodao_areacultivada*c_emissaobiogenica_adubacaoverde,0))","v":0},null,null,{"$f":"SUM(E88,F88*pag_n2o,G88*pag_ch4)","v":0}]
[]
[null,"Tabela 7. Mudança de uso e ocupação do solo."]
[null,null,null,null,"Emissões/remoções\n(tonelada)"]
[null,"Fonte",null,"Detalhes","CO2 eq."]
[null,"Mudança de uso e ocupação do solo",null,"-",{"$f":"IF(ISERROR(algodao_areacultivada*(c_mudancausosolo_algodao)),0,algodao_areacultivada*(c_mudancausosolo_algodao))","v":0}]
[]
[null,"Voltar ao topo da seção","Voltar ao topo da página"]
[]
[null,"Arroz"]
[]
[null,"Tabela 1. Emissões por escopo."]
[null,null,"Total\n(tonelada de CO2 eq.)","Por área cultivada\n(tonelada CO2 eq./hectare)","Por tonelada produzida\n(tonelada CO2 eq./tonelada)"]
[null,"Escopo 1",{"$f":"SUM(H120:H129)","v":0},{"$f":"IF(ISERROR(C101/arroz_areacultivada),0,C101/arroz_areacultivada)","v":0},{"$f":"IF(ISERROR(C101/(arroz_produtividademedia*arroz_areacultivada)),0,C101/(arroz_produtividademedia*arroz_areacultivada))","v":0}]
[null,"Escopo 2",{"$f":"arroz_consumoenergia","v":0},{"$f":"IF(ISERROR(C102/arroz_areacultivada),0,C102/arroz_areacultivada)","v":0},{"$f":"IF(ISERROR(C102/(arroz_produtividademedia*arroz_areacultivada)),0,C102/(arroz_produtividademedia*arroz_areacultivada))","v":0}]
[null,"Escopo 3",{"$f":"H134","v":0},{"$f":"IF(ISERROR(C103/arroz_areacultivada),0,C103/arroz_areacultivada)","v":0},{"$f":"IF(ISERROR(C103/(arroz_produtividademedia*arroz_areacultivada)),0,C103/(arroz_produtividademedia*arroz_areacultivada))","v":0}]
[]
[null,"Tabela 2.1. Emissões por processos biogênicos."]
[null,null,"Total\n(tonelada de CO2 eq.)","Por área cultivada\n(tonelada CO2 eq./hectare)","Por tonelada produzida\n(tonelada CO2 eq./tonelada)"]
[null,"Processos biogênicos",{"$f":"SUM(H139:H140)","v":0},{"$f":"IF(ISERROR(C107/arroz_areacultivada),0,C107/arroz_areacultivada)","v":0},{"$f":"IF(ISERROR(C107/(arroz_produtividademedia*arroz_areacultivada)),0,C107/(arroz_produtividademedia*arroz_areacultivada))","v":0}]
[]
[null,"Tabela 2.2. Remoções por processos biogênicos."]
[null,null,"Total\n(tonelada de CO2 eq.)","Por área cultivada\n(tonelada CO2 eq./hectare)","Por tonelada produzida\n(tonelada CO2 eq./tonelada)"]
[null,"Processos biogênicos",{"$f":"H145","v":0},{"$f":"IF(ISERROR(C111/arroz_areacultivada),0,C111/arroz_areacultivada)","v":0},{"$f":"IF(ISERROR(C111/(arroz_produtividademedia*arroz_areacultivada)),0,C111/(arroz_produtividademedia*arroz_areacultivada))","v":0}]
[]
[null,"Tabela 3. Emissões/remoções por mudança de uso e ocupação do solo."]
[null,null,"Total\n(tonelada de CO2 eq.)","Por área cultivada\n(tonelada CO2 eq./hectare)","Por tonelada produzida\n(tonelada CO2 eq./tonelada)"]
[null,"Mudança de uso e ocupação do solo",{"$f":"E150","v":0},{"$f":"IF(ISERROR(C115/arroz_areacultivada),0,C115/arroz_areacultivada)","v":0},{"$f":"IF(ISERROR(C115/(arroz_produtividademedia*arroz_areacultivada)),0,C115/(arroz_produtividademedia*arroz_areacultivada))","v":0}]
[]
[null,"Tabela 4. Escopo 1."]
[null,null,null,null,"Emissões (tonelada)",null,null,"Total\n(tonelada de CO2 eq.)"]
[null,"Fonte",null,"Detalhes","CO2","N2O","CH4"]
[null,"Fontes não-mecânicas","Aplicação de uréia","-",{"$f":"IF(ISERROR((c_co2_ureia*arroz_aplicacaoureia*arroz_areacultivada)/1000),0,(c_co2_ureia*arroz_aplicacaoureia*arroz_areacultivada)/1000)","v":0},{"$f":"IF(ISERROR((c_n2o_nitrogenioureia*((arroz_aplicacaoureia*c_ureia_teornitrogenio)/100))/1000),0,(c_n2o_nitrogenioureia*((arroz_aplicacaoureia*c_ureia_teornitrogenio)/100))/1000)","v":0},null,{"$f":"SUM(E120,F120*pag_n2o,G120*pag_ch4)","v":0}]
[null,null,"Calagem e gessagem","-",{"$f":"SUM(IF(ISERROR(arroz_calcariocalcitico*c_co2_calcariocalcitico*arroz_areacultivada/1000),0,arroz_calcariocalcitico*c_co2_calcariocalcitico*arroz_areacultivada/1000),IF(ISERROR(arroz_calcariodolomitico*c_co2_calcariodolomitico*arroz_areacultivada/1000),0,arroz_calcariodolomitico*c_co2_calcariodolomitico*arroz_areacultivada/1000),IF(ISERROR(arroz_gessoagricola*c_co2_gesso*arroz_areacultivada/1000),0,arroz_gessoagricola*c_co2_gesso*arroz_areacultivada/1000))","v":0},null,null,0]
[null,null,"Fertilizante nitrogenado sintético","Exceto ureia",null,{"$f":"IF(ISERROR(c_n2o_fertilizantesintetico*(((arroz_adubacaonitrogenadasintetica*arroz_nadubosintetico)/100))*arroz_areacultivada/1000),0,(c_n2o_fertilizantesintetico*((arroz_adubacaonitrogenadasintetica*arroz_nadubosintetico)/100))*arroz_areacultivada/1000)","v":0},null,0]
[null,null,"Decomposição de resíduos","-",null,{"$f":"IF(ISERROR(((arroz_produtividademedia*c_residuoarroz_n2o)+(arroz_adubacaoverdegraminea/1000*c_residuoadubacaoverdegraminea_n2o)+(arroz_adubacaoverdeleguminosa/1000*c_residuoadubacaoverdeleguminosa_n2o)+(arroz_adubacaoverdeoutros/1000*c_residuoadubacaoverdeoutros_n2o))*arroz_areacultivada),0,((arroz_produtividademedia*c_residuoarroz_n2o)+(arroz_adubacaoverdegraminea/1000*c_residuoadubacaoverdegraminea_n2o)+(arroz_adubacaoverdeleguminosa/1000*c_residuoadubacaoverdeleguminosa_n2o)+(arroz_adubacaoverdeoutros/1000*c_residuoadubacaoverdeoutros_n2o))*arroz_areacultivada)","v":0},null,0]
[null,null,"Manejo de solos orgânicos","-",{"$f":"IF(ISERROR(arroz_cultivosoloorganico*c_co2eq_cultivosolosorganicos),0,arroz_cultivosoloorganico*c_co2eq_cultivosolosorganicos)","v":0},{"$f":"IF(ISERROR((arroz_cultivosoloorganico*c_n2o_perdanitrogenio)/1000),0,(arroz_cultivosoloorganico*c_n2o_perdanitrogenio)/1000)","v":0},null,0]
[null,null,"Adubação orgânica","Rizicultura",null,null,{"$f":"IF(ISERROR((IF(arroz_materiaorganicafermentada=\"Sim\",c_arroz_sfo/6,c_arroz_sfo)*c_arroz_sfw*c_arroz_fec)*arroz_areacultivada/1000),0,(IF(arroz_materiaorganicafermentada=\"Sim\",c_arroz_sfo/6,c_arroz_sfo)*c_arroz_sfw*c_arroz_fec)*arroz_areacultivada/1000)","v":0},0]
[null,null,"Lixiviação/escoamento superficial","Emissões indiretas",null,{"$f":"SUM(IF(ISERROR(arroz_aplicacaoureia*c_ureia_teornitrogenio/100*c_n2o_ef4*conversor_nn2o_n2o*c_fracleach/100*arroz_areacultivada/1000),0,arroz_aplicacaoureia*c_ureia_teornitrogenio/100*c_n2o_ef4*conversor_nn2o_n2o*c_fracleach/100*arroz_areacultivada/1000),IF(ISERROR(arroz_adubacaonitrogenadasintetica*arroz_nadubosintetico/100*c_n2o_ef4*conversor_nn2o_n2o*c_fracleach/100*arroz_areacultivada/1000),0,arroz_adubacaonitrogenadasintetica*arroz_nadubosintetico/100*c_n2o_ef4*conversor_nn2o_n2o*c_fracleach/100*arroz_areacultivada/1000))","v":0},null,0]
[null,null,"Deposição atm. de N volatilizado","Emissões indiretas",null,{"$f":"SUM(IF(ISERROR(arroz_aplicacaoureia*c_ureia_teornitrogenio/100*c_fracgasf/100*c_n2o_ef3*conversor_nn2o_n2o*arroz_areacultivada/1000),0,arroz_aplicacaoureia*c_ureia_teornitrogenio/100*c_fracgasf/100*c_n2o_ef3*conversor_nn2o_n2o*arroz_areacultivada/1000),IF(ISERROR(arroz_adubacaonitrogenadasintetica*arroz_nadubosintetico/100*c_fracgasf/100*c_n2o_ef3*conversor_nn2o_n2o*arroz_areacultivada/1000),0,arroz_adubacaonitrogenadasintetica*arroz_nadubosintetico/100*c_fracgasf/100*c_n2o_ef3*conversor_nn2o_n2o*arroz_areacultivada/1000))","v":0},null,0]
[null,"Fontes mecânicas","Operações mecanizadas","-",{"$f":"SUM(IF(ISERROR(IF(arroz_tipoconsumocombustivel=\"Quantidade consumida\",arroz_consumodiesel*mistura_diesel_arroz/100*c_mecanizacao_co2,IF(arroz_tipoconsumocombustivel=\"Operações mecanizadas\",c_consumooperacoesmecanizadasarroz*c_diesel_consumomedio*c_mecanizacao_co2*mistura_diesel_arroz/100,0))),0,IF(arroz_tipoconsumocombustivel=\"Quantidade consumida\",arroz_consumodiesel*mistura_diesel_arroz/100*c_mecanizacao_co2,IF(arroz_tipoconsumocombustivel=\"Operações mecanizadas\",c_consumooperacoesmecanizadasarroz*c_diesel_consumomedio*c_mecanizacao_co2*mistura_diesel_arroz/100,0))),IF(ISERROR((arroz_operacoesinternas_gasolina*mistura_gasolinacomum/100*c_emissao_gasolina_a_co2)),0,arroz_operacoesinternas_gasolina*mistura_gasolinacomum/100*c_emissao_gasolina_a_co2))","v":0},{"$f":"IF(ISERROR(IF(arroz_tipoconsumocombustivel=\"Quantidade consumida\",arroz_consumodiesel*mistura_diesel_arroz/100*c_mecanizacao_n2o,IF(arroz_tipoconsumocombustivel=\"Operações mecanizadas\",c_consumooperacoesmecanizadasarroz*c_diesel_consumomedio*c_mecanizacao_n2o*mistura_diesel_arroz/100,0))),0,IF(arroz_tipoconsumocombustivel=\"Quantidade consumida\",arroz_consumodiesel*mistura_diesel_arroz/100*c_mecanizacao_n2o,IF(arroz_tipoconsumocombustivel=\"Operações mecanizadas\",c_consumooperacoesmecanizadasarroz*c_diesel_consumomedio*c_mecanizacao_n2o*mistura_diesel_arroz/100,0)))","v":0},{"$f":"IF(ISERROR(IF(arroz_tipoconsumocombustivel=\"Quantidade consumida\",arroz_consumodiesel*mistura_diesel_arroz/100*c_mecanizacao_ch4,IF(arroz_tipoconsumocombustivel=\"Operações mecanizadas\",c_consumooperacoesmecanizadasarroz*c_diesel_consumomedio*c_mecanizacao_ch4*mistura_diesel_arroz/100,0))),0,IF(arroz_tipoconsumocombustivel=\"Quantidade consumida\",arroz_consumodiesel*mistura_diesel_arroz/100*c_mecanizacao_ch4,IF(arroz_tipoconsumocombustivel=\"Operações mecanizadas\",c_consumooperacoesmecanizadasarroz*c_diesel_consumomedio*c_mecanizacao_ch4*mistura_diesel_arroz/100,0)))","v":0},0]
[null,"Mudança de uso do solo","Estoque inicial de carbono na veg. nativa","-",{"$f":"IF(AND(arroz_usoanteriorterra =\"Floresta nativa\",ISNUMBER(arroz_estoqueinicialcarbono)),arroz_estoqueinicialcarbono*arroz_areacultivada,0)","v":0},null,null,0]
[]
[null,"Tabela 5. Escopo 3."]
[null,null,null,null,"Emissões (tonelada)",null,null,"Total\n(tonelada de CO2 eq.)"]
[null,"Fonte",null,"Detalhes","CO2","N2O","CH4"]
[null,"Fontes mecânicas","Transporte da produção","-",{"$f":"SUM(IF(ISERROR(arroz_transporteproducao_quantidade*mistura_diesel_transporte_arroz/100*c_mecanizacao_co2),0,arroz_transporteproducao_quantidade*mistura_diesel_transporte_arroz/100*c_mecanizacao_co2),IF(ISERROR(arroz_transporteproducao_quantidade*(1-mistura_diesel_transporte_arroz/100)*c_emissao_biodiesel),0,arroz_transporteproducao_quantidade*(1-mistura_diesel_transporte_arroz/100)*c_emissao_biodiesel))","v":0},{"$f":"IF(ISERROR((arroz_transporteproducao_quantidade* mistura_diesel_transporte_arroz/100*c_mecanizacao_n2o)),0,(arroz_transporteproducao_quantidade* mistura_diesel_transporte_arroz/100*c_mecanizacao_n2o))","v":0},{"$f":"IF(ISERROR((arroz_transporteproducao_quantidade* mistura_diesel_transporte_arroz/100*c_mecanizacao_ch4)),0,(arroz_transporteproducao_quantidade* mistura_diesel_transporte_arroz/100*c_mecanizacao_ch4))","v":0},{"$f":"SUM(E134,F134*pag_n2o,G134*pag_ch4)","v":0}]
[]
[null,"Tabela 6.1. Processos biogênicos."]
[null,null,null,null,"Emissões (tonelada)",null,null,"Total\n(tonelada de CO2 eq.)"]
[null,"Fonte",null,"Detalhes","CO2","N2O","CH4"]
[null,"Biocombustíveis",null,"-",{"$f":"SUM(IF(ISERROR(IF(arroz_tipoconsumocombustivel=\"Quantidade consumida\",arroz_consumodiesel*(1-(mistura_diesel_arroz/100))*c_emissao_biodiesel,IF(arroz_tipoconsumocombustivel=\"Operações mecanizadas\",c_consumooperacoesmecanizadasarroz*c_diesel_consumomedio*(1-(mistura_diesel_arroz/100))*c_emissao_biodiesel,0))),0,IF(arroz_tipoconsumocombustivel=\"Quantidade consumida\",arroz_consumodiesel*(1-(mistura_diesel_arroz/100))*c_emissao_biodiesel,IF(arroz_tipoconsumocombustivel=\"Operações mecanizadas\",c_consumooperacoesmecanizadasarroz*c_diesel_consumomedio*(1-(mistura_diesel_arroz/100))*c_emissao_biodiesel,0))),IF(ISERROR((arroz_operacoesinternas_gasolina*(1-(mistura_gasolinacomum/100))*c_emissao_etanol_anidro_co2)),0,arroz_operacoesinternas_gasolina*(1-(mistura_gasolinacomum/100))*c_emissao_etanol_anidro_co2),IF(ISERROR(arroz_operacoesinternas_etanol*c_emissao_etanol_hidratado_co2),0,arroz_operacoesinternas_etanol*c_emissao_etanol_hidratado_co2))","v":0},null,null,{"$f":"SUM(E139,F139*pag_n2o,G139*pag_ch4)","v":0}]
[null,"Queima de resíduos",null,"-",{"$f":"IF(ISERROR(arroz_areaqueimaresiduos*arroz_produtividademedia*c_queimaresiduoarroz_co*conversor_co_co2),0,arroz_areaqueimaresiduos*arroz_produtividademedia*c_queimaresiduoarroz_co*conversor_co_co2)","v":0},{"$f":"IF(ISERROR((arroz_areaqueimaresiduos*arroz_produtividademedia*c_queimaresiduoarroz_n2o)+(arroz_areaqueimaresiduos*arroz_produtividademedia*c_queimaresiduoarroz_nox*conversor_no2_n2o)),0,(arroz_areaqueimaresiduos*arroz_produtividademedia*c_queimaresiduoarroz_n2o)+(arroz_areaqueimaresiduos*arroz_produtividademedia*c_queimaresiduoarroz_nox*conversor_no2_n2o))","v":0},{"$f":"IF(ISERROR(arroz_areaqueimaresiduos*arroz_produtividademedia*c_queimaresiduoarroz_ch4),0,arroz_areaqueimaresiduos*arroz_produtividademedia*c_queimaresiduoarroz_ch4)","v":0},{"$f":"SUM(E140,F140*pag_n2o,G140*pag_ch4)","v":0}]
[]
[null,"Tabela 6.2. Processos biogênicos."]
[null,null,null,null,"Remoções (tonelada)",null,null,"Total\n(tonelada de CO2 eq)"]
[null,"Fonte",null,"Detalhes","CO2","N2O","CH4"]
[null,"Adubação verde",null,"-",{"$f":"IF(ISERROR(IF(SUM(arroz_adubacaoverdeleguminosa,arroz_adubacaoverdegraminea,arroz_adubacaoverdeoutros)>0,arroz_areacultivada*c_emissaobiogenica_adubacaoverde,0)),0,IF(SUM(arroz_adubacaoverdeleguminosa,arroz_adubacaoverdegraminea,arroz_adubacaoverdeoutros)>0,arroz_areacultivada*c_emissaobiogenica_adubacaoverde,0))","v":0},null,null,{"$f":"SUM(E145,F145*pag_n2o,G145*pag_ch4)","v":0}]
[]
[null,"Tabela 7. Mudança de uso e ocupação do solo."]
[null,null,null,null,"Emissões/remoções\n(tonelada)"]
[null,"Fonte",null,"Detalhes","CO2 eq."]
[null,"Mudança de uso e ocupação do solo",null,"-",{"$f":"IF(ISERROR(arroz_areacultivada*(c_mudancausosolo_arroz)),0,arroz_areacultivada*(c_mudancausosolo_arroz))","v":0}]
[]
[null,"Voltar ao topo da seção","Voltar ao topo da página"]
[]
[null,"Cana-de-açúcar"]
[]
[null,"Tabela 1. Emissões por escopo."]
[null,null,"Total\n(tonelada de CO2 eq.)","Por área cultivada\n(tonelada CO2 eq./hectare)","Por tonelada produzida\n(tonelada CO2 eq./tonelada)"]
[null,"Escopo 1",{"$f":"SUM(H177:H186)","v":0},{"$f":"IF(ISERROR(C158/cana_areacultivada),0,C158/cana_areacultivada)","v":0},{"$f":"IF(ISERROR(C158/(cana_produtividademedia*cana_areacultivada)),0,C158/(cana_produtividademedia*cana_areacultivada))","v":0}]
[null,"Escopo 2",{"$f":"cana_consumoenergia","v":0},{"$f":"IF(ISERROR(C159/cana_areacultivada),0,C159/cana_areacultivada)","v":0},{"$f":"IF(ISERROR(C159/(cana_produtividademedia*cana_areacultivada)),0,C159/(cana_produtividademedia*cana_areacultivada))","v":0}]
[null,"Escopo 3",{"$f":"H191","v":0},{"$f":"IF(ISERROR(C160/cana_areacultivada),0,C160/cana_areacultivada)","v":0},{"$f":"IF(ISERROR(C160/(cana_produtividademedia*cana_areacultivada)),0,C160/(cana_produtividademedia*cana_areacultivada))","v":0}]
[]
[null,"Tabela 2.1. Emissões por processos biogênicos."]
[null,null,"Total\n(tonelada de CO2 eq.)","Por área cultivada\n(tonelada CO2 eq./hectare)","Por tonelada produzida\n(tonelada CO2 eq./tonelada)"]
[null,"Processos biogênicos",{"$f":"SUM(H196:H197)","v":0},{"$f":"IF(ISERROR(C164/cana_areacultivada),0,C164/cana_areacultivada)","v":0},{"$f":"IF(ISERROR(C164/(cana_produtividademedia*cana_areacultivada)),0,C164/(cana_produtividademedia*cana_areacultivada))","v":0}]
[]
[null,"Tabela 2.2. Remoções por processos biogênicos."]
[null,null,"Total\n(tonelada de CO2 eq.)","Por área cultivada\n(tonelada CO2 eq./hectare)","Por tonelada produzida\n(tonelada CO2 eq./tonelada)"]
[null,"Processos biogênicos",{"$f":"H202","v":0},{"$f":"IF(ISERROR(C168/cana_areacultivada),0,C168/cana_areacultivada)","v":0},{"$f":"IF(ISERROR(C168/(cana_produtividademedia*cana_areacultivada)),0,C168/(cana_produtividademedia*cana_areacultivada))","v":0}]
[]
[null,"Tabela 3. Emissões/remoções por mudança de uso e ocupação do solo."]
[null,null,"Total\n(tonelada de CO2 eq.)","Por área cultivada\n(tonelada CO2 eq./hectare)","Por tonelada produzida\n(tonelada CO2 eq./tonelada)"]
[null,"Mudança de uso e ocupação do solo",{"$f":"E207","v":0},{"$f":"IF(ISERROR(C172/cana_areacultivada),0,C172/cana_areacultivada)","v":0},{"$f":"IF(ISERROR(C172/(cana_produtividademedia*cana_areacultivada)),0,C172/(cana_produtividademedia*cana_areacultivada))","v":0}]
[]
[null,"Tabela 4. Escopo 1."]
[null,null,null,null,"Emissões (tonelada)",null,null,"Total\n(tonelada de CO2 eq.)"]
[null,"Fonte",null,"Detalhes","CO2","N2O","CH4"]
[null,"Fontes não-mecânicas","Aplicação de uréia","-",{"$f":"IF(ISERROR((c_co2_ureia*cana_aplicacaoureia*cana_areacultivada)/1000),0,(c_co2_ureia*cana_aplicacaoureia*cana_areacultivada)/1000)","v":0},{"$f":"IF(ISERROR((c_n2o_nitrogenioureia*((cana_aplicacaoureia*c_ureia_teornitrogenio)/100)*cana_areacultivada)/1000),0,(c_n2o_nitrogenioureia*((cana_aplicacaoureia*c_ureia_teornitrogenio)/100)*cana_areacultivada)/1000)","v":0},null,{"$f":"SUM(E177,F177*pag_n2o,G177*pag_ch4)","v":0}]
[null,null,"Calagem e gessagem","-",{"$f":"SUM(IF(ISERROR(cana_calcariocalcitico*c_co2_calcariocalcitico*cana_areacultivada/1000),0,cana_calcariocalcitico*c_co2_calcariocalcitico*cana_areacultivada/1000),IF(ISERROR(cana_calcariodolomitico*c_co2_calcariodolomitico*cana_areacultivada/1000),0,cana_calcariodolomitico*c_co2_calcariodolomitico*cana_areacultivada/1000),IF(ISERROR(cana_gessoagricola*c_co2_gesso*cana_areacultivada/1000),0,cana_gessoagricola*c_co2_gesso*cana_areacultivada/1000))","v":0},null,null,0]
[null,null,"Fertilizante nitrogenado sintético","Exceto ureia",null,{"$f":"IF(ISERROR((c_n2o_fertilizantesintetico*((cana_adubacaonitrogenadasintetica*cana_nadubosintetico)/100)*cana_areacultivada)/1000),0,(c_n2o_fertilizantesintetico*((cana_adubacaonitrogenadasintetica*cana_nadubosintetico)/100)*cana_areacultivada)/1000)","v":0},null,0]
[null,null,"Adubação orgânica","-",null,{"$f":"SUM(IF(ISERROR(cana_adubacaoorganicatortafiltroarea*c_n2o_tortafiltro/1000),0,cana_adubacaoorganicatortafiltroarea*c_n2o_tortafiltro/1000),IF(ISERROR(cana_adubacaoorganicavinhaca*c_n2o_vinhaca*1000),0,cana_adubacaoorganicavinhaca*c_n2o_vinhaca*1000),IF(ISERROR(cana_adubacaoorganicacompostoorganico*c_n2o_compostoorganico*cana_areacultivada/1000),0,cana_adubacaoorganicacompostoorganico*c_n2o_compostoorganico*cana_areacultivada/1000),IF(ISERROR(cana_adubacaoorganicaestercoavicola*c_n2o_estercoavicola*cana_areacultivada/1000),0,cana_adubacaoorganicaestercoavicola*c_n2o_estercoavicola*cana_areacultivada/1000),IF(ISERROR(cana_adubacaoorganicaestercogeral*c_n2o_estercogeral*cana_areacultivada/1000),0,cana_adubacaoorganicaestercogeral*c_n2o_estercogeral*cana_areacultivada/1000),IF(ISERROR(cana_adubacaoorganicaoutros*c_n2o_aduboorganicogeral*cana_areacultivada/1000),0,cana_adubacaoorganicaoutros*c_n2o_aduboorganicogeral*cana_areacultivada/1000))","v":0},null,0]
[null,null,"Lixiviação/escoamento superficial","Emissões indiretas",null,{"$f":"SUM(IF(ISERROR(cana_aplicacaoureia*c_ureia_teornitrogenio/100*c_n2o_ef4*conversor_nn2o_n2o*c_fracleach/100*cana_areacultivada/1000),0,cana_aplicacaoureia*c_ureia_teornitrogenio/100*c_n2o_ef4*conversor_nn2o_n2o*c_fracleach/100*cana_areacultivada/1000),IF(ISERROR(cana_adubacaonitrogenadasintetica*cana_nadubosintetico/100*c_n2o_ef4*conversor_nn2o_n2o*c_fracleach/100*cana_areacultivada/1000),0,cana_adubacaonitrogenadasintetica*cana_nadubosintetico/100*c_n2o_ef4*conversor_nn2o_n2o*c_fracleach/100*cana_areacultivada/1000),IF(ISERROR(cana_adubacaoorganicacompostoorganico*c_compostoorganico_teornitrogenio/100*c_n2o_ef4*conversor_nn2o_n2o*c_fracleach/100*cana_areacultivada/1000),0,cana_adubacaoorganicacompostoorganico*c_compostoorganico_teornitrogenio/100*c_n2o_ef4*conversor_nn2o_n2o*c_fracleach/100*cana_areacultivada/1000),IF(ISERROR(cana_adubacaoorganicaestercogeral*c_estercogeral_teornitrogenio/100*c_n2o_ef4*conversor_nn2o_n2o*c_fracleach/100*cana_areacultivada/1000),0,cana_adubacaoorganicaestercogeral*c_estercogeral_teornitrogenio/100*c_n2o_ef4*conversor_nn2o_n2o*c_fracleach/100*cana_areacultivada/1000),IF(ISERROR(cana_adubacaoorganicaestercoavicola*c_estercoavicola_teornitrogenio/100*c_n2o_ef4*conversor_nn2o_n2o*c_fracleach/100*cana_areacultivada/1000),0,cana_adubacaoorganicaestercoavicola*c_estercoavicola_teornitrogenio/100*c_n2o_ef4*conversor_nn2o_n2o*c_fracleach/100*cana_areacultivada/1000),IF(ISERROR(cana_adubacaoorganicaoutros*c_aduboorganicogeral_teornitrogenio/100*c_n2o_ef4*conversor_nn2o_n2o*c_fracleach/100*cana_areacultivada/1000),0,cana_adubacaoorganicaoutros*c_aduboorganicogeral_teornitrogenio*c_n2o_ef4*conversor_nn2o_n2o*c_fracleach/100*cana_areacultivada/1000),IF(ISERROR(cana_adubacaoorganicatortafiltroquantidade*c_tortafiltro_teornitrogenio/100*c_n2o_ef4*conversor_nn2o_n2o*c_fracleach/100*cana_areacultivada/1000),0,cana_adubacaoorganicatortafiltroquantidade*c_tortafiltro_teornitrogenio/100*c_n2o_ef4*conversor_nn2o_n2o*c_fracleach/100*cana_areacultivada/1000),IF(ISERROR(cana_adubacaoorganicavinhaca*c_vinhaca_teornitrogenio/100*c_n2o_ef4*conversor_nn2o_n2o*c_fracleach/100*cana_areacultivada/1000),0,cana_adubacaoorganicavinhaca*c_vinhaca_teornitrogenio/100*c_n2o_ef4*conversor_nn2o_n2o*c_fracleach/100*cana_areacultivada/1000))","v":0},null,0]
[null,null,"Deposição atm. de N volatilizado","Emissões indiretas",null,{"$f":"SUM(IF(ISERROR(cana_aplicacaoureia*c_ureia_teornitrogenio/100*c_fracgasf/100*c_n2o_ef3*conversor_nn2o_n2o*cana_areacultivada/1000),0,cana_aplicacaoureia*c_ureia_teornitrogenio/100*c_fracgasf/100*c_n2o_ef3*conversor_nn2o_n2o*cana_areacultivada/1000),IF(ISERROR(cana_adubacaonitrogenadasintetica*cana_nadubosintetico/100*c_fracgasf/100*c_n2o_ef3*conversor_nn2o_n2o*cana_areacultivada/1000),0,cana_adubacaonitrogenadasintetica*cana_nadubosintetico/100*c_fracgasf/100*c_n2o_ef3*conversor_nn2o_n2o*cana_areacultivada/1000),IF(ISERROR(cana_adubacaoorganicacompostoorganico*c_compostoorganico_teornitrogenio/100*c_fracgasm/100*c_n2o_ef3*conversor_nn2o_n2o*cana_areacultivada/1000),0,cana_adubacaoorganicacompostoorganico*c_compostoorganico_teornitrogenio/100*c_fracgasm/100*c_n2o_ef3*conversor_nn2o_n2o*cana_areacultivada/1000),IF(ISERROR(cana_adubacaoorganicaestercoavicola*c_estercoavicola_teornitrogenio/100*c_fracgasm/100*c_n2o_ef3*conversor_nn2o_n2o*cana_areacultivada/1000),0,cana_adubacaoorganicaestercoavicola*c_estercoavicola_teornitrogenio/100*c_fracgasm/100*c_n2o_ef3*conversor_nn2o_n2o*cana_areacultivada/1000),IF(ISERROR(cana_adubacaoorganicaestercogeral*c_estercogeral_teornitrogenio/100*c_fracgasm/100*c_n2o_ef3*conversor_nn2o_n2o*cana_areacultivada/1000),0,cana_adubacaoorganicaestercogeral*c_estercogeral_teornitrogenio/100*c_fracgasm/100*c_n2o_ef3*conversor_nn2o_n2o*cana_areacultivada/1000),IF(ISERROR(cana_adubacaoorganicaoutros*c_aduboorganicogeral_teornitrogenio/100*c_fracgasm/100*c_n2o_ef3*conversor_nn2o_n2o*cana_areacultivada/1000),0,cana_adubacaoorganicaoutros*c_aduboorganicogeral_teornitrogenio/100*c_fracgasm/100*c_n2o_ef3*conversor_nn2o_n2o*cana_areacultivada/1000),IF(ISERROR(cana_adubacaoorganicatortafiltroquantidade*c_tortafiltro_teornitrogenio/100*c_fracgasm/100*c_n2o_ef3*conversor_nn2o_n2o*cana_areacultivada/1000),0,cana_adubacaoorganicatortafiltroquantidade*c_tortafiltro_teornitrogenio/100*c_fracgasm/100*c_n2o_ef3*conversor_nn2o_n2o*cana_areacultivada/1000),IF(ISERROR(cana_adubacaoorganicavinhaca*c_vinhaca_teornitrogenio/100*c_fracgasm/100*c_n2o_ef3*conversor_nn2o_n2o*cana_areacultivada/1000),0,cana_adubacaoorganicavinhaca*c_vinhaca_teornitrogenio/100*c_fracgasm/100*c_n2o_ef3*conversor_nn2o_n2o*cana_areacultivada/1000))","v":0},null,0]
[null,null,"Decomposição de resíduos","-",null,{"$f":"IF(ISERROR(((cana_produtividademedia*IF(cana_manejosolo=\"Cana-de-açúcar com queima\", c_residuocanacomqueima_n2o,IF(cana_manejosolo=\"Cana-de-açúcar sem queima\",c_residuocanasemqueima_n2o,0)))+(cana_adubacaoverdegraminea/1000*c_residuoadubacaoverdegraminea_n2o)+(cana_adubacaoverdeleguminosa/1000*c_residuoadubacaoverdeleguminosa_n2o)+(cana_adubacaoverdeoutros/1000*c_residuoadubacaoverdeoutros_n2o))*cana_areacultivada),0,((cana_produtividademedia*IF(cana_manejosolo=\"Cana-de-açúcar com queima\", c_residuocanacomqueima_n2o,IF(cana_manejosolo=\"Cana-de-açúcar sem queima\",c_residuocanasemqueima_n2o,0)))+(cana_adubacaoverdegraminea/1000*c_residuoadubacaoverdegraminea_n2o)+(cana_adubacaoverdeleguminosa/1000*c_residuoadubacaoverdeleguminosa_n2o)+(cana_adubacaoverdeoutros/1000*c_residuoadubacaoverdeoutros_n2o))*cana_areacultivada)","v":0},null,0]
[null,null,"Manejo de solos orgânicos","-",{"$f":"IF(ISERROR(cana_cultivosoloorganico*c_co2eq_cultivosolosorganicos),0,cana_cultivosoloorganico*c_co2eq_cultivosolosorganicos)","v":0},{"$f":"IF(ISERROR(cana_cultivosoloorganico*c_n2o_perdanitrogenio),0,cana_cultivosoloorganico*c_n2o_perdanitrogenio)","v":0},null,0]
[null,"Fontes mecânicas","Operações mecanizadas","-",{"$f":"SUM(IF(ISERROR(IF(cana_tipoconsumocombustivel=\"Quantidade consumida\",cana_consumodiesel*mistura_diesel_cana/100*c_mecanizacao_co2,IF(cana_tipoconsumocombustivel=\"Operações mecanizadas\",SUM(c_consumooperacoesmecanizadascana*c_diesel_consumomedio,c_consumooperacoesmecanizadascana_colheita)*c_mecanizacao_co2*mistura_diesel_cana/100,0))),0,IF(cana_tipoconsumocombustivel=\"Quantidade consumida\",cana_consumodiesel*mistura_diesel_cana/100*c_mecanizacao_co2,IF(cana_tipoconsumocombustivel=\"Operações mecanizadas\",SUM(c_consumooperacoesmecanizadascana*c_diesel_consumomedio,c_consumooperacoesmecanizadascana_colheita)*c_mecanizacao_co2*mistura_diesel_cana/100,0))),IF(ISERROR((cana_operacoesinternas_gasolina*mistura_gasolinacomum/100*c_emissao_gasolina_a_co2)),0,cana_operacoesinternas_gasolina*mistura_gasolinacomum/100*c_emissao_gasolina_a_co2))","v":0},{"$f":"IF(ISERROR(IF(cana_tipoconsumocombustivel=\"Quantidade consumida\",cana_consumodiesel*mistura_diesel_cana/100*c_mecanizacao_n2o,IF(cana_tipoconsumocombustivel=\"Operações mecanizadas\",SUM(c_consumooperacoesmecanizadascana*c_diesel_consumomedio,c_consumooperacoesmecanizadascana_colheita)*c_mecanizacao_n2o*mistura_diesel_cana/100,0))),0,IF(cana_tipoconsumocombustivel=\"Quantidade consumida\",cana_consumodiesel*mistura_diesel_cana/100*c_mecanizacao_n2o,IF(cana_tipoconsumocombustivel=\"Operações mecanizadas\",SUM(c_consumooperacoesmecanizadascana*c_diesel_consumomedio,c_consumooperacoesmecanizadascana_colheita)*c_mecanizacao_n2o*mistura_diesel_cana/100,0)))","v":0},{"$f":"IF(ISERROR(IF(cana_tipoconsumocombustivel=\"Quantidade consumida\",cana_consumodiesel*mistura_diesel_cana/100*c_mecanizacao_ch4,IF(cana_tipoconsumocombustivel=\"Operações mecanizadas\",SUM(c_consumooperacoesmecanizadascana*c_diesel_consumomedio,c_consumooperacoesmecanizadascana_colheita)*c_mecanizacao_ch4*mistura_diesel_cana/100,0))),0,IF(cana_tipoconsumocombustivel=\"Quantidade consumida\",cana_consumodiesel*mistura_diesel_cana/100*c_mecanizacao_ch4,IF(cana_tipoconsumocombustivel=\"Operações mecanizadas\",SUM(c_consumooperacoesmecanizadascana*c_diesel_consumomedio,c_consumooperacoesmecanizadascana_colheita)*c_mecanizacao_ch4*mistura_diesel_cana/100,0)))","v":0},0]
[null,"Mudança de uso do solo","Estoque inicial de carbono na veg. nativa","-",{"$f":"IF(AND(cana_usoanteriorterra =\"Floresta nativa\",ISNUMBER(cana_estoqueinicialcarbono)),cana_estoqueinicialcarbono*cana_areacultivada,0)","v":0},null,null,0]
[]
[null,"Tabela 5. Escopo 3."]
[null,null,null,null,"Emissões (tonelada)",null,null,"Total\n(tonelada de CO2 eq.)"]
[null,"Fonte",null,"Detalhes","CO2","N2O","CH4"]
[null,"Fontes mecânicas","Transporte da produção","-",{"$f":"SUM(IF(ISERROR(cana_transporteproducao_quantidade*mistura_diesel_transporte_cana/100*c_mecanizacao_co2),0,cana_transporteproducao_quantidade*mistura_diesel_transporte_cana/100*c_mecanizacao_co2),IF(ISERROR(cana_transporteproducao_quantidade*(1-mistura_diesel_transporte_cana/100)*c_emissao_biodiesel),0,cana_transporteproducao_quantidade*(1-mistura_diesel_transporte_cana/100)*c_emissao_biodiesel))","v":0},{"$f":"IF(ISERROR((cana_transporteproducao_quantidade* mistura_diesel_transporte_cana/100*c_mecanizacao_n2o)),0,(cana_transporteproducao_quantidade* mistura_diesel_transporte_cana/100*c_mecanizacao_n2o))","v":0},{"$f":"IF(ISERROR((cana_transporteproducao_quantidade* mistura_diesel_transporte_cana/100*c_mecanizacao_ch4)),0,(cana_transporteproducao_quantidade* mistura_diesel_transporte_cana/100*c_mecanizacao_ch4))","v":0},{"$f":"SUM(E191,F191*pag_n2o,G191*pag_ch4)","v":0}]
[]
[null,"Tabela 6.1. Processos biogênicos."]
[null,null,null,null,"Emissões (tonelada)",null,null,"Total\n(tonelada de CO2 eq.)"]
[null,"Fonte",null,"Detalhes","CO2","N2O","CH4"]
[null,"Biocombustíveis",null,"-",{"$f":"SUM(IF(ISERROR(IF(cana_tipoconsumocombustivel=\"Quantidade consumida\",cana_consumodiesel*(1-(mistura_diesel_cana/100))*c_emissao_biodiesel,IF(cana_tipoconsumocombustivel=\"Operações mecanizadas\",SUM(c_consumooperacoesmecanizadascana*c_diesel_consumomedio,c_consumooperacoesmecanizadascana_colheita)*(1-(mistura_diesel_cana/100))*c_emissao_biodiesel,0))),0,IF(cana_tipoconsumocombustivel=\"Quantidade consumida\",cana_consumodiesel*(1-(mistura_diesel_cana/100))*c_emissao_biodiesel,IF(cana_tipoconsumocombustivel=\"Operações mecanizadas\",SUM(c_consumooperacoesmecanizadascana*c_diesel_consumomedio,c_consumooperacoesmecanizadascana_colheita)*c_diesel_consumomedio*(1-(mistura_diesel_cana/100))*c_emissao_biodiesel,0))),IF(ISERROR((cana_operacoesinternas_gasolina*(1-(mistura_gasolinacomum/100))*c_emissao_etanol_anidro_co2)),0,cana_operacoesinternas_gasolina*(1-(mistura_gasolinacomum/100))*c_emissao_etanol_anidro_co2),IF(ISERROR(cana_operacoesinternas_etanol*c_emissao_etanol_hidratado_co2),0,cana_operacoesinternas_etanol*c_emissao_etanol_hidratado_co2))","v":0},null,null,{"$f":"SUM(E196,F196*pag_n2o,G196*pag_ch4)","v":0}]
[null,"Queima de resíduos",null,"-",{"$f":"IF(ISERROR(cana_areaqueimaresiduos*cana_produtividademedia*c_queimaresiduocana_co*conversor_co_co2),0,cana_areaqueimaresiduos*cana_produtividademedia*c_queimaresiduocana_co*conversor_co_co2)","v":0},{"$f":"IF(ISERROR((cana_areaqueimaresiduos*cana_produtividademedia*c_queimaresiduocana_n2o)+(cana_areaqueimaresiduos*cana_produtividademedia*c_queimaresiduocana_nox*conversor_no2_n2o)),0,(cana_areaqueimaresiduos*cana_produtividademedia*c_queimaresiduocana_n2o)+(cana_areaqueimaresiduos*cana_produtividademedia*c_queimaresiduocana_nox*conversor_no2_n2o))","v":0},{"$f":"IF(ISERROR(cana_areaqueimaresiduos*cana_produtividademedia*c_queimaresiduocana_ch4),0,cana_areaqueimaresiduos*cana_produtividademedia*c_queimaresiduocana_ch4)","v":0},{"$f":"SUM(E197,F197*pag_n2o,G197*pag_ch4)","v":0}]
[]
[null,"Tabela 6.2. Processos biogênicos."]
[null,null,null,null,"Remoções (tonelada)",null,null,"Total\n(tonelada de CO2 eq.)"]
[null,"Fonte",null,"Detalhes","CO2","N2O","CH4"]
[null,"Adubação verde",null,"-",{"$f":"IF(ISERROR(IF(SUM(cana_adubacaoverdeleguminosa,cana_adubacaoverdegraminea,cana_adubacaoverdeoutros)>0,cana_areacultivada*c_emissaobiogenica_adubacaoverde,0)),0,IF(SUM(cana_adubacaoverdeleguminosa,cana_adubacaoverdegraminea,cana_adubacaoverdeoutros)>0,cana_areacultivada*c_emissaobiogenica_adubacaoverde,0))","v":0},null,null,{"$f":"SUM(E202,F202*pag_n2o,G202*pag_ch4)","v":0}]
[]
[null,"Tabela 7. Mudança de uso e ocupação do solo."]
[null,null,null,null,"Emissões/remoções\n(tonelada)"]
[null,"Fonte",null,"Detalhes","CO2 eq."]
[null,"Mudança de uso e ocupação do solo",null,"-",{"$f":"IF(ISERROR(cana_areacultivada*(c_mudancausosolo_cana)),0,cana_areacultivada*(c_mudancausosolo_cana))","v":0}]
[]
[null,"Voltar ao topo da seção","Voltar ao topo da página"]
[]
[null,"Feijão"]
[]
[null,"Tabela 1. Emissões por escopo."]
[null,null,"Total\n(tonelada de CO2 eq.)","Por área cultivada\n(tonelada CO2 eq./hectare)","Por tonelada produzida\n(tonelada CO2 eq./tonelada)"]
[null,"Escopo 1",{"$f":"SUM(H234:H243)","v":0},{"$f":"IF(ISERROR(C215/feijao_areacultivada),0,C215/feijao_areacultivada)","v":0},{"$f":"IF(ISERROR(C215/(feijao_produtividademedia*feijao_areacultivada)),0,C215/(feijao_produtividademedia*feijao_areacultivada))","v":0}]
[null,"Escopo 2",{"$f":"feijao_consumoenergia","v":0},{"$f":"IF(ISERROR(C216/feijao_areacultivada),0,C216/feijao_areacultivada)","v":0},{"$f":"IF(ISERROR(C216/(feijao_produtividademedia*feijao_areacultivada)),0,C216/(feijao_produtividademedia*feijao_areacultivada))","v":0}]
[null,"Escopo 3",{"$f":"H248","v":0},{"$f":"IF(ISERROR(C217/feijao_areacultivada),0,C217/feijao_areacultivada)","v":0},{"$f":"IF(ISERROR(C217/(feijao_produtividademedia*feijao_areacultivada)),0,C217/(feijao_produtividademedia*feijao_areacultivada))","v":0}]
[]
[null,"Tabela 2.1. Emissões por processos biogênicos."]
[null,null,"Total\n(tonelada de CO2 eq.)","Por área cultivada\n(tonelada CO2 eq./hectare)","Por tonelada produzida\n(tonelada CO2 eq./tonelada)"]
[null,"Processos biogênicos",{"$f":"SUM(H253:H254)","v":0},{"$f":"IF(ISERROR(C221/feijao_areacultivada),0,C221/feijao_areacultivada)","v":0},{"$f":"IF(ISERROR(C221/(feijao_produtividademedia*feijao_areacultivada)),0,C221/(feijao_produtividademedia*feijao_areacultivada))","v":0}]
[]
[null,"Tabela 2.2. Remoções por processos biogênicos."]
[null,null,"Total\n(tonelada de CO2 eq.)","Por área cultivada\n(tonelada CO2 eq./hectare)","Por tonelada produzida\n(tonelada CO2 eq./tonelada)"]
[null,"Processos biogênicos",{"$f":"H259","v":0},{"$f":"IF(ISERROR(C225/feijao_areacultivada),0,C225/feijao_areacultivada)","v":0},{"$f":"IF(ISERROR(C225/(feijao_produtividademedia*feijao_areacultivada)),0,C225/(feijao_produtividademedia*feijao_areacultivada))","v":0}]
[]
[null,"Tabela 3. Emissões/remoções por mudança de uso e ocupação do solo."]
[null,null,"Total\n(tonelada de CO2 eq.)","Por área cultivada\n(tonelada CO2 eq./hectare)","Por tonelada produzida\n(tonelada CO2 eq./tonelada)"]
[null,"Mudança de uso e ocupação do solo",{"$f":"E264","v":0},{"$f":"IF(ISERROR(C229/feijao_areacultivada),0,C229/feijao_areacultivada)","v":0},{"$f":"IF(ISERROR(C229/(feijao_produtividademedia*feijao_areacultivada)),0,C229/(feijao_produtividademedia*feijao_areacultivada))","v":0}]
[]
[null,"Tabela 4. Escopo 1."]
[null,null,null,null,"Emissões (tonelada)",null,null,"Total\n(tonelada de CO2 eq.)"]
[null,"Fonte",null,"Detalhes","CO2","N2O","CH4"]
[null,"Fontes não-mecânicas","Aplicação de uréia","-",{"$f":"IF(ISERROR((c_co2_ureia*feijao_aplicacaoureia*feijao_areacultivada)/1000),0,(c_co2_ureia*feijao_aplicacaoureia*feijao_areacultivada)/1000)","v":0},{"$f":"IF(ISERROR((c_n2o_nitrogenioureia*((feijao_aplicacaoureia*c_ureia_teornitrogenio)/100)*feijao_areacultivada)/1000),0,(c_n2o_nitrogenioureia*((feijao_aplicacaoureia*c_ureia_teornitrogenio)/100)*feijao_areacultivada)/1000)","v":0},null,{"$f":"SUM(E234,F234*pag_n2o,G234*pag_ch4)","v":0}]
[null,null,"Calagem e gessagem","-",{"$f":"SUM(IF(ISERROR(feijao_calcariocalcitico*c_co2_calcariocalcitico*feijao_areacultivada/1000),0,feijao_calcariocalcitico*c_co2_calcariocalcitico*feijao_areacultivada/1000),IF(ISERROR(feijao_calcariodolomitico*c_co2_calcariodolomitico*feijao_areacultivada/1000),0,feijao_calcariodolomitico*c_co2_calcariodolomitico*feijao_areacultivada/1000),IF(ISERROR(feijao_gessoagricola*c_co2_gesso*feijao_areacultivada/1000),0,feijao_gessoagricola*c_co2_gesso*feijao_areacultivada/1000))","v":0},null,null,0]
[null,null,"Fertilizante nitrogenado sintético","Exceto ureia",null,{"$f":"IF(ISERROR((c_n2o_fertilizantesintetico*((feijao_adubacaonitrogenadasintetica*feijao_nadubosintetico)/100)*feijao_areacultivada)/1000),0,(c_n2o_fertilizantesintetico*((feijao_adubacaonitrogenadasintetica*feijao_nadubosintetico)/100)*feijao_areacultivada)/1000)","v":0},null,0]
[null,null,"Adubação orgânica","-",null,{"$f":"SUM(IF(ISERROR(feijao_adubacaoorganicacompostoorganico*c_n2o_compostoorganico*feijao_areacultivada/1000),0,feijao_adubacaoorganicacompostoorganico*c_n2o_compostoorganico*feijao_areacultivada/1000),IF(ISERROR(feijao_adubacaoorganicaestercoavicola*c_n2o_estercoavicola*feijao_areacultivada/1000),0,feijao_adubacaoorganicaestercoavicola*c_n2o_estercoavicola*feijao_areacultivada/1000),IF(ISERROR(feijao_adubacaoorganicaestercogeral*c_n2o_estercogeral*feijao_areacultivada/1000),0,feijao_adubacaoorganicaestercogeral*c_n2o_estercogeral*feijao_areacultivada/1000),IF(ISERROR(feijao_adubacaoorganicaoutros*c_n2o_aduboorganicogeral*feijao_areacultivada/1000),0,feijao_adubacaoorganicaoutros*c_n2o_aduboorganicogeral*feijao_areacultivada/1000))","v":0},null,0]
[null,null,"Lixiviação/escoamento superficial","Emissões indiretas",null,{"$f":"SUM(IF(ISERROR(feijao_aplicacaoureia*c_ureia_teornitrogenio/100*c_n2o_ef4*conversor_nn2o_n2o*c_fracleach/100*feijao_areacultivada/1000),0,feijao_aplicacaoureia*c_ureia_teornitrogenio/100*c_n2o_ef4*conversor_nn2o_n2o*c_fracleach/100*feijao_areacultivada/1000),IF(ISERROR(feijao_adubacaonitrogenadasintetica*feijao_nadubosintetico/100*c_n2o_ef4*conversor_nn2o_n2o*c_fracleach/100*feijao_areacultivada/1000),0,feijao_adubacaonitrogenadasintetica*feijao_nadubosintetico/100*c_n2o_ef4*conversor_nn2o_n2o*c_fracleach/100*feijao_areacultivada/1000),IF(ISERROR(feijao_adubacaoorganicacompostoorganico*c_compostoorganico_teornitrogenio/100*c_n2o_ef4*conversor_nn2o_n2o*c_fracleach/100*feijao_areacultivada/1000),0,feijao_adubacaoorganicacompostoorganico*c_compostoorganico_teornitrogenio/100*c_n2o_ef4*conversor_nn2o_n2o*c_fracleach/100*feijao_areacultivada/1000),IF(ISERROR(feijao_adubacaoorganicaestercogeral*c_estercogeral_teornitrogenio/100*c_n2o_ef4*conversor_nn2o_n2o*c_fracleach/100*feijao_areacultivada/1000),0,feijao_adubacaoorganicaestercogeral*c_estercogeral_teornitrogenio/100*c_n2o_ef4*conversor_nn2o_n2o*c_fracleach/100*feijao_areacultivada/1000),IF(ISERROR(feijao_adubacaoorganicaestercoavicola*c_estercoavicola_teornitrogenio/100*c_n2o_ef4*conversor_nn2o_n2o*c_fracleach/100*feijao_areacultivada/1000),0,feijao_adubacaoorganicaestercoavicola*c_estercoavicola_teornitrogenio/100*c_n2o_ef4*conversor_nn2o_n2o*c_fracleach/100*feijao_areacultivada/1000),IF(ISERROR(feijao_adubacaoorganicaoutros*c_aduboorganicogeral_teornitrogenio*c_n2o_ef4*conversor_nn2o_n2o*c_fracleach/100*feijao_areacultivada/1000),0,feijao_adubacaoorganicaoutros*c_aduboorganicogeral_teornitrogenio*c_n2o_ef4*conversor_nn2o_n2o*c_fracleach/100*feijao_areacultivada/1000))","v":0},null,0]
[null,null,"Deposição atm. de N volatilizado","Emissões indiretas",null,{"$f":"SUM(IF(ISERROR(feijao_aplicacaoureia*c_ureia_teornitrogenio/100*c_fracgasf/100*c_n2o_ef3*conversor_nn2o_n2o*feijao_areacultivada/1000),0,feijao_aplicacaoureia*c_ureia_teornitrogenio/100*c_fracgasf/100*c_n2o_ef3*conversor_nn2o_n2o*feijao_areacultivada/1000),IF(ISERROR(feijao_adubacaonitrogenadasintetica*feijao_nadubosintetico/100*c_fracgasf/100*c_n2o_ef3*conversor_nn2o_n2o*feijao_areacultivada/1000),0,feijao_adubacaonitrogenadasintetica*feijao_nadubosintetico/100*c_fracgasf/100*c_n2o_ef3*conversor_nn2o_n2o*feijao_areacultivada/1000),IF(ISERROR(feijao_adubacaoorganicacompostoorganico*c_compostoorganico_teornitrogenio/100*c_fracgasm/100*c_n2o_ef3*conversor_nn2o_n2o*feijao_areacultivada/1000),0,feijao_adubacaoorganicacompostoorganico*c_compostoorganico_teornitrogenio/100*c_fracgasm/100*c_n2o_ef3*conversor_nn2o_n2o*feijao_areacultivada/1000),IF(ISERROR(feijao_adubacaoorganicaestercoavicola*c_estercoavicola_teornitrogenio/100*c_fracgasm/100*c_n2o_ef3*conversor_nn2o_n2o*feijao_areacultivada/1000),0,feijao_adubacaoorganicaestercoavicola*c_estercoavicola_teornitrogenio/100*c_fracgasm/100*c_n2o_ef3*conversor_nn2o_n2o*feijao_areacultivada/1000),IF(ISERROR(feijao_adubacaoorganicaestercogeral*c_estercogeral_teornitrogenio/100*c_fracgasm/100*c_n2o_ef3*conversor_nn2o_n2o*feijao_areacultivada/1000),0,feijao_adubacaoorganicaestercogeral*c_estercogeral_teornitrogenio/100*c_fracgasm/100*c_n2o_ef3*conversor_nn2o_n2o*feijao_areacultivada/1000),IF(ISERROR(feijao_adubacaoorganicaoutros*c_aduboorganicogeral_teornitrogenio/100*c_fracgasm/100*c_n2o_ef3*conversor_nn2o_n2o*feijao_areacultivada/1000),0,feijao_adubacaoorganicaoutros*c_aduboorganicogeral_teornitrogenio/100*c_fracgasm/100*c_n2o_ef3*conversor_nn2o_n2o*feijao_areacultivada/1000))","v":0},null,0]
[null,null,"Decomposição de resíduos","-",null,{"$f":"IF(ISERROR(((feijao_produtividademedia*c_residuofeijao_n2o)+(feijao_adubacaoverdegraminea/1000*c_residuoadubacaoverdegraminea_n2o)+(feijao_adubacaoverdeleguminosa/1000*c_residuoadubacaoverdeleguminosa_n2o)+(feijao_adubacaoverdeoutros/1000*c_residuoadubacaoverdeoutros_n2o))*feijao_areacultivada),0,((feijao_produtividademedia*c_residuofeijao_n2o)+(feijao_adubacaoverdegraminea/1000*c_residuoadubacaoverdegraminea_n2o)+(feijao_adubacaoverdeleguminosa/1000*c_residuoadubacaoverdeleguminosa_n2o)+(feijao_adubacaoverdeoutros/1000*c_residuoadubacaoverdeoutros_n2o))*feijao_areacultivada)","v":0},null,0]
[null,null,"Manejo de solos orgânicos","-",{"$f":"IF(ISERROR(feijao_cultivosoloorganico*c_co2eq_cultivosolosorganicos),0,feijao_cultivosoloorganico*c_co2eq_cultivosolosorganicos)","v":0},{"$f":"IF(ISERROR(feijao_cultivosoloorganico*c_n2o_perdanitrogenio),0,feijao_cultivosoloorganico*c_n2o_perdanitrogenio)","v":0},null,0]
[null,"Fontes mecânicas","Operações mecanizadas","-",{"$f":"SUM(IF(ISERROR(IF(feijao_tipoconsumocombustivel=\"Quantidade consumida\",feijao_consumodiesel*mistura_diesel_feijao/100*c_mecanizacao_co2,IF(feijao_tipoconsumocombustivel=\"Operações mecanizadas\",c_consumooperacoesmecanizadasfeijao*c_diesel_consumomedio*c_mecanizacao_co2*mistura_diesel_feijao/100,0))),0,IF(feijao_tipoconsumocombustivel=\"Quantidade consumida\",feijao_consumodiesel*mistura_diesel_feijao/100*c_mecanizacao_co2,IF(feijao_tipoconsumocombustivel=\"Operações mecanizadas\",c_consumooperacoesmecanizadasfeijao*c_diesel_consumomedio*c_mecanizacao_co2*mistura_diesel_feijao/100,0))),IF(ISERROR((feijao_operacoesinternas_gasolina*mistura_gasolinacomum/100*c_emissao_gasolina_a_co2)),0,feijao_operacoesinternas_gasolina*mistura_gasolinacomum/100*c_emissao_gasolina_a_co2))","v":0},{"$f":"IF(ISERROR(IF(feijao_tipoconsumocombustivel=\"Quantidade consumida\",feijao_consumodiesel*mistura_diesel_feijao/100*c_mecanizacao_n2o,IF(feijao_tipoconsumocombustivel=\"Operações mecanizadas\",c_consumooperacoesmecanizadasfeijao*c_diesel_consumomedio*c_mecanizacao_n2o*mistura_diesel_feijao/100,0))),0,IF(feijao_tipoconsumocombustivel=\"Quantidade consumida\",feijao_consumodiesel*mistura_diesel_feijao/100*c_mecanizacao_n2o,IF(feijao_tipoconsumocombustivel=\"Operações mecanizadas\",c_consumooperacoesmecanizadasfeijao*c_diesel_consumomedio*c_mecanizacao_n2o*mistura_diesel_feijao/100,0)))","v":0},{"$f":"IF(ISERROR(IF(feijao_tipoconsumocombustivel=\"Quantidade consumida\",feijao_consumodiesel*mistura_diesel_feijao/100*c_mecanizacao_ch4,IF(feijao_tipoconsumocombustivel=\"Operações mecanizadas\",c_consumooperacoesmecanizadasfeijao*c_diesel_consumomedio*c_mecanizacao_ch4*mistura_diesel_feijao/100,0))),0,IF(feijao_tipoconsumocombustivel=\"Quantidade consumida\",feijao_consumodiesel*mistura_diesel_feijao/100*c_mecanizacao_ch4,IF(feijao_tipoconsumocombustivel=\"Operações mecanizadas\",c_consumooperacoesmecanizadasfeijao*c_diesel_consumomedio*c_mecanizacao_ch4*mistura_diesel_feijao/100,0)))","v":0},0]
[null,"Mudança de uso do solo","Estoque inicial de carbono na veg. nativa","-",{"$f":"IF(AND(feijao_usoanteriorterra =\"Floresta nativa\",ISNUMBER(feijao_estoqueinicialcarbono)),feijao_estoqueinicialcarbono*feijao_areacultivada,0)","v":0},null,null,0]
[]
[null,"Tabela 5. Escopo 3."]
[null,null,null,null,"Emissões (tonelada)",null,null,"Total\n(tonelada de CO2 eq.)"]
[null,"Fonte",null,"Detalhes","CO2","N2O","CH4"]
[null,"Fontes mecânicas","Transporte da produção","-",{"$f":"SUM(IF(ISERROR(feijao_transporteproducao_quantidade*mistura_diesel_transporte_feijao/100*c_mecanizacao_co2),0,feijao_transporteproducao_quantidade*mistura_diesel_transporte_feijao/100*c_mecanizacao_co2),IF(ISERROR(feijao_transporteproducao_quantidade*(1-mistura_diesel_transporte_feijao/100)*c_emissao_biodiesel),0,feijao_transporteproducao_quantidade*(1-mistura_diesel_transporte_feijao/100)*c_emissao_biodiesel))","v":0},{"$f":"IF(ISERROR((feijao_transporteproducao_quantidade* mistura_diesel_transporte_feijao/100*c_mecanizacao_n2o)),0,(feijao_transporteproducao_quantidade* mistura_diesel_transporte_feijao/100*c_mecanizacao_n2o))","v":0},{"$f":"IF(ISERROR((feijao_transporteproducao_quantidade* mistura_diesel_transporte_feijao/100*c_mecanizacao_ch4)),0,(feijao_transporteproducao_quantidade* mistura_diesel_transporte_feijao/100*c_mecanizacao_ch4))","v":0},{"$f":"SUM(E248,F248*pag_n2o,G248*pag_ch4)","v":0}]
[]
[null,"Tabela 6.1. Processos biogênicos."]
[null,null,null,null,"Emissões (tonelada)",null,null,"Total\n(tonelada de CO2 eq.)"]
[null,"Fonte",null,"Detalhes","CO2","N2O","CH4"]
[null,"Biocombustíveis",null,"-",{"$f":"SUM(IF(ISERROR(IF(feijao_tipoconsumocombustivel=\"Quantidade consumida\",feijao_consumodiesel*(1-(mistura_diesel_feijao/100))*c_emissao_biodiesel,IF(feijao_tipoconsumocombustivel=\"Operações mecanizadas\",c_consumooperacoesmecanizadasfeijao*c_diesel_consumomedio*(1-(mistura_diesel_feijao/100))*c_emissao_biodiesel,0))),0,IF(feijao_tipoconsumocombustivel=\"Quantidade consumida\",feijao_consumodiesel*(1-(mistura_diesel_feijao/100))*c_emissao_biodiesel,IF(feijao_tipoconsumocombustivel=\"Operações mecanizadas\",c_consumooperacoesmecanizadasfeijao*c_diesel_consumomedio*(1-(mistura_diesel_feijao/100))*c_emissao_biodiesel,0))),IF(ISERROR((feijao_operacoesinternas_gasolina*(1-(mistura_gasolinacomum/100))*c_emissao_etanol_anidro_co2)),0,feijao_operacoesinternas_gasolina*(1-(mistura_gasolinacomum/100))*c_emissao_etanol_anidro_co2),IF(ISERROR(feijao_operacoesinternas_etanol*c_emissao_etanol_hidratado_co2),0,feijao_operacoesinternas_etanol*c_emissao_etanol_hidratado_co2))","v":0},null,null,{"$f":"SUM(E253,F253*pag_n2o,G253*pag_ch4)","v":0}]
[null,"Queima de resíduos",null,"-",{"$f":"IF(ISERROR(feijao_areaqueimaresiduos*feijao_produtividademedia*c_queimaresiduofeijao_co*conversor_co_co2),0,feijao_areaqueimaresiduos*feijao_produtividademedia*c_queimaresiduofeijao_co*conversor_co_co2)","v":0},{"$f":"IF(ISERROR((feijao_areaqueimaresiduos*feijao_produtividademedia*c_queimaresiduofeijao_n2o)+(feijao_areaqueimaresiduos*feijao_produtividademedia*c_queimaresiduofeijao_nox*conversor_no2_n2o)),0,(feijao_areaqueimaresiduos*feijao_produtividademedia*c_queimaresiduofeijao_n2o)+(feijao_areaqueimaresiduos*feijao_produtividademedia*c_queimaresiduofeijao_nox*conversor_no2_n2o))","v":0},{"$f":"IF(ISERROR(feijao_areaqueimaresiduos*feijao_produtividademedia*c_queimaresiduofeijao_ch4),0,feijao_areaqueimaresiduos*feijao_produtividademedia*c_queimaresiduofeijao_ch4)","v":0},{"$f":"SUM(E254,F254*pag_n2o,G254*pag_ch4)","v":0}]
[]
[null,"Tabela 6.2. Processos biogênicos."]
[null,null,null,null,"Remoções (tonelada)",null,null,"Total\n(tonelada de CO2 eq.)"]
[null,"Fonte",null,"Detalhes","CO2","N2O","CH4"]
[null,"Adubação verde",null,"-",{"$f":"IF(ISERROR(IF(SUM(feijao_adubacaoverdeleguminosa,feijao_adubacaoverdegraminea,feijao_adubacaoverdeoutros)>0,feijao_areacultivada*c_emissaobiogenica_adubacaoverde,0)),0,IF(SUM(feijao_adubacaoverdeleguminosa,feijao_adubacaoverdegraminea,feijao_adubacaoverdeoutros)>0,feijao_areacultivada*c_emissaobiogenica_adubacaoverde,0))","v":0},null,null,{"$f":"SUM(E259,F259*pag_n2o,G259*pag_ch4)","v":0}]
[]
[null,"Tabela 7. Mudança de uso e ocupação do solo."]
[null,null,null,null,"Emissões/remoções\n(tonelada)"]
[null,"Fonte",null,"Detalhes","CO2 eq."]
[null,"Mudança de uso e ocupação do solo",null,"-",{"$f":"IF(ISERROR(feijao_areacultivada*(c_mudancausosolo_feijao)),0,feijao_areacultivada*(c_mudancausosolo_feijao))","v":0}]
[]
[null,"Voltar ao topo da seção","Voltar ao topo da página"]
[]
[null,"Milho"]
[]
[null,"Tabela 1. Emissões por escopo."]
[null,null,"Total\n(tonelada de CO2 eq.)","Por área cultivada\n(tonelada CO2 eq./hectare)","Por tonelada produzida\n(tonelada CO2 eq./tonelada)"]
[null,"Escopo 1",{"$f":"SUM(H291:H300)","v":0},{"$f":"IF(ISERROR(C272/milho_areacultivada),0,C272/milho_areacultivada)","v":0},{"$f":"IF(ISERROR(C272/(milho_produtividademedia*milho_areacultivada)),0,C272/(milho_produtividademedia*milho_areacultivada))","v":0}]
[null,"Escopo 2",{"$f":"milho_consumoenergia","v":0},{"$f":"IF(ISERROR(C273/milho_areacultivada),0,C273/milho_areacultivada)","v":0},{"$f":"IF(ISERROR(C273/(milho_produtividademedia*milho_areacultivada)),0,C273/(milho_produtividademedia*milho_areacultivada))","v":0}]
[null,"Escopo 3",{"$f":"H305","v":0},{"$f":"IF(ISERROR(C274/milho_areacultivada),0,C274/milho_areacultivada)","v":0},{"$f":"IF(ISERROR(C274/(milho_produtividademedia*milho_areacultivada)),0,C274/(milho_produtividademedia*milho_areacultivada))","v":0}]
[]
[null,"Tabela 2.1. Emissões por processos biogênicos."]
[null,null,"Total\n(tonelada de CO2 eq.)","Por área cultivada\n(tonelada CO2 eq./hectare)","Por tonelada produzida\n(tonelada CO2 eq./tonelada)"]
[null,"Processos biogênicos",{"$f":"SUM(H310:H311)","v":0},{"$f":"IF(ISERROR(C278/milho_areacultivada),0,C278/milho_areacultivada)","v":0},{"$f":"IF(ISERROR(C278/(milho_produtividademedia*milho_areacultivada)),0,C278/(milho_produtividademedia*milho_areacultivada))","v":0}]
[]
[null,"Tabela 2.2. Emissões por processos biogênicos."]
[null,null,"Total\n(tonelada de CO2 eq.)","Por área cultivada\n(tonelada CO2 eq./hectare)","Por tonelada produzida\n(tonelada CO2 eq./tonelada)"]
[null,"Processos biogênicos",{"$f":"H316","v":0},{"$f":"IF(ISERROR(C282/milho_areacultivada),0,C282/milho_areacultivada)","v":0},{"$f":"IF(ISERROR(C282/(milho_produtividademedia*milho_areacultivada)),0,C282/(milho_produtividademedia*milho_areacultivada))","v":0}]
[]
[null,"Tabela 3. Emissões/remoções por mudança de uso e ocupação do solo."]
[null,null,"Total\n(tonelada de CO2 eq.)","Por área cultivada\n(tonelada CO2 eq./hectare)","Por tonelada produzida\n(tonelada CO2 eq./tonelada)"]
[null,"Mudança de uso e ocupação do solo",{"$f":"E321","v":0},{"$f":"IF(ISERROR(C286/milho_areacultivada),0,C286/milho_areacultivada)","v":0},{"$f":"IF(ISERROR(C286/(milho_produtividademedia*milho_areacultivada)),0,C286/(milho_produtividademedia*milho_areacultivada))","v":0}]
[]
[null,"Tabela 4. Escopo 1."]
[null,null,null,null,"Emissões (tonelada)",null,null,"Total\n(tonelada de CO2 eq.)"]
[null,"Fonte",null,"Detalhes","CO2","N2O","CH4"]
[null,"Fontes não-mecânicas","Aplicação de uréia","-",{"$f":"IF(ISERROR((c_co2_ureia*milho_aplicacaoureia*milho_areacultivada)/1000),0,(c_co2_ureia*milho_aplicacaoureia*milho_areacultivada)/1000)","v":0},{"$f":"IF(ISERROR((c_n2o_nitrogenioureia*((milho_aplicacaoureia*c_ureia_teornitrogenio)/100)*milho_areacultivada)/1000),0,(c_n2o_nitrogenioureia*((milho_aplicacaoureia*c_ureia_teornitrogenio)/100)*milho_areacultivada)/1000)","v":0},null,{"$f":"SUM(E291,F291*pag_n2o,G291*pag_ch4)","v":0}]
[null,null,"Calagem e gessagem","-",{"$f":"SUM(IF(ISERROR(milho_calcariocalcitico*c_co2_calcariocalcitico*milho_areacultivada/1000),0,milho_calcariocalcitico*c_co2_calcariocalcitico*milho_areacultivada/1000),IF(ISERROR(milho_calcariodolomitico*c_co2_calcariodolomitico*milho_areacultivada/1000),0,milho_calcariodolomitico*c_co2_calcariodolomitico*milho_areacultivada/1000),IF(ISERROR(milho_gessoagricola*c_co2_gesso*milho_areacultivada/1000),0,milho_gessoagricola*c_co2_gesso*milho_areacultivada/1000))","v":0},null,null,0]
[null,null,"Fertilizante nitrogenado sintético","Exceto ureia",null,{"$f":"IF(ISERROR(c_n2o_fertilizantesintetico*((milho_adubacaonitrogenadasintetica*milho_nadubosintetico)/100)*milho_areacultivada/1000),0,c_n2o_fertilizantesintetico*((milho_adubacaonitrogenadasintetica*milho_nadubosintetico)/100)*milho_areacultivada/1000)","v":0},null,0]
[null,null,"Adubação orgânica","-",null,{"$f":"SUM(IF(ISERROR(milho_adubacaoorganicacompostoorganico*c_n2o_compostoorganico*milho_areacultivada/1000),0,milho_adubacaoorganicacompostoorganico*c_n2o_compostoorganico*milho_areacultivada/1000),IF(ISERROR(milho_adubacaoorganicaestercoavicola*c_n2o_estercoavicola*milho_areacultivada/1000),0,milho_adubacaoorganicaestercoavicola*c_n2o_estercoavicola*milho_areacultivada/1000),IF(ISERROR(milho_adubacaoorganicaestercogeral*c_n2o_estercogeral*milho_areacultivada/1000),0,milho_adubacaoorganicaestercogeral*c_n2o_estercogeral*milho_areacultivada/1000),IF(ISERROR(milho_adubacaoorganicaoutros*c_n2o_aduboorganicogeral*milho_areacultivada/1000),0,milho_adubacaoorganicaoutros*c_n2o_aduboorganicogeral*milho_areacultivada/1000))","v":0},null,0]
[null,null,"Lixiviação/escoamento superficial","Emissões indiretas",null,{"$f":"SUM(IF(ISERROR(milho_aplicacaoureia*c_ureia_teornitrogenio/100*c_n2o_ef4*conversor_nn2o_n2o*c_fracleach/100*milho_areacultivada/1000),0,milho_aplicacaoureia*c_ureia_teornitrogenio/100*c_n2o_ef4*conversor_nn2o_n2o*c_fracleach/100*milho_areacultivada/1000),IF(ISERROR(milho_adubacaonitrogenadasintetica*milho_nadubosintetico/100*c_n2o_ef4*conversor_nn2o_n2o*c_fracleach/100*milho_areacultivada/1000),0,milho_adubacaonitrogenadasintetica*milho_nadubosintetico/100*c_n2o_ef4*conversor_nn2o_n2o*c_fracleach/100*milho_areacultivada/1000),IF(ISERROR(milho_adubacaoorganicacompostoorganico*c_compostoorganico_teornitrogenio/100*c_n2o_ef4*conversor_nn2o_n2o*c_fracleach/100*milho_areacultivada/1000),0,milho_adubacaoorganicacompostoorganico*c_compostoorganico_teornitrogenio/100*c_n2o_ef4*conversor_nn2o_n2o*c_fracleach/100*milho_areacultivada/1000),IF(ISERROR(milho_adubacaoorganicaestercogeral*c_estercogeral_teornitrogenio/100*c_n2o_ef4*conversor_nn2o_n2o*c_fracleach/100*milho_areacultivada/1000),0,milho_adubacaoorganicaestercogeral*c_estercogeral_teornitrogenio/100*c_n2o_ef4*conversor_nn2o_n2o*c_fracleach/100*milho_areacultivada/1000),IF(ISERROR(milho_adubacaoorganicaestercoavicola*c_estercoavicola_teornitrogenio/100*c_n2o_ef4*conversor_nn2o_n2o*c_fracleach/100*milho_areacultivada/1000),0,milho_adubacaoorganicaestercoavicola*c_estercoavicola_teornitrogenio/100*c_n2o_ef4*conversor_nn2o_n2o*c_fracleach/100*milho_areacultivada/1000),IF(ISERROR(milho_adubacaoorganicaoutros*c_aduboorganicogeral_teornitrogenio*c_n2o_ef4*conversor_nn2o_n2o*c_fracleach/100*milho_areacultivada/1000),0,milho_adubacaoorganicaoutros*c_aduboorganicogeral_teornitrogenio*c_n2o_ef4*conversor_nn2o_n2o*c_fracleach/100*milho_areacultivada/1000))","v":0},null,0]
[null,null,"Deposição atm. de N volatilizado","Emissões indiretas",null,{"$f":"SUM(IF(ISERROR(milho_aplicacaoureia*c_ureia_teornitrogenio/100*c_fracgasf/100*c_n2o_ef3*conversor_nn2o_n2o*milho_areacultivada/1000),0,milho_aplicacaoureia*c_ureia_teornitrogenio/100*c_fracgasf/100*c_n2o_ef3*conversor_nn2o_n2o*milho_areacultivada/1000),IF(ISERROR(milho_adubacaonitrogenadasintetica*milho_nadubosintetico/100*c_fracgasf/100*c_n2o_ef3*conversor_nn2o_n2o*milho_areacultivada/1000),0,milho_adubacaonitrogenadasintetica*milho_nadubosintetico/100*c_fracgasf/100*c_n2o_ef3*conversor_nn2o_n2o*milho_areacultivada/1000),IF(ISERROR(milho_adubacaoorganicacompostoorganico*c_compostoorganico_teornitrogenio/100*c_fracgasm/100*c_n2o_ef3*conversor_nn2o_n2o*milho_areacultivada/1000),0,milho_adubacaoorganicacompostoorganico*c_compostoorganico_teornitrogenio/100*c_fracgasm/100*c_n2o_ef3*conversor_nn2o_n2o*milho_areacultivada/1000),IF(ISERROR(milho_adubacaoorganicaestercoavicola*c_estercoavicola_teornitrogenio/100*c_fracgasm/100*c_n2o_ef3*conversor_nn2o_n2o*milho_areacultivada/1000),0,milho_adubacaoorganicaestercoavicola*c_estercoavicola_teornitrogenio/100*c_fracgasm/100*c_n2o_ef3*conversor_nn2o_n2o*milho_areacultivada/1000),IF(ISERROR(milho_adubacaoorganicaestercogeral*c_estercogeral_teornitrogenio/100*c_fracgasm/100*c_n2o_ef3*conversor_nn2o_n2o*milho_areacultivada/1000),0,milho_adubacaoorganicaestercogeral*c_estercogeral_teornitrogenio/100*c_fracgasm/100*c_n2o_ef3*conversor_nn2o_n2o*milho_areacultivada/1000),IF(ISERROR(milho_adubacaoorganicaoutros*c_aduboorganicogeral_teornitrogenio/100*c_fracgasm/100*c_n2o_ef3*conversor_nn2o_n2o*milho_areacultivada/1000),0,milho_adubacaoorganicaoutros*c_aduboorganicogeral_teornitrogenio/100*c_fracgasm/100*c_n2o_ef3*conversor_nn2o_n2o*milho_areacultivada/1000))","v":0},null,{"$f":"SUM(E296,F296*pag_n2o,G296*pag_ch4)","v":0}]
[null,null,"Decomposição de resíduos","-",null,{"$f":"IF(ISERROR(((milho_produtividademedia*c_residuomilho_n2o)+((milho_adubacaoverdegraminea/1000*c_residuoadubacaoverdegraminea_n2o)+(milho_adubacaoverdeleguminosa/1000*c_residuoadubacaoverdeleguminosa_n2o)+(milho_adubacaoverdeoutros/1000*c_residuoadubacaoverdeoutros_n2o)))*milho_areacultivada),0,((milho_produtividademedia*c_residuomilho_n2o)+((milho_adubacaoverdegraminea/1000*c_residuoadubacaoverdegraminea_n2o)+(milho_adubacaoverdeleguminosa/1000*c_residuoadubacaoverdeleguminosa_n2o)+(milho_adubacaoverdeoutros/1000*c_residuoadubacaoverdeoutros_n2o)))*milho_areacultivada)","v":0},null,0]
[null,null,"Manejo de solos orgânicos","-",{"$f":"IF(ISERROR(milho_cultivosoloorganico*c_co2eq_cultivosolosorganicos),0,milho_cultivosoloorganico*c_co2eq_cultivosolosorganicos)","v":0},{"$f":"IF(ISERROR(milho_cultivosoloorganico*c_n2o_perdanitrogenio),0,milho_cultivosoloorganico*c_n2o_perdanitrogenio)","v":0},null,0]
[null,"Fontes mecânicas","Operações mecanizadas","-",{"$f":"SUM(IF(ISERROR(IF(milho_tipoconsumocombustivel=\"Quantidade consumida\",milho_consumodiesel*mistura_diesel_milho/100*c_mecanizacao_co2,IF(milho_tipoconsumocombustivel=\"Operações mecanizadas\",c_consumooperacoesmecanizadasmilho*c_diesel_consumomedio*c_mecanizacao_co2*mistura_diesel_milho/100,0))),0,IF(milho_tipoconsumocombustivel=\"Quantidade consumida\",milho_consumodiesel*mistura_diesel_milho/100*c_mecanizacao_co2,IF(milho_tipoconsumocombustivel=\"Operações mecanizadas\",c_consumooperacoesmecanizadasmilho*c_diesel_consumomedio*c_mecanizacao_co2*mistura_diesel_milho/100,0))),IF(ISERROR((milho_operacoesinternas_gasolina*mistura_gasolinacomum/100*c_emissao_gasolina_a_co2)),0,milho_operacoesinternas_gasolina*mistura_gasolinacomum/100*c_emissao_gasolina_a_co2))","v":0},{"$f":"IF(ISERROR(IF(milho_tipoconsumocombustivel=\"Quantidade consumida\",milho_consumodiesel*mistura_diesel_milho/100*c_mecanizacao_n2o,IF(milho_tipoconsumocombustivel=\"Operações mecanizadas\",c_consumooperacoesmecanizadasmilho*c_diesel_consumomedio*c_mecanizacao_n2o*mistura_diesel_milho/100,0))),0,IF(milho_tipoconsumocombustivel=\"Quantidade consumida\",milho_consumodiesel*mistura_diesel_milho/100*c_mecanizacao_n2o,IF(milho_tipoconsumocombustivel=\"Operações mecanizadas\",c_consumooperacoesmecanizadasmilho*c_diesel_consumomedio*c_mecanizacao_n2o*mistura_diesel_milho/100,0)))","v":0},{"$f":"IF(ISERROR(IF(milho_tipoconsumocombustivel=\"Quantidade consumida\",milho_consumodiesel*mistura_diesel_milho/100*c_mecanizacao_ch4,IF(milho_tipoconsumocombustivel=\"Operações mecanizadas\",c_consumooperacoesmecanizadasmilho*c_diesel_consumomedio*c_mecanizacao_ch4*mistura_diesel_milho/100,0))),0,IF(milho_tipoconsumocombustivel=\"Quantidade consumida\",milho_consumodiesel*mistura_diesel_milho/100*c_mecanizacao_ch4,IF(milho_tipoconsumocombustivel=\"Operações mecanizadas\",c_consumooperacoesmecanizadasmilho*c_diesel_consumomedio*c_mecanizacao_ch4*mistura_diesel_milho/100,0)))","v":0},0]
[null,"Mudança de uso do solo","Estoque inicial de carbono na veg. nativa","-",{"$f":"IF(AND(milho_usoanteriorterra =\"Floresta nativa\",ISNUMBER(milho_estoqueinicialcarbono)),milho_estoqueinicialcarbono*milho_areacultivada,0)","v":0},null,null,0]
[]
[null,"Tabela 5. Escopo 3."]
[null,null,null,null,"Emissões (tonelada)",null,null,"Total\n(tonelada de CO2 eq.)"]
[null,"Fonte",null,"Detalhes","CO2","N2O","CH4"]
[null,"Fontes mecânicas","Transporte da produção","-",{"$f":"SUM(IF(ISERROR(milho_transporteproducao_quantidade*mistura_diesel_transporte_milho/100*c_mecanizacao_co2),0,milho_transporteproducao_quantidade*mistura_diesel_transporte_milho/100*c_mecanizacao_co2),IF(ISERROR(milho_transporteproducao_quantidade*(1-mistura_diesel_transporte_milho/100)*c_emissao_biodiesel),0,milho_transporteproducao_quantidade*(1-mistura_diesel_transporte_milho/100)*c_emissao_biodiesel))","v":0},{"$f":"IF(ISERROR((milho_transporteproducao_quantidade* mistura_diesel_transporte_milho/100*c_mecanizacao_n2o)),0,(milho_transporteproducao_quantidade* mistura_diesel_transporte_milho/100*c_mecanizacao_n2o))","v":0},{"$f":"IF(ISERROR((milho_transporteproducao_quantidade* mistura_diesel_transporte_milho/100*c_mecanizacao_ch4)),0,(milho_transporteproducao_quantidade* mistura_diesel_transporte_milho/100*c_mecanizacao_ch4))","v":0},{"$f":"SUM(E305,F305*pag_n2o,G305*pag_ch4)","v":0}]
[]
[null,"Tabela 6.1. Processos biogênicos."]
[null,null,null,null,"Emissões (tonelada)",null,null,"Total\n(tonelada de CO2 eq.)"]
[null,"Fonte",null,"Detalhes","CO2","N2O","CH4"]
[null,"Biocombustíveis",null,"-",{"$f":"SUM(IF(ISERROR(IF(milho_tipoconsumocombustivel=\"Quantidade consumida\",milho_consumodiesel*(1-(mistura_diesel_milho/100))*c_emissao_biodiesel,IF(milho_tipoconsumocombustivel=\"Operações mecanizadas\",c_consumooperacoesmecanizadasmilho*c_diesel_consumomedio*(1-(mistura_diesel_milho/100))*c_emissao_biodiesel,0))),0,IF(milho_tipoconsumocombustivel=\"Quantidade consumida\",milho_consumodiesel*(1-(mistura_diesel_milho/100))*c_emissao_biodiesel,IF(milho_tipoconsumocombustivel=\"Operações mecanizadas\",c_consumooperacoesmecanizadasmilho*c_diesel_consumomedio*(1-(mistura_diesel_milho/100))*c_emissao_biodiesel,0))),IF(ISERROR((milho_operacoesinternas_gasolina*(1-(mistura_gasolinacomum/100))*c_emissao_etanol_anidro_co2)),0,milho_operacoesinternas_gasolina*(1-(mistura_gasolinacomum/100))*c_emissao_etanol_anidro_co2),IF(ISERROR(milho_operacoesinternas_etanol*c_emissao_etanol_hidratado_co2),0,milho_operacoesinternas_etanol*c_emissao_etanol_hidratado_co2))","v":0},null,null,{"$f":"SUM(E310,F310*pag_n2o,G310*pag_ch4)","v":0}]
[null,"Queima de resíduos",null,"-",{"$f":"IF(ISERROR(milho_areaqueimaresiduos*milho_produtividademedia*c_queimaresiduomilho_co*conversor_co_co2),0,milho_areaqueimaresiduos*milho_produtividademedia*c_queimaresiduomilho_co*conversor_co_co2)","v":0},{"$f":"IF(ISERROR((milho_areaqueimaresiduos*milho_produtividademedia*c_queimaresiduomilho_n2o)+(milho_areaqueimaresiduos*milho_produtividademedia*c_queimaresiduomilho_nox*conversor_no2_n2o)),0,(milho_areaqueimaresiduos*milho_produtividademedia*c_queimaresiduomilho_n2o)+(milho_areaqueimaresiduos*milho_produtividademedia*c_queimaresiduomilho_nox*conversor_no2_n2o))","v":0},{"$f":"IF(ISERROR(milho_areaqueimaresiduos*milho_produtividademedia*c_queimaresiduomilho_ch4),0,milho_areaqueimaresiduos*milho_produtividademedia*c_queimaresiduomilho_ch4)","v":0},{"$f":"SUM(E311,F311*pag_n2o,G311*pag_ch4)","v":0}]
[]
[null,"Tabela 6.2. Processos biogênicos."]
[null,null,null,null,"Remoções (tonelada)",null,null,"Total\n(tonelada de CO2 eq.)"]
[null,"Fonte",null,"Detalhes","CO2","N2O","CH4"]
[null,"Adubação verde",null,"-",{"$f":"IF(ISERROR(IF(SUM(milho_adubacaoverdeleguminosa,milho_adubacaoverdegraminea,milho_adubacaoverdeoutros)>0,milho_areacultivada*c_emissaobiogenica_adubacaoverde,0)),0,IF(SUM(milho_adubacaoverdeleguminosa,milho_adubacaoverdegraminea,milho_adubacaoverdeoutros)>0,milho_areacultivada*c_emissaobiogenica_adubacaoverde,0))","v":0},null,null,{"$f":"SUM(E316,F316*pag_n2o,G316*pag_ch4)","v":0}]
[]
[null,"Tabela 7. Mudança de uso e ocupação do solo."]
[null,null,null,null,"Emissões/remoções\n(tonelada)"]
[null,"Fonte",null,"Detalhes","CO2 eq."]
[null,"Mudança de uso e ocupação do solo",null,"-",{"$f":"IF(ISERROR(milho_areacultivada*(c_mudancausosolo_milho)),0,milho_areacultivada*(c_mudancausosolo_milho))","v":0}]
[]
[null,"Voltar ao topo da seção","Voltar ao topo da página"]
[]
[null,"Pecuária e pastagem"]
[]
[null,"Tabela 1. Emissões por escopo."]
[null,null,"Total\n(tonelada de CO2 eq.)","Por área cultivada\n(tonelada CO2 eq./hectare)","Por cabeça\n(tonelada CO2 eq./cabeça)"]
[null,"Escopo 1",{"$f":"SUM(H348:H359)","v":0},{"$f":"IF(ISERROR(C329/pastagem_areacultivada),0,C329/pastagem_areacultivada)","v":0},{"$f":"IF(ISERROR(C329/SUM(pecuaria_rebanho)),0,C329/SUM(pecuaria_rebanho))","v":0}]
[null,"Escopo 2",{"$f":"pecuaria_consumoenergia","v":0},{"$f":"IF(ISERROR(C330/pastagem_areacultivada),0,C330/pastagem_areacultivada)","v":0},{"$f":"IF(ISERROR(C330/SUM(pecuaria_rebanho)),0,C330/SUM(pecuaria_rebanho))","v":0}]
[null,"Escopo 3",{"$f":"H364","v":0},{"$f":"IF(ISERROR(C331/pastagem_areacultivada),0,C331/pastagem_areacultivada)","v":0},{"$f":"IF(ISERROR(C331/SUM(pecuaria_rebanho)),0,C331/SUM(pecuaria_rebanho))","v":0}]
[]
[null,"Tabela 2.1. Emissões por processos biogênicos."]
[null,null,"Total\n(tonelada de CO2 eq.)","Por área cultivada\n(tonelada CO2 eq./hectare)","Por cabeça\n(tonelada CO2 eq./cabeça)"]
[null,"Processos biogênicos",{"$f":"SUM(H369:H369)","v":0},{"$f":"IF(ISERROR(C335/pastagem_areacultivada),0,C335/pastagem_areacultivada)","v":0},{"$f":"IF(ISERROR(C335/SUM(pecuaria_rebanho)),0,C335/SUM(pecuaria_rebanho))","v":0}]
[]
[null,"Tabela 2.2. Remoções por processos biogênicos."]
[null,null,"Total\n(tonelada de CO2 eq.)","Por área cultivada\n(tonelada CO2 eq./hectare)","Por cabeça\n(tonelada CO2 eq./cabeça)"]
[null,"Processos biogênicos",{"$f":"H374","v":0},{"$f":"IF(ISERROR(C339/pastagem_areacultivada),0,C339/pastagem_areacultivada)","v":0},{"$f":"IF(ISERROR(C339/SUM(pecuaria_rebanho)),0,C339/SUM(pecuaria_rebanho))","v":0}]
[]
[null,"Tabela 3. Emissões/remoções por mudança de uso e ocupação do solo."]
[null,null,"Total\n(tonelada de CO2 eq.)","Por área cultivada\n(tonelada CO2 eq./hectare)","Por cabeça\n(tonelada CO2 eq./cabeça)"]
[null,"Mudança de uso e ocupação do solo",{"$f":"E379","v":0},{"$f":"IF(ISERROR(C343/pastagem_areacultivada),0,C343/pastagem_areacultivada)","v":0},{"$f":"IF(ISERROR(C343/SUM(pecuaria_rebanho)),0,C343/SUM(pecuaria_rebanho))","v":0}]
[]
[null,"Tabela 4. Escopo 1."]
[null,null,null,null,"Emissões (tonelada)",null,null,"Total\n(tonelada de CO2 eq.)"]
[null,"Fonte",null,"Detalhes","CO2","N2O","CH4"]
[null,"Fontes não-mecânicas","Aplicação de uréia","-",{"$f":"IF(ISERROR((c_co2_ureia*pastagem_aplicacaoureia*pastagem_areacultivada)/1000),0,(c_co2_ureia*pastagem_aplicacaoureia*pastagem_areacultivada)/1000)","v":0},{"$f":"IF(ISERROR((c_n2o_nitrogenioureia*((pastagem_aplicacaoureia*c_ureia_teornitrogenio)/100)*pastagem_areacultivada)/1000),0,(c_n2o_nitrogenioureia*((pastagem_aplicacaoureia*c_ureia_teornitrogenio)/100)*pastagem_areacultivada)/1000)","v":0},null,{"$f":"SUM(E348,F348*pag_n2o,G348*pag_ch4)","v":0}]
[null,null,"Calagem e gessagem","-",{"$f":"SUM(IF(ISERROR(pastagem_calcariocalcitico*c_co2_calcariocalcitico*pastagem_areacultivada/1000),0,pastagem_calcariocalcitico*c_co2_calcariocalcitico*pastagem_areacultivada/1000),IF(ISERROR(pastagem_calcariodolomitico*c_co2_calcariodolomitico*pastagem_areacultivada/1000),0,pastagem_calcariodolomitico*c_co2_calcariodolomitico*pastagem_areacultivada/1000),IF(ISERROR(pastagem_gessoagricola*c_co2_gesso*pastagem_areacultivada/1000),0,pastagem_gessoagricola*c_co2_gesso*pastagem_areacultivada/1000))","v":0},null,null,0]
[null,null,"Fertilizante nitrogenado sintético","Exceto ureia",null,{"$f":"IF(ISERROR((c_n2o_fertilizantesintetico*((pastagem_adubacaonitrogenadasintetica*pastagem_nadubosintetico)/100)*pastagem_areacultivada)/1000),0,(c_n2o_fertilizantesintetico*((pastagem_adubacaonitrogenadasintetica*pastagem_nadubosintetico)/100)*pastagem_areacultivada)/1000)","v":0},null,0]
[null,null,"Adubação orgânica","-",null,{"$f":"SUM(IF(ISERROR(pastagem_adubacaoorganicacompostoorganico*c_n2o_compostoorganico*pastagem_areacultivada/1000),0,pastagem_adubacaoorganicacompostoorganico*c_n2o_compostoorganico*pastagem_areacultivada/1000),IF(ISERROR(pastagem_adubacaoorganicaestercoavicola*c_n2o_estercoavicola*pastagem_areacultivada/1000),0,pastagem_adubacaoorganicaestercoavicola*c_n2o_estercoavicola*pastagem_areacultivada/1000),IF(ISERROR(pastagem_adubacaoorganicaestercogeral*c_n2o_estercogeral*pastagem_areacultivada/1000),0,pastagem_adubacaoorganicaestercogeral*c_n2o_estercogeral*pastagem_areacultivada/1000),IF(ISERROR(pastagem_adubacaoorganicaoutros*c_n2o_aduboorganicogeral*pastagem_areacultivada/1000),0,pastagem_adubacaoorganicaoutros*c_n2o_aduboorganicogeral*pastagem_areacultivada/1000))","v":0},null,0]
[null,null,"Lixiviação/escoamento superficial","Emissões indiretas",null,{"$f":"SUM(IF(ISERROR(pastagem_aplicacaoureia*c_ureia_teornitrogenio/100*c_n2o_ef4*conversor_nn2o_n2o*c_fracleach/100*pastagem_areacultivada/1000),0,pastagem_aplicacaoureia*c_ureia_teornitrogenio/100*c_n2o_ef4*conversor_nn2o_n2o*c_fracleach/100*pastagem_areacultivada/1000),IF(ISERROR(pastagem_adubacaonitrogenadasintetica*pastagem_nadubosintetico/100*c_n2o_ef4*conversor_nn2o_n2o*c_fracleach/100*pastagem_areacultivada/1000),0,pastagem_adubacaonitrogenadasintetica*pastagem_nadubosintetico/100*c_n2o_ef4*conversor_nn2o_n2o*c_fracleach/100*pastagem_areacultivada/1000),IF(ISERROR(pastagem_adubacaoorganicacompostoorganico*c_compostoorganico_teornitrogenio/100*c_n2o_ef4*conversor_nn2o_n2o*c_fracleach/100*pastagem_areacultivada/1000),0,pastagem_adubacaoorganicacompostoorganico*c_compostoorganico_teornitrogenio/100*c_n2o_ef4*conversor_nn2o_n2o*c_fracleach/100*pastagem_areacultivada/1000),IF(ISERROR(pastagem_adubacaoorganicaestercogeral*c_estercogeral_teornitrogenio/100*c_n2o_ef4*conversor_nn2o_n2o*c_fracleach/100*pastagem_areacultivada/1000),0,pastagem_adubacaoorganicaestercogeral*c_estercogeral_teornitrogenio/100*c_n2o_ef4*conversor_nn2o_n2o*c_fracleach/100*pastagem_areacultivada/1000),IF(ISERROR(pastagem_adubacaoorganicaestercoavicola*c_estercoavicola_teornitrogenio/100*c_n2o_ef4*conversor_nn2o_n2o*c_fracleach/100*pastagem_areacultivada/1000),0,pastagem_adubacaoorganicaestercoavicola*c_estercoavicola_teornitrogenio/100*c_n2o_ef4*conversor_nn2o_n2o*c_fracleach/100*pastagem_areacultivada/1000),IF(ISERROR(pastagem_adubacaoorganicaoutros*c_aduboorganicogeral_teornitrogenio*c_n2o_ef4*conversor_nn2o_n2o*c_fracleach/100*pastagem_areacultivada/1000),0,pastagem_adubacaoorganicaoutros*c_aduboorganicogeral_teornitrogenio*c_n2o_ef4*conversor_nn2o_n2o*c_fracleach/100*pastagem_areacultivada/1000))","v":0},null,0]
[null,null,"Deposição atm. de N volatilizado","Emissões indiretas",null,{"$f":"SUM(IF(ISERROR(pastagem_aplicacaoureia*c_ureia_teornitrogenio/100*c_fracgasf/100*c_n2o_ef3*conversor_nn2o_n2o*pastagem_areacultivada/1000),0,pastagem_aplicacaoureia*c_ureia_teornitrogenio/100*c_fracgasf/100*c_n2o_ef3*conversor_nn2o_n2o*pastagem_areacultivada/1000),IF(ISERROR(pastagem_adubacaonitrogenadasintetica*pastagem_nadubosintetico/100*c_fracgasf/100*c_n2o_ef3*conversor_nn2o_n2o*pastagem_areacultivada/1000),0,pastagem_adubacaonitrogenadasintetica*pastagem_nadubosintetico/100*c_fracgasf/100*c_n2o_ef3*conversor_nn2o_n2o*pastagem_areacultivada/1000),IF(ISERROR(pastagem_adubacaoorganicacompostoorganico*c_compostoorganico_teornitrogenio/100*c_fracgasm/100*c_n2o_ef3*conversor_nn2o_n2o*pastagem_areacultivada/1000),0,pastagem_adubacaoorganicacompostoorganico*c_compostoorganico_teornitrogenio/100*c_fracgasm/100*c_n2o_ef3*conversor_nn2o_n2o*pastagem_areacultivada/1000),IF(ISERROR(pastagem_adubacaoorganicaestercoavicola*c_estercoavicola_teornitrogenio/100*c_fracgasm/100*c_n2o_ef3*conversor_nn2o_n2o*pastagem_areacultivada/1000),0,pastagem_adubacaoorganicaestercoavicola*c_estercoavicola_teornitrogenio/100*c_fracgasm/100*c_n2o_ef3*conversor_nn2o_n2o*pastagem_areacultivada/1000),IF(ISERROR(pastagem_adubacaoorganicaestercogeral*c_estercogeral_teornitrogenio/100*c_fracgasm/100*c_n2o_ef3*conversor_nn2o_n2o*pastagem_areacultivada/1000),0,pastagem_adubacaoorganicaestercogeral*c_estercogeral_teornitrogenio/100*c_fracgasm/100*c_n2o_ef3*conversor_nn2o_n2o*pastagem_areacultivada/1000),IF(ISERROR(pastagem_adubacaoorganicaoutros*c_aduboorganicogeral_teornitrogenio/100*c_fracgasm/100*c_n2o_ef3*conversor_nn2o_n2o*pastagem_areacultivada/1000),0,pastagem_adubacaoorganicaoutros*c_aduboorganicogeral_teornitrogenio/100*c_fracgasm/100*c_n2o_ef3*conversor_nn2o_n2o*pastagem_areacultivada/1000))","v":0},null,0]
[null,null,"Manejo de solos orgânicos","-",{"$f":"IF(ISERROR(pastagem_cultivosoloorganico*c_co2eq_cultivosolosorganicos),0,pastagem_cultivosoloorganico*c_co2eq_cultivosolosorganicos)","v":0},{"$f":"IF(ISERROR(pastagem_cultivosoloorganico*c_n2o_perdanitrogenio),0,pastagem_cultivosoloorganico*c_n2o_perdanitrogenio)","v":0},null,0]
[null,null,"Sistema de manejo de dejetos","Tier 2",null,{"$f":"IF(ISERROR(pecuaria_numeroanimais1*c_sistemamanejodejetos1*((pecuaria_datasaidaanimais1-pecuaria_dataentradaanimais1)/365)),0,pecuaria_numeroanimais1*c_sistemamanejodejetos1*((pecuaria_datasaidaanimais1-pecuaria_dataentradaanimais1)/365))+\nIF(ISERROR(pecuaria_numeroanimais2*c_sistemamanejodejetos2*((pecuaria_datasaidaanimais2-pecuaria_dataentradaanimais2)/365)),0,pecuaria_numeroanimais2*c_sistemamanejodejetos2*((pecuaria_datasaidaanimais2-pecuaria_dataentradaanimais2)/365))+\nIF(ISERROR(pecuaria_numeroanimais3*c_sistemamanejodejetos3*((pecuaria_datasaidaanimais3-pecuaria_dataentradaanimais3)/365)),0,pecuaria_numeroanimais3*c_sistemamanejodejetos3*((pecuaria_datasaidaanimais3-pecuaria_dataentradaanimais3)/365))+\nIF(ISERROR(pecuaria_numeroanimais4*c_sistemamanejodejetos4*((pecuaria_datasaidaanimais4-pecuaria_dataentradaanimais4)/365)),0,pecuaria_numeroanimais4*c_sistemamanejodejetos4*((pecuaria_datasaidaanimais4-pecuaria_dataentradaanimais4)/365))+\nIF(ISERROR(pecuaria_numeroanimais5*c_sistemamanejodejetos5*((pecuaria_datasaidaanimais5-pecuaria_dataentradaanimais5)/365)),0,pecuaria_numeroanimais5*c_sistemamanejodejetos5*((pecuaria_datasaidaanimais5-pecuaria_dataentradaanimais5)/365))+\nIF(ISERROR(pecuaria_numeroanimais6*c_sistemamanejodejetos6*((pecuaria_datasaidaanimais6-pecuaria_dataentradaanimais6)/365)),0,pecuaria_numeroanimais6*c_sistemamanejodejetos6*((pecuaria_datasaidaanimais6-pecuaria_dataentradaanimais6)/365))+\nIF(ISERROR(pecuaria_numeroanimais7*c_sistemamanejodejetos7*((pecuaria_datasaidaanimais7-pecuaria_dataentradaanimais7)/365)),0,pecuaria_numeroanimais7*c_sistemamanejodejetos7*((pecuaria_datasaidaanimais7-pecuaria_dataentradaanimais7)/365))+\nIF(ISERROR(pecuaria_numeroanimais8*c_sistemamanejodejetos8*((pecuaria_datasaidaanimais8-pecuaria_dataentradaanimais8)/365)),0,pecuaria_numeroanimais8*c_sistemamanejodejetos8*((pecuaria_datasaidaanimais8-pecuaria_dataentradaanimais8)/365))+\nIF(ISERROR(pecuaria_numeroanimais9*c_sistemamanejodejetos9*((pecuaria_datasaidaanimais9-pecuaria_dataentradaanimais9)/365)),0,pecuaria_numeroanimais9*c_sistemamanejodejetos9*((pecuaria_datasaidaanimais9-pecuaria_dataentradaanimais9)/365))+\nIF(ISERROR(pecuaria_numeroanimais10*c_sistemamanejodejetos10*((pecuaria_datasaidaanimais10-pecuaria_dataentradaanimais10)/365)),0,pecuaria_numeroanimais10*c_sistemamanejodejetos10*((pecuaria_datasaidaanimais10-pecuaria_dataentradaanimais10)/365))+\nIF(ISERROR(pecuaria_numeroanimais11*c_sistemamanejodejetos11*((pecuaria_datasaidaanimais11-pecuaria_dataentradaanimais11)/365)),0,pecuaria_numeroanimais11*c_sistemamanejodejetos11*((pecuaria_datasaidaanimais11-pecuaria_dataentradaanimais11)/365))+\nIF(ISERROR(pecuaria_numeroanimais12*c_sistemamanejodejetos12*((pecuaria_datasaidaanimais12-pecuaria_dataentradaanimais12)/365)),0,pecuaria_numeroanimais12*c_sistemamanejodejetos12*((pecuaria_datasaidaanimais12-pecuaria_dataentradaanimais12)/365))+\nIF(ISERROR(pecuaria_numeroanimais13*c_sistemamanejodejetos13*((pecuaria_datasaidaanimais13-pecuaria_dataentradaanimais13)/365)),0,pecuaria_numeroanimais13*c_sistemamanejodejetos13*((pecuaria_datasaidaanimais13-pecuaria_dataentradaanimais13)/365))+\nIF(ISERROR(pecuaria_numeroanimais14*c_sistemamanejodejetos14*((pecuaria_datasaidaanimais14-pecuaria_dataentradaanimais14)/365)),0,pecuaria_numeroanimais14*c_sistemamanejodejetos14*((pecuaria_datasaidaanimais14-pecuaria_dataentradaanimais14)/365))+\nIF(ISERROR(pecuaria_numeroanimais15*c_sistemamanejodejetos15*((pecuaria_datasaidaanimais15-pecuaria_dataentradaanimais15)/365)),0,pecuaria_numeroanimais15*c_sistemamanejodejetos15*((pecuaria_datasaidaanimais15-pecuaria_dataentradaanimais15)/365))+\nIF(ISERROR(pecuaria_numeroanimais16*c_sistemamanejodejetos16*((pecuaria_datasaidaanimais16-pecuaria_dataentradaanimais16)/365)),0,pecuaria_numeroanimais16*c_sistemamanejodejetos16*((pecuaria_datasaidaanimais16-pecuaria_dataentradaanimais16)/365))+\nIF(ISERROR(pecuaria_numeroanimais17*c_sistemamanejodejetos17*((pecuaria_datasaidaanimais17-pecuaria_dataentradaanimais17)/365)),0,pecuaria_numeroanimais17*c_sistemamanejodejetos17*((pecuaria_datasaidaanimais17-pecuaria_dataentradaanimais17)/365))+\nIF(ISERROR(pecuaria_numeroanimais18*c_sistemamanejodejetos18*((pecuaria_datasaidaanimais18-pecuaria_dataentradaanimais18)/365)),0,pecuaria_numeroanimais18*c_sistemamanejodejetos18*((pecuaria_datasaidaanimais18-pecuaria_dataentradaanimais18)/365))+\nIF(ISERROR(pecuaria_numeroanimais19*c_sistemamanejodejetos19*((pecuaria_datasaidaanimais19-pecuaria_dataentradaanimais19)/365)),0,pecuaria_numeroanimais19*c_sistemamanejodejetos19*((pecuaria_datasaidaanimais19-pecuaria_dataentradaanimais19)/365))+\nIF(ISERROR(pecuaria_numeroanimais20*c_sistemamanejodejetos20*((pecuaria_datasaidaanimais20-pecuaria_dataentradaanimais20)/365)),0,pecuaria_numeroanimais20*c_sistemamanejodejetos20*((pecuaria_datasaidaanimais20-pecuaria_dataentradaanimais20)/365))","v":0},null,{"$f":"SUM(E355,F355*pag_n2o,G355*pag_ch4)","v":0}]
[null,null,"Manejo de dejetos de animais","-",null,null,{"$f":"IF(ISERROR(pecuaria_numeroanimais1*c_manejodejetosanimais1*((pecuaria_datasaidaanimais1-pecuaria_dataentradaanimais1)/365)),0,pecuaria_numeroanimais1*c_manejodejetosanimais1*((pecuaria_datasaidaanimais1-pecuaria_dataentradaanimais1)/365))+\nIF(ISERROR(pecuaria_numeroanimais2*c_manejodejetosanimais2*((pecuaria_datasaidaanimais2-pecuaria_dataentradaanimais2)/365)),0,pecuaria_numeroanimais2*c_manejodejetosanimais2*((pecuaria_datasaidaanimais2-pecuaria_dataentradaanimais2)/365))+\nIF(ISERROR(pecuaria_numeroanimais3*c_manejodejetosanimais3*((pecuaria_datasaidaanimais3-pecuaria_dataentradaanimais3)/365)),0,pecuaria_numeroanimais3*c_manejodejetosanimais3*((pecuaria_datasaidaanimais3-pecuaria_dataentradaanimais3)/365))+\nIF(ISERROR(pecuaria_numeroanimais4*c_manejodejetosanimais4*((pecuaria_datasaidaanimais4-pecuaria_dataentradaanimais4)/365)),0,pecuaria_numeroanimais4*c_manejodejetosanimais4*((pecuaria_datasaidaanimais4-pecuaria_dataentradaanimais4)/365))+\nIF(ISERROR(pecuaria_numeroanimais5*c_manejodejetosanimais5*((pecuaria_datasaidaanimais5-pecuaria_dataentradaanimais5)/365)),0,pecuaria_numeroanimais5*c_manejodejetosanimais5*((pecuaria_datasaidaanimais5-pecuaria_dataentradaanimais5)/365))+\nIF(ISERROR(pecuaria_numeroanimais6*c_manejodejetosanimais6*((pecuaria_datasaidaanimais6-pecuaria_dataentradaanimais6)/365)),0,pecuaria_numeroanimais6*c_manejodejetosanimais6*((pecuaria_datasaidaanimais6-pecuaria_dataentradaanimais6)/365))+\nIF(ISERROR(pecuaria_numeroanimais7*c_manejodejetosanimais7*((pecuaria_datasaidaanimais7-pecuaria_dataentradaanimais7)/365)),0,pecuaria_numeroanimais7*c_manejodejetosanimais7*((pecuaria_datasaidaanimais7-pecuaria_dataentradaanimais7)/365))+\nIF(ISERROR(pecuaria_numeroanimais8*c_manejodejetosanimais8*((pecuaria_datasaidaanimais8-pecuaria_dataentradaanimais8)/365)),0,pecuaria_numeroanimais8*c_manejodejetosanimais8*((pecuaria_datasaidaanimais8-pecuaria_dataentradaanimais8)/365))+\nIF(ISERROR(pecuaria_numeroanimais9*c_manejodejetosanimais9*((pecuaria_datasaidaanimais9-pecuaria_dataentradaanimais9)/365)),0,pecuaria_numeroanimais9*c_manejodejetosanimais9*((pecuaria_datasaidaanimais9-pecuaria_dataentradaanimais9)/365))+\nIF(ISERROR(pecuaria_numeroanimais10*c_manejodejetosanimais10*((pecuaria_datasaidaanimais10-pecuaria_dataentradaanimais10)/365)),0,pecuaria_numeroanimais10*c_manejodejetosanimais10*((pecuaria_datasaidaanimais10-pecuaria_dataentradaanimais10)/365))+\nIF(ISERROR(pecuaria_numeroanimais11*c_manejodejetosanimais11*((pecuaria_datasaidaanimais11-pecuaria_dataentradaanimais11)/365)),0,pecuaria_numeroanimais11*c_manejodejetosanimais11*((pecuaria_datasaidaanimais11-pecuaria_dataentradaanimais11)/365))+\nIF(ISERROR(pecuaria_numeroanimais12*c_manejodejetosanimais12*((pecuaria_datasaidaanimais12-pecuaria_dataentradaanimais12)/365)),0,pecuaria_numeroanimais12*c_manejodejetosanimais12*((pecuaria_datasaidaanimais12-pecuaria_dataentradaanimais12)/365))+\nIF(ISERROR(pecuaria_numeroanimais13*c_manejodejetosanimais13*((pecuaria_datasaidaanimais13-pecuaria_dataentradaanimais13)/365)),0,pecuaria_numeroanimais13*c_manejodejetosanimais13*((pecuaria_datasaidaanimais13-pecuaria_dataentradaanimais13)/365))+\nIF(ISERROR(pecuaria_numeroanimais14*c_manejodejetosanimais14*((pecuaria_datasaidaanimais14-pecuaria_dataentradaanimais14)/365)),0,pecuaria_numeroanimais14*c_manejodejetosanimais14*((pecuaria_datasaidaanimais14-pecuaria_dataentradaanimais14)/365))+\nIF(ISERROR(pecuaria_numeroanimais15*c_manejodejetosanimais15*((pecuaria_datasaidaanimais15-pecuaria_dataentradaanimais15)/365)),0,pecuaria_numeroanimais15*c_manejodejetosanimais15*((pecuaria_datasaidaanimais15-pecuaria_dataentradaanimais15)/365))+\nIF(ISERROR(pecuaria_numeroanimais16*c_manejodejetosanimais16*((pecuaria_datasaidaanimais16-pecuaria_dataentradaanimais16)/365)),0,pecuaria_numeroanimais16*c_manejodejetosanimais16*((pecuaria_datasaidaanimais16-pecuaria_dataentradaanimais16)/365))+\nIF(ISERROR(pecuaria_numeroanimais17*c_manejodejetosanimais17*((pecuaria_datasaidaanimais17-pecuaria_dataentradaanimais17)/365)),0,pecuaria_numeroanimais17*c_manejodejetosanimais17*((pecuaria_datasaidaanimais17-pecuaria_dataentradaanimais17)/365))+\nIF(ISERROR(pecuaria_numeroanimais18*c_manejodejetosanimais18*((pecuaria_datasaidaanimais18-pecuaria_dataentradaanimais18)/365)),0,pecuaria_numeroanimais18*c_manejodejetosanimais18*((pecuaria_datasaidaanimais18-pecuaria_dataentradaanimais18)/365))+\nIF(ISERROR(pecuaria_numeroanimais19*c_manejodejetosanimais19*((pecuaria_datasaidaanimais19-pecuaria_dataentradaanimais19)/365)),0,pecuaria_numeroanimais19*c_manejodejetosanimais19*((pecuaria_datasaidaanimais19-pecuaria_dataentradaanimais19)/365))+\nIF(ISERROR(pecuaria_numeroanimais20*c_manejodejetosanimais20*((pecuaria_datasaidaanimais20-pecuaria_dataentradaanimais20)/365)),0,pecuaria_numeroanimais20*c_manejodejetosanimais20*((pecuaria_datasaidaanimais20-pecuaria_dataentradaanimais20)/365))","v":0},0]
[null,null,"Fermentação entérica","-",null,null,{"$f":"IF(ISERROR(pecuaria_numeroanimais1*c_fermentacaoenterica1*((pecuaria_datasaidaanimais1-pecuaria_dataentradaanimais1)/365)),0,pecuaria_numeroanimais1*c_fermentacaoenterica1*((pecuaria_datasaidaanimais1-pecuaria_dataentradaanimais1)/365))+\nIF(ISERROR(pecuaria_numeroanimais2*c_fermentacaoenterica2*((pecuaria_datasaidaanimais2-pecuaria_dataentradaanimais2)/365)),0,pecuaria_numeroanimais2*c_fermentacaoenterica2*((pecuaria_datasaidaanimais2-pecuaria_dataentradaanimais2)/365))+\nIF(ISERROR(pecuaria_numeroanimais3*c_fermentacaoenterica3*((pecuaria_datasaidaanimais3-pecuaria_dataentradaanimais3)/365)),0,pecuaria_numeroanimais3*c_fermentacaoenterica3*((pecuaria_datasaidaanimais3-pecuaria_dataentradaanimais3)/365))+\nIF(ISERROR(pecuaria_numeroanimais4*c_fermentacaoenterica4*((pecuaria_datasaidaanimais4-pecuaria_dataentradaanimais4)/365)),0,pecuaria_numeroanimais4*c_fermentacaoenterica4*((pecuaria_datasaidaanimais4-pecuaria_dataentradaanimais4)/365))+\nIF(ISERROR(pecuaria_numeroanimais5*c_fermentacaoenterica5*((pecuaria_datasaidaanimais5-pecuaria_dataentradaanimais5)/365)),0,pecuaria_numeroanimais5*c_fermentacaoenterica5*((pecuaria_datasaidaanimais5-pecuaria_dataentradaanimais5)/365))+\nIF(ISERROR(pecuaria_numeroanimais6*c_fermentacaoenterica6*((pecuaria_datasaidaanimais6-pecuaria_dataentradaanimais6)/365)),0,pecuaria_numeroanimais6*c_fermentacaoenterica6*((pecuaria_datasaidaanimais6-pecuaria_dataentradaanimais6)/365))+\nIF(ISERROR(pecuaria_numeroanimais7*c_fermentacaoenterica7*((pecuaria_datasaidaanimais7-pecuaria_dataentradaanimais7)/365)),0,pecuaria_numeroanimais7*c_fermentacaoenterica7*((pecuaria_datasaidaanimais7-pecuaria_dataentradaanimais7)/365))+\nIF(ISERROR(pecuaria_numeroanimais8*c_fermentacaoenterica8*((pecuaria_datasaidaanimais8-pecuaria_dataentradaanimais8)/365)),0,pecuaria_numeroanimais8*c_fermentacaoenterica8*((pecuaria_datasaidaanimais8-pecuaria_dataentradaanimais8)/365))+\nIF(ISERROR(pecuaria_numeroanimais9*c_fermentacaoenterica9*((pecuaria_datasaidaanimais9-pecuaria_dataentradaanimais9)/365)),0,pecuaria_numeroanimais9*c_fermentacaoenterica9*((pecuaria_datasaidaanimais9-pecuaria_dataentradaanimais9)/365))+\nIF(ISERROR(pecuaria_numeroanimais10*c_fermentacaoenterica10*((pecuaria_datasaidaanimais10-pecuaria_dataentradaanimais10)/365)),0,pecuaria_numeroanimais10*c_fermentacaoenterica10*((pecuaria_datasaidaanimais10-pecuaria_dataentradaanimais10)/365))+\nIF(ISERROR(pecuaria_numeroanimais11*c_fermentacaoenterica11*((pecuaria_datasaidaanimais11-pecuaria_dataentradaanimais11)/365)),0,pecuaria_numeroanimais11*c_fermentacaoenterica11*((pecuaria_datasaidaanimais11-pecuaria_dataentradaanimais11)/365))+\nIF(ISERROR(pecuaria_numeroanimais12*c_fermentacaoenterica12*((pecuaria_datasaidaanimais12-pecuaria_dataentradaanimais12)/365)),0,pecuaria_numeroanimais12*c_fermentacaoenterica12*((pecuaria_datasaidaanimais12-pecuaria_dataentradaanimais12)/365))+\nIF(ISERROR(pecuaria_numeroanimais13*c_fermentacaoenterica13*((pecuaria_datasaidaanimais13-pecuaria_dataentradaanimais13)/365)),0,pecuaria_numeroanimais13*c_fermentacaoenterica13*((pecuaria_datasaidaanimais13-pecuaria_dataentradaanimais13)/365))+\nIF(ISERROR(pecuaria_numeroanimais14*c_fermentacaoenterica14*((pecuaria_datasaidaanimais14-pecuaria_dataentradaanimais14)/365)),0,pecuaria_numeroanimais14*c_fermentacaoenterica14*((pecuaria_datasaidaanimais14-pecuaria_dataentradaanimais14)/365))+\nIF(ISERROR(pecuaria_numeroanimais15*c_fermentacaoenterica15*((pecuaria_datasaidaanimais15-pecuaria_dataentradaanimais15)/365)),0,pecuaria_numeroanimais15*c_fermentacaoenterica15*((pecuaria_datasaidaanimais15-pecuaria_dataentradaanimais15)/365))+\nIF(ISERROR(pecuaria_numeroanimais16*c_fermentacaoenterica16*((pecuaria_datasaidaanimais16-pecuaria_dataentradaanimais16)/365)),0,pecuaria_numeroanimais16*c_fermentacaoenterica16*((pecuaria_datasaidaanimais16-pecuaria_dataentradaanimais16)/365))+\nIF(ISERROR(pecuaria_numeroanimais17*c_fermentacaoenterica17*((pecuaria_datasaidaanimais17-pecuaria_dataentradaanimais17)/365)),0,pecuaria_numeroanimais17*c_fermentacaoenterica17*((pecuaria_datasaidaanimais17-pecuaria_dataentradaanimais17)/365))+\nIF(ISERROR(pecuaria_numeroanimais18*c_fermentacaoenterica18*((pecuaria_datasaidaanimais18-pecuaria_dataentradaanimais18)/365)),0,pecuaria_numeroanimais18*c_fermentacaoenterica18*((pecuaria_datasaidaanimais18-pecuaria_dataentradaanimais18)/365))+\nIF(ISERROR(pecuaria_numeroanimais19*c_fermentacaoenterica19*((pecuaria_datasaidaanimais19-pecuaria_dataentradaanimais19)/365)),0,pecuaria_numeroanimais19*c_fermentacaoenterica19*((pecuaria_datasaidaanimais19-pecuaria_dataentradaanimais19)/365))+\nIF(ISERROR(pecuaria_numeroanimais20*c_fermentacaoenterica20*((pecuaria_datasaidaanimais20-pecuaria_dataentradaanimais20)/365)),0,pecuaria_numeroanimais20*c_fermentacaoenterica20*((pecuaria_datasaidaanimais20-pecuaria_dataentradaanimais20)/365))","v":0},{"$f":"SUM(E357,F357*pag_n2o,G357*pag_ch4)","v":0}]
[null,"Fontes mecânicas","Operações mecanizadas","-",{"$f":"SUM(IF(ISERROR(IF(pastagem_tipoconsumocombustivel=\"Quantidade consumida\",pastagem_consumodiesel*mistura_diesel_pastagem/100*c_mecanizacao_co2,IF(pastagem_tipoconsumocombustivel=\"Operações mecanizadas\",c_consumooperacoesmecanizadaspastagem*c_diesel_consumomedio*c_mecanizacao_co2*mistura_diesel_pastagem/100,0))),0,IF(pastagem_tipoconsumocombustivel=\"Quantidade consumida\",pastagem_consumodiesel*mistura_diesel_pastagem/100*c_mecanizacao_co2,IF(pastagem_tipoconsumocombustivel=\"Operações mecanizadas\",c_consumooperacoesmecanizadaspastagem*c_diesel_consumomedio*c_mecanizacao_co2*mistura_diesel_pastagem/100,0))),IF(ISERROR((pastagem_operacoesinternas_gasolina*mistura_gasolinacomum/100*c_emissao_gasolina_a_co2)),0,pastagem_operacoesinternas_gasolina*mistura_gasolinacomum/100*c_emissao_gasolina_a_co2))","v":0},{"$f":"IF(ISERROR(IF(pastagem_tipoconsumocombustivel=\"Quantidade consumida\",pastagem_consumodiesel*mistura_diesel_pastagem/100*c_mecanizacao_n2o,IF(pastagem_tipoconsumocombustivel=\"Operações mecanizadas\",c_consumooperacoesmecanizadaspastagem*c_diesel_consumomedio*c_mecanizacao_n2o*mistura_diesel_pastagem/100,0))),0,IF(pastagem_tipoconsumocombustivel=\"Quantidade consumida\",pastagem_consumodiesel*mistura_diesel_pastagem/100*c_mecanizacao_n2o,IF(pastagem_tipoconsumocombustivel=\"Operações mecanizadas\",c_consumooperacoesmecanizadaspastagem*c_diesel_consumomedio*c_mecanizacao_n2o*mistura_diesel_pastagem/100,0)))","v":0},{"$f":"IF(ISERROR(IF(pastagem_tipoconsumocombustivel=\"Quantidade consumida\",pastagem_consumodiesel*mistura_diesel_pastagem/100*c_mecanizacao_ch4,IF(pastagem_tipoconsumocombustivel=\"Operações mecanizadas\",c_consumooperacoesmecanizadaspastagem*c_diesel_consumomedio*c_mecanizacao_ch4*mistura_diesel_pastagem/100,0))),0,IF(pastagem_tipoconsumocombustivel=\"Quantidade consumida\",pastagem_consumodiesel*mistura_diesel_pastagem/100*c_mecanizacao_ch4,IF(pastagem_tipoconsumocombustivel=\"Operações mecanizadas\",c_consumooperacoesmecanizadaspastagem*c_diesel_consumomedio*c_mecanizacao_ch4*mistura_diesel_pastagem/100,0)))","v":0},0]
[null,"Mudança de uso do solo","Estoque inicial de carbono na veg. nativa","-",{"$f":"IF(AND(pastagem_usoanteriorterra =\"Floresta nativa\",ISNUMBER(pastagem_estoqueinicialcarbono)),pastagem_estoqueinicialcarbono*pastagem_areacultivada,0)","v":0},null,null,0]
[]
[null,"Tabela 5. Escopo 3."]
[null,null,null,null,"Emissões (tonelada)",null,null,"Total\n(tonelada de CO2 eq.)"]
[null,"Fonte",null,"Detalhes","CO2","N2O","CH4"]
[null,"Fontes mecânicas","Transporte da produção","-",{"$f":"SUM(IF(ISERROR(pastagem_transporteproducao_quantidade*mistura_diesel_transporte_pastagempecuaria/100*c_mecanizacao_co2),0,pastagem_transporteproducao_quantidade*mistura_diesel_transporte_pastagempecuaria/100*c_mecanizacao_co2),IF(ISERROR(pastagem_transporteproducao_quantidade*(1-mistura_diesel_transporte_pastagempecuaria/100)*c_emissao_biodiesel),0,pastagem_transporteproducao_quantidade*(1-mistura_diesel_transporte_pastagempecuaria/100)*c_emissao_biodiesel))","v":0},{"$f":"IF(ISERROR((pastagem_transporteproducao_quantidade* mistura_diesel_transporte_pastagempecuaria/100*c_mecanizacao_n2o)),0,(pastagem_transporteproducao_quantidade* mistura_diesel_transporte_pastagempecuaria/100*c_mecanizacao_n2o))","v":0},{"$f":"IF(ISERROR((pastagem_transporteproducao_quantidade* mistura_diesel_transporte_pastagempecuaria/100*c_mecanizacao_ch4)),0,(pastagem_transporteproducao_quantidade* mistura_diesel_transporte_pastagempecuaria/100*c_mecanizacao_ch4))","v":0},{"$f":"SUM(E364,F364*pag_n2o,G364*pag_ch4)","v":0}]
[]
[null,"Tabela 6.1. Processos biogênicos."]
[null,null,null,null,"Emissões (tonelada)",null,null,"Total\n(tonelada de CO2 eq.)"]
[null,"Fonte",null,"Detalhes","CO2","N2O","CH4"]
[null,"Biocombustíveis",null,"-",{"$f":"SUM(IF(ISERROR(IF(pastagem_tipoconsumocombustivel=\"Quantidade consumida\",pastagem_consumodiesel*(1-(mistura_diesel_pastagem/100))*c_emissao_biodiesel,IF(pastagem_tipoconsumocombustivel=\"Operações mecanizadas\",c_consumooperacoesmecanizadaspastagem*c_diesel_consumomedio*(1-(mistura_diesel_pastagem/100))*c_emissao_biodiesel,0))),0,IF(pastagem_tipoconsumocombustivel=\"Quantidade consumida\",pastagem_consumodiesel*(1-(mistura_diesel_pastagem/100))*c_emissao_biodiesel,IF(pastagem_tipoconsumocombustivel=\"Operações mecanizadas\",c_consumooperacoesmecanizadaspastagem*c_diesel_consumomedio*(1-(mistura_diesel_pastagem/100))*c_emissao_biodiesel,0))),IF(ISERROR((pastagem_operacoesinternas_gasolina*(1-(mistura_gasolinacomum/100))*c_emissao_etanol_anidro_co2)),0,pastagem_operacoesinternas_gasolina*(1-(mistura_gasolinacomum/100))*c_emissao_etanol_anidro_co2),IF(ISERROR(pastagem_operacoesinternas_etanol*c_emissao_etanol_hidratado_co2),0,pastagem_operacoesinternas_etanol*c_emissao_etanol_hidratado_co2))","v":0},null,null,{"$f":"SUM(E369,F369*pag_n2o,G369*pag_ch4)","v":0}]
[]
[null,"Tabela 6.2. Processos biogênicos."]
[null,null,null,null,"Remoções (tonelada)",null,null,"Total\n(tonelada de CO2 eq.)"]
[null,"Fonte",null,"Detalhes","CO2","N2O","CH4"]
[null,"Adubação verde",null,"-",{"$f":"IF(ISERROR(IF(SUM(pastagem_adubacaoverdeleguminosa,pastagem_adubacaoverdegraminea,pastagem_adubacaoverdeoutros)>0,pastagem_areacultivada*c_emissaobiogenica_adubacaoverde,0)),0,IF(SUM(pastagem_adubacaoverdeleguminosa,pastagem_adubacaoverdegraminea,pastagem_adubacaoverdeoutros)>0,pastagem_areacultivada*c_emissaobiogenica_adubacaoverde,0))","v":0},null,null,{"$f":"SUM(E374,F374*pag_n2o,G374*pag_ch4)","v":0}]
[]
[null,"Tabela 7. Mudança de uso e ocupação do solo."]
[null,null,null,null,"Emissões/remoções\n (tonelada)"]
[null,"Fonte",null,"Detalhes","CO2 eq."]
[null,"Mudança de uso e ocupação do solo",null,"-",{"$f":"IF(ISERROR(pastagem_areacultivada*(c_mudancausosolo_pastagem)),0,pastagem_areacultivada*(c_mudancausosolo_pastagem))","v":0}]
[]
[null,"Tabela 8.1. Diagnóstico de degradação da pastagem - Uso anterior"]
[null,null,"Situação",null,"Referência"]
[null,"Infestação por cupins",{"$f":"IF(OR(pastagem_usoanteriorterra<>\"Pastagem degradada\",ISBLANK(pastagem_infestacaocupins_usoanterior)),\"-\",pastagem_infestacaocupins_usoanterior)","v":"-"},null,"Tabela 8.3"]
[null,"Infestação por formigas",{"$f":"IF(OR(pastagem_usoanteriorterra<>\"Pastagem degradada\",ISBLANK(pastagem_infestacaoformigas_usoanterior)),\"-\",pastagem_infestacaoformigas_usoanterior)","v":"-"},null,"Tabela 8.3"]
[null,"Infestação por plantas daninhas",{"$f":"IF(OR(pastagem_usoanteriorterra<>\"Pastagem degradada\",ISBLANK(pastagem_infestacaoplantasdaninhas_usoanterior)),\"-\",pastagem_infestacaoplantasdaninhas_usoanterior)","v":"-"},null,"Tabela 8.3"]
[null,"Presença de erosão",{"$f":"IF(OR(pastagem_usoanteriorterra<>\"Pastagem degradada\",ISBLANK(pastagem_erosao_usoanterior)),\"-\",pastagem_erosao_usoanterior)","v":"-"},null,"Tabela 8.3"]
[null,"Taxa de lotação",{"$f":"IF(OR(pastagem_usoanteriorterra<>\"Pastagem degradada\",ISBLANK(pastagem_taxalotacao_usoanterior)),\"-\",pastagem_taxalotacao_usoanterior)","v":"-"},null,"Tabela 8.4"]
[]
[null,"Classificação",{"$f":"IF(OR(pastagem_usoanteriorterra<>\"Pastagem degradada\",ISBLANK(pastagem_diagnostico_usoanterior)),\"-\",pastagem_diagnostico_usoanterior)","v":"-"},null,"IPCC, 2006"]
[]
[null,"Tabela 8.2. Diagnóstico de degradação da pastagem - Uso atual"]
[null,null,"Situação",null,"Referência"]
[null,"Infestação por cupins",{"$f":"IF(ISBLANK(pastagem_infestacaocupins_usoatual),\"-\",pastagem_infestacaocupins_usoatual)","v":"-"},null,"Tabela 8.3"]
[null,"Infestação por formigas",{"$f":"IF(ISBLANK(pastagem_infestacaoformigas_usoatual),\"-\",pastagem_infestacaoformigas_usoatual)","v":"-"},null,"Tabela 8.3"]
[null,"Infestação por plantas daninhas",{"$f":"IF(ISBLANK(pastagem_infestacaoplantasdaninhas_usoatual),\"-\",pastagem_infestacaoplantasdaninhas_usoatual)","v":"-"},null,"Tabela 8.3"]
[null,"Presença de erosão",{"$f":"IF(ISBLANK(pastagem_erosao_usoatual),\"-\",pastagem_erosao_usoatual)","v":"-"},null,"Tabela 8.3"]
[null,"Taxa de lotação",{"$f":"IF(OR(pastagem_usoatualterra<>\"Pastagem degradada\",ISBLANK(pastagem_taxalotacao_usoatual)),\"-\",pastagem_taxalotacao_usoatual)","v":"-"},null,"Tabela 8.4"]
[]
[null,"Classificação",{"$f":"IF(ISBLANK(pastagem_diagnostico_usoatual),\"-\",pastagem_diagnostico_usoatual)","v":"-"},null,"IPCC, 2006"]
[]
[null,"Tabela 8.3. Classificação de pastagem degradada para presença de erosão e infestação por cupins, formigas e plantas daninhas."]
[null,"Classificação","Cor","Ação","Referência"]
[null,"Muito Alta",null,"PIOR","FAZENDA RONCADOR"]
[null,"Alta",null,"PARE","FAZENDA RONCADOR"]
[null,"Baixa",null,"ATENÇÃO","FAZENDA RONCADOR"]
[null,"Muito baixa",null,"SIGA ","FAZENDA RONCADOR"]
[null,"Ausente",null,"MELHOR","FAZENDA RONCADOR"]
[]
[null,"Tabela 8.4. Classificação de pastagem degradada para taxa de lotação."]
[null,"Classificação","Cor","Ação","cabeças ou U.A / hectare","Referência"]
[null,"Muito Baixa",null,"PIOR","< 0,50","FAZENDA RONCADOR"]
[null,"Baixa",null,"PARE","0,51 a 0,80","FAZENDA RONCADOR"]
[null,"Média",null,"ATENÇÃO","0,81 a 1,50","FAZENDA RONCADOR"]
[null,"Boa ",null,"SIGA ","1,51 a 2,00","FAZENDA RONCADOR"]
[null,"Alta",null,"MELHOR","> 2,00","FAZENDA RONCADOR"]
[]
[null,"Voltar ao topo da seção","Voltar ao topo da página"]
[]
[null,"Soja"]
[]
[null,"Tabela 1. Emissões por escopo."]
[null,null,"Total\n(tonelada de CO2 eq.)","Por área cultivada\n(tonelada CO2 eq./hectare)","Por tonelada produzida\n(tonelada CO2 eq./tonelada)"]
[null,"Escopo 1",{"$f":"SUM(H442:H451)","v":0},{"$f":"IF(ISERROR(C423/soja_areacultivada),0,C423/soja_areacultivada)","v":0},{"$f":"IF(ISERROR(C423/(soja_produtividademedia*soja_areacultivada)),0,C423/(soja_produtividademedia*soja_areacultivada))","v":0}]
[null,"Escopo 2",{"$f":"soja_consumoenergia","v":0},{"$f":"IF(ISERROR(C424/soja_areacultivada),0,C424/soja_areacultivada)","v":0},{"$f":"IF(ISERROR(C424/(soja_produtividademedia*soja_areacultivada)),0,C424/(soja_produtividademedia*soja_areacultivada))","v":0}]
[null,"Escopo 3",{"$f":"H456","v":0},{"$f":"IF(ISERROR(C425/soja_areacultivada),0,C425/soja_areacultivada)","v":0},{"$f":"IF(ISERROR(C425/(soja_produtividademedia*soja_areacultivada)),0,C425/(soja_produtividademedia*soja_areacultivada))","v":0}]
[]
[null,"Tabela 2.1. Emissões por processos biogênicos."]
[null,null,"Total\n(tonelada de CO2 eq.)","Por área cultivada\n(tonelada CO2 eq./hectare)","Por tonelada produzida\n(tonelada CO2 eq./tonelada)"]
[null,"Processos biogênicos",{"$f":"SUM(H461:H462)","v":0},{"$f":"IF(ISERROR(C429/soja_areacultivada),0,C429/soja_areacultivada)","v":0},{"$f":"IF(ISERROR(C429/(soja_produtividademedia*soja_areacultivada)),0,C429/(soja_produtividademedia*soja_areacultivada))","v":0}]
[]
[null,"Tabela 2.2. Remoções por processos biogênicos."]
[null,null,"Total\n(tonelada de CO2 eq.)","Por área cultivada\n(tonelada CO2 eq./hectare)","Por tonelada produzida\n(tonelada CO2 eq./tonelada)"]
[null,"Processos biogênicos",{"$f":"H467","v":0},{"$f":"IF(ISERROR(C433/soja_areacultivada),0,C433/soja_areacultivada)","v":0},{"$f":"IF(ISERROR(C433/(soja_produtividademedia*soja_areacultivada)),0,C433/(soja_produtividademedia*soja_areacultivada))","v":0}]
[]
[null,"Tabela 3. Emissões/remoções por mudança de uso e ocupação do solo."]
[null,null,"Total\n(tonelada de CO2 eq.)","Por área cultivada\n(tonelada CO2 eq./hectare)","Por tonelada produzida\n(tonelada CO2 eq./tonelada)"]
[null,"Mudança de uso e ocupação do solo",{"$f":"E472","v":0},{"$f":"IF(ISERROR(C437/soja_areacultivada),0,C437/soja_areacultivada)","v":0},{"$f":"IF(ISERROR(C437/(soja_produtividademedia*soja_areacultivada)),0,C437/(soja_produtividademedia*soja_areacultivada))","v":0}]
[]
[null,"Tabela 4. Escopo 1."]
[null,null,null,null,"Emissões (tonelada)",null,null,"Total\n(tonelada de CO2 eq.)"]
[null,"Fonte",null,"Detalhes","CO2","N2O","CH4"]
[null,"Fontes não-mecânicas","Aplicação de uréia","-",{"$f":"IF(ISERROR((c_co2_ureia*soja_aplicacaoureia*soja_areacultivada)/1000),0,(c_co2_ureia*soja_aplicacaoureia*soja_areacultivada)/1000)","v":0},{"$f":"IF(ISERROR((c_n2o_nitrogenioureia*((soja_aplicacaoureia*c_ureia_teornitrogenio)/100)*soja_areacultivada)/1000),0,(c_n2o_nitrogenioureia*((soja_aplicacaoureia*c_ureia_teornitrogenio)/100)*soja_areacultivada)/1000)","v":0},null,{"$f":"SUM(E442,F442*pag_n2o,G442*pag_ch4)","v":0}]
[null,null,"Calagem e gessagem","-",{"$f":"SUM(IF(ISERROR(soja_calcariocalcitico*c_co2_calcariocalcitico*soja_areacultivada/1000),0,soja_calcariocalcitico*c_co2_calcariocalcitico*soja_areacultivada/1000),IF(ISERROR(soja_calcariodolomitico*c_co2_calcariodolomitico*soja_areacultivada/1000),0,soja_calcariodolomitico*c_co2_calcariodolomitico*soja_areacultivada/1000),IF(ISERROR(soja_gessoagricola*c_co2_gesso*soja_areacultivada/1000),0,soja_gessoagricola*c_co2_gesso*soja_areacultivada/1000))","v":0},null,null,0]
[null,null,"Fertilizante nitrogenado sintético","Exceto ureia",null,{"$f":"IF(ISERROR((c_n2o_fertilizantesintetico*((soja_adubacaonitrogenadasintetica*soja_nadubosintetico)/100)*soja_areacultivada)/1000),0,(c_n2o_fertilizantesintetico*((soja_adubacaonitrogenadasintetica*soja_nadubosintetico)/100)*soja_areacultivada)/1000)","v":0},null,0]
[null,null,"Adubação orgânica","-",null,{"$f":"SUM(IF(ISERROR(soja_adubacaoorganicacompostoorganico*c_n2o_compostoorganico*soja_areacultivada/1000),0,soja_adubacaoorganicacompostoorganico*c_n2o_compostoorganico*soja_areacultivada/1000),IF(ISERROR(soja_adubacaoorganicaestercoavicola*c_n2o_estercoavicola*soja_areacultivada/1000),0,soja_adubacaoorganicaestercoavicola*c_n2o_estercoavicola*soja_areacultivada/1000),IF(ISERROR(soja_adubacaoorganicaestercogeral*c_n2o_estercogeral*soja_areacultivada/1000),0,soja_adubacaoorganicaestercogeral*c_n2o_estercogeral*soja_areacultivada/1000),IF(ISERROR(soja_adubacaoorganicaoutros*c_n2o_aduboorganicogeral*soja_areacultivada/1000),0,soja_adubacaoorganicaoutros*c_n2o_aduboorganicogeral*soja_areacultivada/1000))","v":0},null,0]
[null,null,"Lixiviação/escoamento superficial","Emissões indiretas",null,{"$f":"SUM(IF(ISERROR(soja_aplicacaoureia*c_ureia_teornitrogenio/100*c_n2o_ef4*conversor_nn2o_n2o*c_fracleach/100*soja_areacultivada/1000),0,soja_aplicacaoureia*c_ureia_teornitrogenio/100*c_n2o_ef4*conversor_nn2o_n2o*c_fracleach/100*soja_areacultivada/1000),IF(ISERROR(soja_adubacaonitrogenadasintetica*soja_nadubosintetico/100*c_n2o_ef4*conversor_nn2o_n2o*c_fracleach/100*soja_areacultivada/1000),0,soja_adubacaonitrogenadasintetica*soja_nadubosintetico/100*c_n2o_ef4*conversor_nn2o_n2o*c_fracleach/100*soja_areacultivada/1000),IF(ISERROR(soja_adubacaoorganicacompostoorganico*c_compostoorganico_teornitrogenio/100*c_n2o_ef4*conversor_nn2o_n2o*c_fracleach/100*soja_areacultivada/1000),0,soja_adubacaoorganicacompostoorganico*c_compostoorganico_teornitrogenio/100*c_n2o_ef4*conversor_nn2o_n2o*c_fracleach/100*soja_areacultivada/1000),IF(ISERROR(soja_adubacaoorganicaestercogeral*c_estercogeral_teornitrogenio/100*c_n2o_ef4*conversor_nn2o_n2o*c_fracleach/100*soja_areacultivada/1000),0,soja_adubacaoorganicaestercogeral*c_estercogeral_teornitrogenio/100*c_n2o_ef4*conversor_nn2o_n2o*c_fracleach/100*soja_areacultivada/1000),IF(ISERROR(soja_adubacaoorganicaestercoavicola*c_estercoavicola_teornitrogenio/100*c_n2o_ef4*conversor_nn2o_n2o*c_fracleach/100*soja_areacultivada/1000),0,soja_adubacaoorganicaestercoavicola*c_estercoavicola_teornitrogenio/100*c_n2o_ef4*conversor_nn2o_n2o*c_fracleach/100*soja_areacultivada/1000),IF(ISERROR(soja_adubacaoorganicaoutros*c_aduboorganicogeral_teornitrogenio*c_n2o_ef4*conversor_nn2o_n2o*c_fracleach/100*soja_areacultivada/1000),0,soja_adubacaoorganicaoutros*c_aduboorganicogeral_teornitrogenio*c_n2o_ef4*conversor_nn2o_n2o*c_fracleach/100*soja_areacultivada/1000))","v":0},null,0]
[null,null,"Deposição atm. de N volatilizado","Emissões indiretas",null,{"$f":"SUM(IF(ISERROR(soja_aplicacaoureia*c_ureia_teornitrogenio/100*c_fracgasf/100*c_n2o_ef3*conversor_nn2o_n2o*soja_areacultivada/1000),0,soja_aplicacaoureia*c_ureia_teornitrogenio/100*c_fracgasf/100*c_n2o_ef3*conversor_nn2o_n2o*soja_areacultivada/1000),IF(ISERROR(soja_adubacaonitrogenadasintetica*soja_nadubosintetico/100*c_fracgasf/100*c_n2o_ef3*conversor_nn2o_n2o*soja_areacultivada/1000),0,soja_adubacaonitrogenadasintetica*soja_nadubosintetico/100*c_fracgasf/100*c_n2o_ef3*conversor_nn2o_n2o*soja_areacultivada/1000),IF(ISERROR(soja_adubacaoorganicacompostoorganico*c_compostoorganico_teornitrogenio/100*c_fracgasm/100*c_n2o_ef3*conversor_nn2o_n2o*soja_areacultivada/1000),0,soja_adubacaoorganicacompostoorganico*c_compostoorganico_teornitrogenio/100*c_fracgasm/100*c_n2o_ef3*conversor_nn2o_n2o*soja_areacultivada/1000),IF(ISERROR(soja_adubacaoorganicaestercoavicola*c_estercoavicola_teornitrogenio/100*c_fracgasm/100*c_n2o_ef3*conversor_nn2o_n2o*soja_areacultivada/1000),0,soja_adubacaoorganicaestercoavicola*c_estercoavicola_teornitrogenio/100*c_fracgasm/100*c_n2o_ef3*conversor_nn2o_n2o*soja_areacultivada/1000),IF(ISERROR(soja_adubacaoorganicaestercogeral*c_estercogeral_teornitrogenio/100*c_fracgasm/100*c_n2o_ef3*conversor_nn2o_n2o*soja_areacultivada/1000),0,soja_adubacaoorganicaestercogeral*c_estercogeral_teornitrogenio/100*c_fracgasm/100*c_n2o_ef3*conversor_nn2o_n2o*soja_areacultivada/1000),IF(ISERROR(soja_adubacaoorganicaoutros*c_aduboorganicogeral_teornitrogenio/100*c_fracgasm/100*c_n2o_ef3*conversor_nn2o_n2o*soja_areacultivada/1000),0,soja_adubacaoorganicaoutros*c_aduboorganicogeral_teornitrogenio/100*c_fracgasm/100*c_n2o_ef3*conversor_nn2o_n2o*soja_areacultivada/1000))","v":0},null,0]
[null,null,"Decomposição de resíduos","-",null,{"$f":"IF(ISERROR(((soja_produtividademedia*c_residuosoja_n2o)+((soja_adubacaoverdegraminea/1000*c_residuoadubacaoverdegraminea_n2o)+(soja_adubacaoverdeleguminosa/1000*c_residuoadubacaoverdeleguminosa_n2o)+(soja_adubacaoverdeoutros/1000*c_residuoadubacaoverdeoutros_n2o)))*soja_areacultivada),0,((soja_produtividademedia*c_residuosoja_n2o)+((soja_adubacaoverdegraminea/1000*c_residuoadubacaoverdegraminea_n2o)+(soja_adubacaoverdeleguminosa/1000*c_residuoadubacaoverdeleguminosa_n2o)+(soja_adubacaoverdeoutros/1000*c_residuoadubacaoverdeoutros_n2o)))*soja_areacultivada)","v":0},null,0]
[null,null,"Manejo de solos orgânicos","-",{"$f":"IF(ISERROR(soja_cultivosoloorganico*c_co2eq_cultivosolosorganicos),0,soja_cultivosoloorganico*c_co2eq_cultivosolosorganicos)","v":0},{"$f":"IF(ISERROR(soja_cultivosoloorganico*c_n2o_perdanitrogenio),0,soja_cultivosoloorganico*c_n2o_perdanitrogenio)","v":0},null,0]
[null,"Fontes mecânicas","Operações mecanizadas","-",{"$f":"SUM(IF(ISERROR(IF(soja_tipoconsumocombustivel=\"Quantidade consumida\",soja_consumodiesel*mistura_diesel_soja/100*c_mecanizacao_co2,IF(soja_tipoconsumocombustivel=\"Operações mecanizadas\",c_consumooperacoesmecanizadassoja*c_diesel_consumomedio*c_mecanizacao_co2*mistura_diesel_soja/100,0))),0,IF(soja_tipoconsumocombustivel=\"Quantidade consumida\",soja_consumodiesel*mistura_diesel_soja/100*c_mecanizacao_co2,IF(soja_tipoconsumocombustivel=\"Operações mecanizadas\",c_consumooperacoesmecanizadassoja*c_diesel_consumomedio*c_mecanizacao_co2*mistura_diesel_soja/100,0))),IF(ISERROR((soja_operacoesinternas_gasolina*mistura_gasolinacomum/100*c_emissao_gasolina_a_co2)),0,soja_operacoesinternas_gasolina*mistura_gasolinacomum/100*c_emissao_gasolina_a_co2))","v":0},{"$f":"IF(ISERROR(IF(soja_tipoconsumocombustivel=\"Quantidade consumida\",soja_consumodiesel*mistura_diesel_soja/100*c_mecanizacao_n2o,IF(soja_tipoconsumocombustivel=\"Operações mecanizadas\",c_consumooperacoesmecanizadassoja*c_diesel_consumomedio*c_mecanizacao_n2o*mistura_diesel_soja/100,0))),0,IF(soja_tipoconsumocombustivel=\"Quantidade consumida\",soja_consumodiesel*mistura_diesel_soja/100*c_mecanizacao_n2o,IF(soja_tipoconsumocombustivel=\"Operações mecanizadas\",c_consumooperacoesmecanizadassoja*c_diesel_consumomedio*c_mecanizacao_n2o*mistura_diesel_soja/100,0)))","v":0},{"$f":"IF(ISERROR(IF(soja_tipoconsumocombustivel=\"Quantidade consumida\",soja_consumodiesel*mistura_diesel_soja/100*c_mecanizacao_ch4,IF(soja_tipoconsumocombustivel=\"Operações mecanizadas\",c_consumooperacoesmecanizadassoja*c_diesel_consumomedio*c_mecanizacao_ch4*mistura_diesel_soja/100,0))),0,IF(soja_tipoconsumocombustivel=\"Quantidade consumida\",soja_consumodiesel*mistura_diesel_soja/100*c_mecanizacao_ch4,IF(soja_tipoconsumocombustivel=\"Operações mecanizadas\",c_consumooperacoesmecanizadassoja*c_diesel_consumomedio*c_mecanizacao_ch4*mistura_diesel_soja/100,0)))","v":0},0]
[null,"Mudança de uso do solo","Estoque inicial de carbono na veg. nativa","-",{"$f":"IF(AND(soja_usoanteriorterra =\"Floresta nativa\",ISNUMBER(soja_estoqueinicialcarbono)),soja_estoqueinicialcarbono*soja_areacultivada,0)","v":0},null,null,0]
[]
[null,"Tabela 5. Escopo 3."]
[null,null,null,null,"Emissões (tonelada)",null,null,"Total\n(tonelada de CO2 eq.)"]
[null,"Fonte",null,"Detalhes","CO2","N2O","CH4"]
[null,"Fontes mecânicas","Transporte da produção","-",{"$f":"SUM(IF(ISERROR(soja_transporteproducao_quantidade*mistura_diesel_transporte_soja/100*c_mecanizacao_co2),0,soja_transporteproducao_quantidade*mistura_diesel_transporte_soja/100*c_mecanizacao_co2),IF(ISERROR(soja_transporteproducao_quantidade*(1-mistura_diesel_transporte_soja/100)*c_emissao_biodiesel),0,soja_transporteproducao_quantidade*(1-mistura_diesel_transporte_soja/100)*c_emissao_biodiesel))","v":0},{"$f":"IF(ISERROR((soja_transporteproducao_quantidade* mistura_diesel_transporte_soja/100*c_mecanizacao_n2o)),0,(soja_transporteproducao_quantidade* mistura_diesel_transporte_soja/100*c_mecanizacao_n2o))","v":0},{"$f":"IF(ISERROR((soja_transporteproducao_quantidade* mistura_diesel_transporte_soja/100*c_mecanizacao_ch4)),0,(soja_transporteproducao_quantidade* mistura_diesel_transporte_soja/100*c_mecanizacao_ch4))","v":0},{"$f":"SUM(E456,F456*pag_n2o,G456*pag_ch4)","v":0}]
[]
[null,"Tabela 6.1. Processos biogênicos."]
[null,null,null,null,"Emissões (tonelada)",null,null,"Total\n(tonelada de CO2 eq.)"]
[null,"Fonte",null,"Detalhes","CO2","N2O","CH4"]
[null,"Biocombustíveis",null,"-",{"$f":"SUM(IF(ISERROR(IF(soja_tipoconsumocombustivel=\"Quantidade consumida\",soja_consumodiesel*(1-(mistura_diesel_soja/100))*c_emissao_biodiesel,IF(soja_tipoconsumocombustivel=\"Operações mecanizadas\",c_consumooperacoesmecanizadassoja*c_diesel_consumomedio*(1-(mistura_diesel_soja/100))*c_emissao_biodiesel,0))),0,IF(soja_tipoconsumocombustivel=\"Quantidade consumida\",soja_consumodiesel*(1-(mistura_diesel_soja/100))*c_emissao_biodiesel,IF(soja_tipoconsumocombustivel=\"Operações mecanizadas\",c_consumooperacoesmecanizadassoja*c_diesel_consumomedio*(1-(mistura_diesel_soja/100))*c_emissao_biodiesel,0))),IF(ISERROR((soja_operacoesinternas_gasolina*(1-(mistura_gasolinacomum/100))*c_emissao_etanol_anidro_co2)),0,soja_operacoesinternas_gasolina*(1-(mistura_gasolinacomum/100))*c_emissao_etanol_anidro_co2),IF(ISERROR(soja_operacoesinternas_etanol*c_emissao_etanol_hidratado_co2),0,soja_operacoesinternas_etanol*c_emissao_etanol_hidratado_co2))","v":0},null,null,{"$f":"SUM(E461,F461*pag_n2o,G461*pag_ch4)","v":0}]
[null,"Queima de resíduos",null,"-",{"$f":"IF(ISERROR(soja_areaqueimaresiduos*soja_produtividademedia*c_queimaresiduosoja_co*conversor_co_co2),0,soja_areaqueimaresiduos*soja_produtividademedia*c_queimaresiduosoja_co*conversor_co_co2)","v":0},{"$f":"IF(ISERROR((soja_areaqueimaresiduos*soja_produtividademedia*c_queimaresiduosoja_n2o)+(soja_areaqueimaresiduos*soja_produtividademedia*c_queimaresiduosoja_nox*conversor_no2_n2o)),0,(soja_areaqueimaresiduos*soja_produtividademedia*c_queimaresiduosoja_n2o)+(soja_areaqueimaresiduos*soja_produtividademedia*c_queimaresiduosoja_nox*conversor_no2_n2o))","v":0},{"$f":"IF(ISERROR(soja_areaqueimaresiduos*soja_produtividademedia*c_queimaresiduosoja_ch4),0,soja_areaqueimaresiduos*soja_produtividademedia*c_queimaresiduosoja_ch4)","v":0},{"$f":"SUM(E462,F462*pag_n2o,G462*pag_ch4)","v":0}]
[]
[null,"Tabela 6.2. Processos biogênicos."]
[null,null,null,null,"Remoções (tonelada)",null,null,"Total\n(tonelada de CO2 eq.)"]
[null,"Fonte",null,"Detalhes","CO2","N2O","CH4"]
[null,"Adubação verde",null,"-",{"$f":"IF(ISERROR(IF(SUM(soja_adubacaoverdeleguminosa,soja_adubacaoverdegraminea,soja_adubacaoverdeoutros)>0,soja_areacultivada*c_emissaobiogenica_adubacaoverde,0)),0,IF(SUM(soja_adubacaoverdeleguminosa,soja_adubacaoverdegraminea,soja_adubacaoverdeoutros)>0,soja_areacultivada*c_emissaobiogenica_adubacaoverde,0))","v":0},null,null,{"$f":"SUM(E467,F467*pag_n2o,G467*pag_ch4)","v":0}]
[]
[null,"Tabela 7. Mudança de uso e ocupação do solo."]
[null,null,null,null,"Emissões/remoções\n(tonelada)"]
[null,"Fonte",null,"Detalhes","CO2 eq."]
[null,"Mudança de uso e ocupação do solo",null,"-",{"$f":"IF(ISERROR(soja_areacultivada*(c_mudancausosolo_soja)),0,soja_areacultivada*(c_mudancausosolo_soja))","v":0}]
[]
[null,"Voltar ao topo da seção","Voltar ao topo da página"]
[]
[null,"Trigo"]
[]
[null,"Tabela 1. Emissões por escopo."]
[null,null,"Total\n(tonelada de CO2 eq.)","Por área cultivada\n(tonelada CO2 eq./hectare)","Por tonelada produzida\n(tonelada CO2 eq./tonelada)"]
[null,"Escopo 1",{"$f":"SUM(H499:H508)","v":0},{"$f":"IF(ISERROR(C480/trigo_areacultivada),0,C480/trigo_areacultivada)","v":0},{"$f":"IF(ISERROR(C480/(trigo_produtividademedia*trigo_areacultivada)),0,C480/(trigo_produtividademedia*trigo_areacultivada))","v":0}]
[null,"Escopo 2",{"$f":"trigo_consumoenergia","v":0},{"$f":"IF(ISERROR(C481/trigo_areacultivada),0,C481/trigo_areacultivada)","v":0},{"$f":"IF(ISERROR(C481/(trigo_produtividademedia*trigo_areacultivada)),0,C481/(trigo_produtividademedia*trigo_areacultivada))","v":0}]
[null,"Escopo 3",{"$f":"H513","v":0},{"$f":"IF(ISERROR(C482/trigo_areacultivada),0,C482/trigo_areacultivada)","v":0},{"$f":"IF(ISERROR(C482/(trigo_produtividademedia*trigo_areacultivada)),0,C482/(trigo_produtividademedia*trigo_areacultivada))","v":0}]
[]
[null,"Tabela 2.1. Emssões por processos biogênicos."]
[null,null,"Total\n(tonelada de CO2 eq.)","Por área cultivada\n(tonelada CO2 eq./hectare)","Por tonelada produzida\n(tonelada CO2 eq./tonelada)"]
[null,"Processos biogênicos",{"$f":"SUM(H518:H519)","v":0},{"$f":"IF(ISERROR(C486/trigo_areacultivada),0,C486/trigo_areacultivada)","v":0},{"$f":"IF(ISERROR(C486/(trigo_produtividademedia*trigo_areacultivada)),0,C486/(trigo_produtividademedia*trigo_areacultivada))","v":0}]
[]
[null,"Tabela 2.2. Remoções por processos biogênicos."]
[null,null,"Total\n(tonelada de CO2 eq.)","Por área cultivada\n(tonelada CO2 eq./hectare)","Por tonelada produzida\n(tonelada CO2 eq./tonelada)"]
[null,"Processos biogênicos",{"$f":"H524","v":0},{"$f":"IF(ISERROR(C490/trigo_areacultivada),0,C490/trigo_areacultivada)","v":0},{"$f":"IF(ISERROR(C490/(trigo_produtividademedia*trigo_areacultivada)),0,C490/(trigo_produtividademedia*trigo_areacultivada))","v":0}]
[]
[null,"Tabela 3. Emissões/remoções por mudança de uso e ocupação do solo."]
[null,null,"Total\n(tonelada de CO2 eq.)","Por área cultivada\n(tonelada CO2 eq./hectare)","Por tonelada produzida\n(tonelada CO2 eq./tonelada)"]
[null,"Mudança de uso e ocupação do solo",{"$f":"E529","v":0},{"$f":"IF(ISERROR(C494/trigo_areacultivada),0,C494/trigo_areacultivada)","v":0},{"$f":"IF(ISERROR(C494/(trigo_produtividademedia*trigo_areacultivada)),0,C494/(trigo_produtividademedia*trigo_areacultivada))","v":0}]
[]
[null,"Tabela 4. Escopo 1."]
[null,null,null,null,"Emissões (tonelada)",null,null,"Total\n(tonelada de CO2 eq.)"]
[null,"Fonte",null,"Detalhes","CO2","N2O","CH4"]
[null,"Fontes não-mecânicas","Aplicação de uréia","-",{"$f":"IF(ISERROR((c_co2_ureia*trigo_aplicacaoureia*trigo_areacultivada)/1000),0,(c_co2_ureia*trigo_aplicacaoureia*trigo_areacultivada)/1000)","v":0},{"$f":"IF(ISERROR((c_n2o_nitrogenioureia*((trigo_aplicacaoureia*c_ureia_teornitrogenio)/100)*trigo_areacultivada)/1000),0,(c_n2o_nitrogenioureia*((trigo_aplicacaoureia*c_ureia_teornitrogenio)/100)*trigo_areacultivada)/1000)","v":0},null,{"$f":"SUM(E499,F499*pag_n2o,G499*pag_ch4)","v":0}]
[null,null,"Calagem e gessagem","-",{"$f":"SUM(IF(ISERROR(trigo_calcariocalcitico*c_co2_calcariocalcitico*trigo_areacultivada/1000),0,trigo_calcariocalcitico*c_co2_calcariocalcitico*trigo_areacultivada/1000),IF(ISERROR(trigo_calcariodolomitico*c_co2_calcariodolomitico*trigo_areacultivada/1000),0,trigo_calcariodolomitico*c_co2_calcariodolomitico*trigo_areacultivada/1000),IF(ISERROR(trigo_gessoagricola*c_co2_gesso*trigo_areacultivada/1000),0,trigo_gessoagricola*c_co2_gesso*trigo_areacultivada/1000))","v":0},null,null,0]
[null,null,"Fertilizante nitrogenado sintético","Exceto ureia",null,{"$f":"IF(ISERROR((c_n2o_fertilizantesintetico*((trigo_adubacaonitrogenadasintetica*trigo_nadubosintetico)/100))*trigo_areacultivada/1000),0,(c_n2o_fertilizantesintetico*((trigo_adubacaonitrogenadasintetica*trigo_nadubosintetico)/100))*trigo_areacultivada/1000)","v":0},null,0]
[null,null,"Adubação orgânica","-",null,{"$f":"SUM(IF(ISERROR(trigo_adubacaoorganicacompostoorganico*c_n2o_compostoorganico*trigo_areacultivada/1000),0,trigo_adubacaoorganicacompostoorganico*c_n2o_compostoorganico*trigo_areacultivada/1000),IF(ISERROR(trigo_adubacaoorganicaestercoavicola*c_n2o_estercoavicola*trigo_areacultivada/1000),0,trigo_adubacaoorganicaestercoavicola*c_n2o_estercoavicola*trigo_areacultivada/1000),IF(ISERROR(trigo_adubacaoorganicaestercogeral*c_n2o_estercogeral*trigo_areacultivada/1000),0,trigo_adubacaoorganicaestercogeral*c_n2o_estercogeral*trigo_areacultivada/1000),IF(ISERROR(trigo_adubacaoorganicaoutros*c_n2o_aduboorganicogeral*trigo_areacultivada/1000),0,trigo_adubacaoorganicaoutros*c_n2o_aduboorganicogeral*trigo_areacultivada/1000))","v":0},null,0]
[null,null,"Lixiviação/escoamento superficial","Emissões indiretas",null,{"$f":"SUM(IF(ISERROR(trigo_aplicacaoureia*c_ureia_teornitrogenio/100*c_n2o_ef4*conversor_nn2o_n2o*c_fracleach/100*trigo_areacultivada/1000),0,trigo_aplicacaoureia*c_ureia_teornitrogenio/100*c_n2o_ef4*conversor_nn2o_n2o*c_fracleach/100*trigo_areacultivada/1000),IF(ISERROR(trigo_adubacaonitrogenadasintetica*trigo_nadubosintetico/100*c_n2o_ef4*conversor_nn2o_n2o*c_fracleach/100*trigo_areacultivada/1000),0,trigo_adubacaonitrogenadasintetica*trigo_nadubosintetico/100*c_n2o_ef4*conversor_nn2o_n2o*c_fracleach/100*trigo_areacultivada/1000),IF(ISERROR(trigo_adubacaoorganicacompostoorganico*c_compostoorganico_teornitrogenio/100*c_n2o_ef4*conversor_nn2o_n2o*c_fracleach/100*trigo_areacultivada/1000),0,trigo_adubacaoorganicacompostoorganico*c_compostoorganico_teornitrogenio/100*c_n2o_ef4*conversor_nn2o_n2o*c_fracleach/100*trigo_areacultivada/1000),IF(ISERROR(trigo_adubacaoorganicaestercogeral*c_estercogeral_teornitrogenio/100*c_n2o_ef4*conversor_nn2o_n2o*c_fracleach/100*trigo_areacultivada/1000),0,trigo_adubacaoorganicaestercogeral*c_estercogeral_teornitrogenio/100*c_n2o_ef4*conversor_nn2o_n2o*c_fracleach/100*trigo_areacultivada/1000),IF(ISERROR(trigo_adubacaoorganicaestercoavicola*c_estercoavicola_teornitrogenio/100*c_n2o_ef4*conversor_nn2o_n2o*c_fracleach/100*trigo_areacultivada/1000),0,trigo_adubacaoorganicaestercoavicola*c_estercoavicola_teornitrogenio/100*c_n2o_ef4*conversor_nn2o_n2o*c_fracleach/100*trigo_areacultivada/1000),IF(ISERROR(trigo_adubacaoorganicaoutros*c_aduboorganicogeral_teornitrogenio*c_n2o_ef4*conversor_nn2o_n2o*c_fracleach/100*trigo_areacultivada/1000),0,trigo_adubacaoorganicaoutros*c_aduboorganicogeral_teornitrogenio*c_n2o_ef4*conversor_nn2o_n2o*c_fracleach/100*trigo_areacultivada/1000))","v":0},null,0]
[null,null,"Deposição atm. de N volatilizado","Emissões indiretas",null,{"$f":"SUM(IF(ISERROR(trigo_aplicacaoureia*c_ureia_teornitrogenio/100*c_fracgasf/100*c_n2o_ef3*conversor_nn2o_n2o*trigo_areacultivada/1000),0,trigo_aplicacaoureia*c_ureia_teornitrogenio/100*c_fracgasf/100*c_n2o_ef3*conversor_nn2o_n2o*trigo_areacultivada/1000),IF(ISERROR(trigo_adubacaonitrogenadasintetica*trigo_nadubosintetico/100*c_fracgasf/100*c_n2o_ef3*conversor_nn2o_n2o*trigo_areacultivada/1000),0,trigo_adubacaonitrogenadasintetica*trigo_nadubosintetico/100*c_fracgasf/100*c_n2o_ef3*conversor_nn2o_n2o*trigo_areacultivada/1000),IF(ISERROR(trigo_adubacaoorganicacompostoorganico*c_compostoorganico_teornitrogenio/100*c_fracgasm/100*c_n2o_ef3*conversor_nn2o_n2o*trigo_areacultivada/1000),0,trigo_adubacaoorganicacompostoorganico*c_compostoorganico_teornitrogenio/100*c_fracgasm/100*c_n2o_ef3*conversor_nn2o_n2o*trigo_areacultivada/1000),IF(ISERROR(trigo_adubacaoorganicaestercoavicola*c_estercoavicola_teornitrogenio/100*c_fracgasm/100*c_n2o_ef3*conversor_nn2o_n2o*trigo_areacultivada/1000),0,trigo_adubacaoorganicaestercoavicola*c_estercoavicola_teornitrogenio/100*c_fracgasm/100*c_n2o_ef3*conversor_nn2o_n2o*trigo_areacultivada/1000),IF(ISERROR(trigo_adubacaoorganicaestercogeral*c_estercogeral_teornitrogenio/100*c_fracgasm/100*c_n2o_ef3*conversor_nn2o_n2o*trigo_areacultivada/1000),0,trigo_adubacaoorganicaestercogeral*c_estercogeral_teornitrogenio/100*c_fracgasm/100*c_n2o_ef3*conversor_nn2o_n2o*trigo_areacultivada/1000),IF(ISERROR(trigo_adubacaoorganicaoutros*c_aduboorganicogeral_teornitrogenio/100*c_fracgasm/100*c_n2o_ef3*conversor_nn2o_n2o*trigo_areacultivada/1000),0,trigo_adubacaoorganicaoutros*c_aduboorganicogeral_teornitrogenio/100*c_fracgasm/100*c_n2o_ef3*conversor_nn2o_n2o*trigo_areacultivada/1000))","v":0},null,0]
[null,null,"Decomposição de resíduos","-",null,{"$f":"IF(ISERROR(((trigo_produtividademedia*c_residuotrigo_n2o)+(trigo_adubacaoverdegraminea/1000*c_residuoadubacaoverdegraminea_n2o)+(trigo_adubacaoverdeleguminosa/1000*c_residuoadubacaoverdeleguminosa_n2o)+(trigo_adubacaoverdeoutros/1000*c_residuoadubacaoverdeoutros_n2o))*trigo_areacultivada),0,((trigo_produtividademedia*c_residuotrigo_n2o)+(trigo_adubacaoverdegraminea/1000*c_residuoadubacaoverdegraminea_n2o)+(trigo_adubacaoverdeleguminosa/1000*c_residuoadubacaoverdeleguminosa_n2o)+(trigo_adubacaoverdeoutros/1000*c_residuoadubacaoverdeoutros_n2o))*trigo_areacultivada)","v":0},null,0]
[null,null,"Manejo de solos orgânicos","-",{"$f":"IF(ISERROR(trigo_cultivosoloorganico*c_co2eq_cultivosolosorganicos),0,trigo_cultivosoloorganico*c_co2eq_cultivosolosorganicos)","v":0},{"$f":"IF(ISERROR(trigo_cultivosoloorganico*c_n2o_perdanitrogenio),0,trigo_cultivosoloorganico*c_n2o_perdanitrogenio)","v":0},null,0]
[null,"Fontes mecânicas","Operações mecanizadas","-",{"$f":"SUM(IF(ISERROR(IF(trigo_tipoconsumocombustivel=\"Quantidade consumida\",trigo_consumodiesel*mistura_diesel_trigo/100*c_mecanizacao_co2,IF(trigo_tipoconsumocombustivel=\"Operações mecanizadas\",c_consumooperacoesmecanizadastrigo*c_diesel_consumomedio*c_mecanizacao_co2*mistura_diesel_trigo/100,0))),0,IF(trigo_tipoconsumocombustivel=\"Quantidade consumida\",trigo_consumodiesel*mistura_diesel_trigo/100*c_mecanizacao_co2,IF(trigo_tipoconsumocombustivel=\"Operações mecanizadas\",c_consumooperacoesmecanizadastrigo*c_diesel_consumomedio*c_mecanizacao_co2*mistura_diesel_trigo/100,0))),IF(ISERROR((trigo_operacoesinternas_gasolina*mistura_gasolinacomum/100*c_emissao_gasolina_a_co2)),0,trigo_operacoesinternas_gasolina*mistura_gasolinacomum/100*c_emissao_gasolina_a_co2))","v":0},{"$f":"IF(ISERROR(IF(trigo_tipoconsumocombustivel=\"Quantidade consumida\",trigo_consumodiesel*mistura_diesel_trigo/100*c_mecanizacao_n2o,IF(trigo_tipoconsumocombustivel=\"Operações mecanizadas\",c_consumooperacoesmecanizadastrigo*c_diesel_consumomedio*c_mecanizacao_n2o*mistura_diesel_trigo/100,0))),0,IF(trigo_tipoconsumocombustivel=\"Quantidade consumida\",trigo_consumodiesel*mistura_diesel_trigo/100*c_mecanizacao_n2o,IF(trigo_tipoconsumocombustivel=\"Operações mecanizadas\",c_consumooperacoesmecanizadastrigo*c_diesel_consumomedio*c_mecanizacao_n2o*mistura_diesel_trigo/100,0)))","v":0},{"$f":"IF(ISERROR(IF(trigo_tipoconsumocombustivel=\"Quantidade consumida\",trigo_consumodiesel*mistura_diesel_trigo/100*c_mecanizacao_ch4,IF(trigo_tipoconsumocombustivel=\"Operações mecanizadas\",c_consumooperacoesmecanizadastrigo*c_diesel_consumomedio*c_mecanizacao_ch4*mistura_diesel_trigo/100,0))),0,IF(trigo_tipoconsumocombustivel=\"Quantidade consumida\",trigo_consumodiesel*mistura_diesel_trigo/100*c_mecanizacao_ch4,IF(trigo_tipoconsumocombustivel=\"Operações mecanizadas\",c_consumooperacoesmecanizadastrigo*c_diesel_consumomedio*c_mecanizacao_ch4*mistura_diesel_trigo/100,0)))","v":0},0]
[null,"Mudança de uso do solo","Estoque inicial de carbono na veg. nativa","-",{"$f":"IF(AND(trigo_usoanteriorterra =\"Floresta nativa\",ISNUMBER(trigo_estoqueinicialcarbono)),trigo_estoqueinicialcarbono*trigo_areacultivada,0)","v":0},null,null,0]
[]
[null,"Tabela 5. Escopo 3."]
[null,null,null,null,"Emissões (tonelada)",null,null,"Total\n(tonelada de CO2 eq.)"]
[null,"Fonte",null,"Detalhes","CO2","N2O","CH4"]
[null,"Fontes mecânicas","Transporte da produção","-",{"$f":"SUM(IF(ISERROR(trigo_transporteproducao_quantidade*mistura_diesel_transporte_trigo/100*c_mecanizacao_co2),0,trigo_transporteproducao_quantidade*mistura_diesel_transporte_trigo/100*c_mecanizacao_co2),IF(ISERROR(trigo_transporteproducao_quantidade*(1-mistura_diesel_transporte_trigo/100)*c_emissao_biodiesel),0,trigo_transporteproducao_quantidade*(1-mistura_diesel_transporte_trigo/100)*c_emissao_biodiesel))","v":0},{"$f":"IF(ISERROR((trigo_transporteproducao_quantidade* mistura_diesel_transporte_trigo/100*c_mecanizacao_n2o)),0,(trigo_transporteproducao_quantidade* mistura_diesel_transporte_trigo/100*c_mecanizacao_n2o))","v":0},{"$f":"IF(ISERROR((trigo_transporteproducao_quantidade* mistura_diesel_transporte_trigo/100*c_mecanizacao_ch4)),0,(trigo_transporteproducao_quantidade* mistura_diesel_transporte_trigo/100*c_mecanizacao_ch4))","v":0},{"$f":"SUM(E513,F513*pag_n2o,G513*pag_ch4)","v":0}]
[]
[null,"Tabela 6.1. Processos biogênicos."]
[null,null,null,null,"Emissões (tonelada)",null,null,"Total\n(tonelada de CO2 eq.)"]
[null,"Fonte",null,"Detalhes","CO2","N2O","CH4"]
[null,"Biocombustíveis",null,"-",{"$f":"SUM(IF(ISERROR(IF(trigo_tipoconsumocombustivel=\"Quantidade consumida\",trigo_consumodiesel*(1-(mistura_diesel_trigo/100))*c_emissao_biodiesel,IF(trigo_tipoconsumocombustivel=\"Operações mecanizadas\",c_consumooperacoesmecanizadastrigo*c_diesel_consumomedio*(1-(mistura_diesel_trigo/100))*c_emissao_biodiesel,0))),0,IF(trigo_tipoconsumocombustivel=\"Quantidade consumida\",trigo_consumodiesel*(1-(mistura_diesel_trigo/100))*c_emissao_biodiesel,IF(trigo_tipoconsumocombustivel=\"Operações mecanizadas\",c_consumooperacoesmecanizadastrigo*c_diesel_consumomedio*(1-(mistura_diesel_trigo/100))*c_emissao_biodiesel,0))),IF(ISERROR((trigo_operacoesinternas_gasolina*(1-(mistura_gasolinacomum/100))*c_emissao_etanol_anidro_co2)),0,trigo_operacoesinternas_gasolina*(1-(mistura_gasolinacomum/100))*c_emissao_etanol_anidro_co2),IF(ISERROR(trigo_operacoesinternas_etanol*c_emissao_etanol_hidratado_co2),0,trigo_operacoesinternas_etanol*c_emissao_etanol_hidratado_co2))","v":0},null,null,{"$f":"SUM(E518,F518*pag_n2o,G518*pag_ch4)","v":0}]
[null,"Queima de resíduos",null,"-",{"$f":"IF(ISERROR(trigo_areaqueimaresiduos*trigo_produtividademedia*c_queimaresiduotrigo_co*conversor_co_co2),0,trigo_areaqueimaresiduos*trigo_produtividademedia*c_queimaresiduotrigo_co*conversor_co_co2)","v":0},{"$f":"IF(ISERROR((trigo_areaqueimaresiduos*trigo_produtividademedia*c_queimaresiduotrigo_n2o)+(trigo_areaqueimaresiduos*trigo_produtividademedia*c_queimaresiduotrigo_nox*conversor_no2_n2o)),0,(trigo_areaqueimaresiduos*trigo_produtividademedia*c_queimaresiduotrigo_n2o)+(trigo_areaqueimaresiduos*trigo_produtividademedia*c_queimaresiduotrigo_nox*conversor_no2_n2o))","v":0},{"$f":"IF(ISERROR(trigo_areaqueimaresiduos*trigo_produtividademedia*c_queimaresiduotrigo_ch4),0,trigo_areaqueimaresiduos*trigo_produtividademedia*c_queimaresiduotrigo_ch4)","v":0},{"$f":"SUM(E519,F519*pag_n2o,G519*pag_ch4)","v":0}]
[]
[null,"Tabela 6.2. Processos biogênicos."]
[null,null,null,null,"Remoções (tonelada)",null,null,"Total\n(tonelada de CO2 eq.)"]
[null,"Fonte",null,"Detalhes","CO2","N2O","CH4"]
[null,"Adubação verde",null,"-",{"$f":"IF(ISERROR(IF(SUM(trigo_adubacaoverdeleguminosa,trigo_adubacaoverdegraminea,trigo_adubacaoverdeoutros)>0,trigo_areacultivada*c_emissaobiogenica_adubacaoverde,0)),0,IF(SUM(trigo_adubacaoverdeleguminosa,trigo_adubacaoverdegraminea,trigo_adubacaoverdeoutros)>0,trigo_areacultivada*c_emissaobiogenica_adubacaoverde,0))","v":0},null,null,{"$f":"SUM(E524,F524*pag_n2o,G524*pag_ch4)","v":0}]
[]
[null,"Tabela 7. Mudança de uso e ocupação do solo."]
[null,null,null,null,"Emissões/remoções\n(tonelada)"]
[null,"Fonte",null,"Detalhes","CO2 eq."]
[null,"Mudança de uso e ocupação do solo",null,"-",{"$f":"IF(ISERROR(trigo_areacultivada*(c_mudancausosolo_trigo)),0,trigo_areacultivada*(c_mudancausosolo_trigo))","v":0}]
[]
[null,"Voltar ao topo da seção","Voltar ao topo da página"]

{"sheet":"Fatores de emissão","index":4,"n_rows":296,"n_cols":33,"rows_kept":296,"cut":false,"hidden":false,"merged":[[270,6,270,7],[271,6,271,7],[19,3,19,4],[34,1,34,5],[22,6,22,8],[23,6,23,8],[24,6,24,8],[25,6,25,8],[26,6,26,8],[27,6,27,8],[28,6,28,8],[29,6,29,8],[30,6,30,8],[31,6,31,8],[32,6,32,8],[248,6,248,7],[249,6,249,7],[20,6,20,8],[228,2,228,7],[246,6,246,7],[247,6,247,7],[152,1,152,14],[153,2,153,14],[154,12,155,12],[280,6,280,7],[281,6,281,7],[282,6,282,7],[283,6,283,7],[284,6,284,7],[275,6,275,7],[276,6,276,7],[277,6,277,7],[278,6,278,7],[279,6,279,7],[290,6,290,7],[291,6,291,7],[293,6,293,7],[294,6,294,7],[295,6,295,7],[285,6,285,7],[286,6,286,7],[287,6,287,7],[288,6,288,7],[289,6,289,7],[292,6,292,7],[272,6,272,7],[273,6,273,7],[274,6,274,7],[265,6,265,7],[266,6,266,7],[267,6,267,7],[268,6,268,7],[269,6,269,7],[245,6,245,7],[261,6,261,7],[262,6,262,7],[263,6,263,7],[264,6,264,7],[250,6,250,7],[251,6,251,7],[252,6,252,7],[253,6,253,7],[254,6,254,7],[255,6,255,7],[256,6,256,7],[257,6,257,7],[258,6,258,7],[259,6,259,7],[260,6,260,7],[154,6,155,6],[207,2,207,13],[113,9,114,9],[113,8,114,8],[154,2,154,4],[154,14,155,14],[18,1,18,7],[14,1,14,16],[113,11,114,11],[113,15,114,15],[113,14,114,14],[113,13,114,13],[113,3,113,5],[113,6,114,6],[82,1,82,5],[59,1,59,5],[74,1,74,5],[58,1,58,5],[16,1,16,16],[89,3,89,9],[88,1,88,9],[113,7,114,7],[204,1,204,16],[219,1,219,16],[113,12,114,12],[113,10,114,10],[113,16,114,16],[154,9,155,9],[112,3,112,16],[244,1,244,7],[21,6,21,8],[154,5,155,5],[154,7,155,7],[154,13,155,13],[154,8,155,8],[154,10,155,10],[154,11,155,11],[206,1,206,16],[238,1,238,5],[184,1,184,5],[39,1,39,5],[44,1,44,5],[111,1,111,16],[242,1,242,16],[227,1,227,7],[221,1,221,5],[197,1,197,4]]}
[]
[]
[]
[]
[]
[]
[]
[]
[]
[]
[]
[]
[]
[]
[null,"Fatores de emissão"]
[]
[null,"Escopo 1"]
[]
[null,"Tabela 1. Adubação."]
[null,null,null,"Fatores de emissão"]
[null,"Fonte","Detalhes","CO2","N2O","Unidade","Referência"]
[null,"Fertilizante sintético","Exceto uréia",null,1.1299999999999999E-2,"kg N2O/kg nitrogênio aplicado","BRASIL, 2015"]
[null,"Ureia","-",null,8.8000000000000005E-3,"kg N2O/kg nitrogênio aplicado","BRASIL, 2015"]
[null,"Ureia","-",0.73299999999999998,null,"kg CO2/kg ureia","IPCC, 2006"]
[null,"Calcário","Calcítico",0.43999999999999995,null,"kg CO2/kg calcário","IPCC, 2006"]
[null,"Calcário","Dolomítico",0.47666666666666668,null,"kg CO2/kg calcário","IPCC, 2006"]
[null,"Gesso agrícola","-",0.4,null,"kg CO2/kg gesso","BRASIL, 2016; FEARNSIDE, 1997 e 2002; FEARNSIDE et al., 2013; SEEG, 2016"]
[null,"Esterco","Bovino, equino, suino, ovino",null,2.0114285714285717E-4,"kg N2O/kg adubo","KIEHL, 1965"]
[null,"Esterco","Avícola",null,3.7714285714285714E-4,"kg N2O/kg adubo","KIEHL, 1965"]
[null,"Composto orgânico","-",null,1.76E-4,"kg N2O/kg adubo","KIEHL, 1965"]
[null,"Adubo orgânico geral","-",null,2.2628571428571432E-4,"kg N2O/kg adubo","KIEHL, 1965"]
[null,"Torta de filtro","-",null,2.3570000000000002,"kg N2O/hectare.ano","AGROANALYSIS, 2009"]
[null,"Vinhaça","-",null,1.0883400000000002E-5,"kg N2O/litro","PAREDES et al., 2014"]
[]
[null,"Tabela 2. Emissões secundárias."]
[null,"Fonte","Detalhes","N2O","Unidade","Referência"]
[null,"Volatilização e deposição atmosférica","-",0.01,"kg N2O-N/kg N","GUIDELINES, 1996"]
[null,"Lixiviação/escoamento superficial","-",7.4999999999999997E-3,"kg N2O-N/kg N","IPCC, 2006"]
[]
[null,"Tabela 3. Cultivo de solos orgânicos."]
[null,"Fonte","Detalhes","Fator de emissão","Unidade","Referência"]
[null,"Cultivo de solos orgânicos","Solos tropicais e sub tropicais",73.333333333333329,"tonelada CO2 eq./hectare","IPCC, 2006"]
[null,"Perda de nitrogênio","-",1.8857142857142857E-2,"tonelada de N2O/hectare.ano","MCT, 2010"]
[]
[null,"Tabela 4. Resíduos vegetais."]
[null,"Cultura","Detalhes","Fator de emissão","Unidade","Referência"]
[null,"Soja","-",2.43624857142857E-4,"kg N2O/kg produto","BRASIL, 2015"]
[null,"Milho","-",1.6296342857142858E-4,"kg N2O/kg produto","BRASIL, 2015"]
[null,"Feijão","-",3.4629728571428575E-4,"kg N2O/kg produto","BRASIL, 2015"]
[null,"Arroz","-",1.1484000000000002E-4,"kg N2O/kg produto","BRASIL, 2015"]
[null,"Trigo","-",1.7772857142857139E-4,"kg N2O/kg produto","BRASIL, 2015"]
[null,"Cana sem queima","-",1.7065714285714286E-5,"kg N2O/kg produto","BRASIL, 2015"]
[null,"Cana com queima","-",3.4131428571428567E-6,"kg N2O/kg produto","BRASIL, 2015"]
[null,"Algodão","-",3.6142857142857146E-4,"kg N2O/kg produto","BRASIL, 2015"]
[null,"Adubação verde","Leguminosa",3.823809523809524E-4,"kg N2O/kg produto","KIEHL, 1965"]
[null,"Adubação verde","Gramínea",1.5801587301587301E-4,"kg N2O/kg produto","KIEHL, 1965"]
[null,"Adubação verde","Outros",2.4776190476190476E-4,"kg N2O/kg produto","KIEHL, 1965"]
[]
[null,"Tabela 5. Emissões específicas para rizicultura."]
[null,"Fatores de ecossistemas (SFw)"]
[null,"Regime hídrico","Detalhes","Fator de emissão","Unidade","Referência"]
[null,"1. Sequeiro (ou Terra Firme)","-",0,"Adimensional","MCT, 2010"]
[null,"2. Terras Baixas","-"]
[null,"2.1. Irrigado","-"]
[null,"2.1.1. Continuamente inundado","-",1,"Adimensional","MCT, 2010"]
[null,"2.1.2. Intermitentemente inundado","-"]
[null,"2.1.2.1. Aeração Única","-",0.5,"Adimensional","MCT, 2010"]
[null,"2.1.2.2. Múltiplas aerações","-",0.2,"Adimensional","MCT, 2010"]
[null,"2.2. Alimentado por Chuva","-"]
[null,"2.2.1. Várzea úmida","-",0.8,"Adimensional","MCT, 2010"]
[null,"2.2.2. Várzea seca","-",0.4,"Adimensional","MCT, 2010"]
[null,"2.3. Água profunda","-"]
[null,"2.3.1. Profundidade entre 50 e 100 cm","-",0.8,"Adimensional","MCT, 2010"]
[null,"2.3.2. Profundidades maiores que 100 cm","-",0.6,"Adimensional","MCT, 2010"]
[null,"Fatores de incremento de matéria orgânica (Sfo)"]
[null,"Matéria seca aplicada (kg/hectare) ","Detalhes","Fator de emissão","Unidade","Referência"]
[null,"Sem aplicação","Matéria seca não fermentada",1,"Adimensional","MCT, 2010"]
[null,"De 1.000 a 2.000","Matéria seca não fermentada",1.5,"Adimensional","MCT, 2010"]
[null,"De 2.000 a 4.000","Matéria seca não fermentada",1.8,"Adimensional","MCT, 2010"]
[null,"De 4.000 a 8.000","Matéria seca não fermentada",2.5,"Adimensional","MCT, 2010"]
[null,"De 8.000 a 15.000","Matéria seca não fermentada",3.5,"Adimensional","MCT, 2010"]
[null,"Mais que 15.000","Matéria seca não fermentada",4,"Adimensional","MCT, 2010"]
[null,"Fator de emissão (Fec)"]
[null,"Local","Detalhes","Fator de emissão","Unidade","Referência"]
[null,"Brasil","Exceto Rio Grande do Sul",200,"kg CH4/hectare.ano","MCT, 2010"]
[null,"Rio Grande do Sul","Preparo convencional (Outono/Inverno)",417.00000000000006,"kg CH4/hectare.ano","BRASIL, 2015"]
[null,"Rio Grande do Sul","Preparo antecipado (Primavera)",317,"kg CH4/hectare.ano","BRASIL, 2015"]
[]
[null,"Tabela 6. Sistema de manejo de dejetos animais - Tier 2."]
[null,null,null,"Fatores de emissão por grupo de manejo"]
[null,"Animal","Detalhes","Grupo 1 de manejo","Grupo 2 de manejo","Grupo 3 de manejo","Grupo 4 de manejo","Animais em pastagem","Unidade","Referência"]
[null,"Ovino","Menor que 1 ano",1.1999999999999999E-4,6.0000000000000002E-6,2.9999999999999997E-5,4.2000000000000004E-5,5.9999999999999995E-5,"tonelada N2O/animal.ano","MCT, 2010; BRASIL, 2015; LESSA et al., 2014"]
[null,"Ovino","Maior que 1 ano",2.3999999999999998E-4,1.2E-5,5.9999999999999995E-5,8.4000000000000009E-5,1.1999999999999999E-4,"tonelada N2O/animal.ano","MCT, 2010; BRASIL, 2015; LESSA et al., 2014"]
[null,"Caprino","Menor que 1 ano",1.1999999999999999E-4,6.0000000000000002E-6,2.9999999999999997E-5,4.2000000000000004E-5,5.9999999999999995E-5,"tonelada N2O/animal.ano","MCT, 2010; BRASIL, 2015; LESSA et al., 2014"]
[null,"Caprino","Maior que 1 ano",2.3999999999999998E-4,1.2E-5,5.9999999999999995E-5,8.4000000000000009E-5,1.1999999999999999E-4,"tonelada N2O/animal.ano","MCT, 2010; BRASIL, 2015; LESSA et al., 2014"]
[null,"Equino","-",8.0000000000000004E-4,4.0000000000000003E-5,2.0000000000000001E-4,2.8000000000000003E-4,4.0000000000000002E-4,"tonelada N2O/animal.ano","MCT, 2010; BRASIL, 2015; LESSA et al., 2014"]
[null,"Asinino","-",8.0000000000000004E-4,4.0000000000000003E-5,2.0000000000000001E-4,2.8000000000000003E-4,4.0000000000000002E-4,"tonelada N2O/animal.ano","MCT, 2010; BRASIL, 2015; LESSA et al., 2014"]
[null,"Muare","-",8.0000000000000004E-4,4.0000000000000003E-5,2.0000000000000001E-4,2.8000000000000003E-4,4.0000000000000002E-4,"tonelada N2O/animal.ano","MCT, 2010; BRASIL, 2015; LESSA et al., 2014"]
[null,"Bubalino","-",8.0000000000000004E-4,4.0000000000000003E-5,2.0000000000000001E-4,2.8000000000000003E-4,5.9999999999999995E-4,"tonelada N2O/animal.ano","MCT, 2010; BRASIL, 2015; LESSA et al., 2014"]
[null,"Galinha de corte","-",1.2E-5,5.9999999999999997E-7,3.0000000000000001E-6,4.1999999999999996E-6,8.9999999999999985E-6,"tonelada N2O/animal.ano","MCT, 2010; BRASIL, 2015; LESSA et al., 2014"]
[null,"Poedeira","-",1.2E-5,5.9999999999999997E-7,3.0000000000000001E-6,4.1999999999999996E-6,8.9999999999999985E-6,"tonelada N2O/animal.ano","MCT, 2010; BRASIL, 2015; LESSA et al., 2014"]
[null,"Galo","-",1.2E-5,5.9999999999999997E-7,3.0000000000000001E-6,4.1999999999999996E-6,8.9999999999999985E-6,"tonelada N2O/animal.ano","MCT, 2010; BRASIL, 2015; LESSA et al., 2014"]
[null,"Frango/pinto","-",6.0000000000000002E-6,2.9999999999999999E-7,1.5E-6,2.0999999999999998E-6,4.4999999999999993E-6,"tonelada N2O/animal.ano","MCT, 2010; BRASIL, 2015; LESSA et al., 2014"]
[null,"Codorna","-",6.0000000000000002E-6,2.9999999999999999E-7,1.5E-6,2.0999999999999998E-6,4.4999999999999993E-6,"tonelada N2O/animal.ano","MCT, 2010; BRASIL, 2015; LESSA et al., 2014"]
[null,"Bovino de leite","-",1.4000000000000002E-3,7.0000000000000007E-5,3.5000000000000005E-4,4.9000000000000009E-4,1.0500000000000002E-3,"tonelada N2O/animal.ano","MCT, 2010; BRASIL, 2015; LESSA et al., 2014"]
[null,"Bovino de corte","Menor que 1 ano",2.3999999999999998E-4,1.2E-5,5.9999999999999995E-5,8.4000000000000009E-5,1.7999999999999998E-4,"tonelada N2O/animal.ano","MCT, 2010; BRASIL, 2015; LESSA et al., 2014"]
[null,"Bovino de corte","De 1 a 2 anos",4.7999999999999996E-4,2.4000000000000001E-5,1.1999999999999999E-4,1.6800000000000002E-4,3.5999999999999997E-4,"tonelada N2O/animal.ano","MCT, 2010; BRASIL, 2015; LESSA et al., 2014"]
[null,"Bovino de corte","Maior que 2 anos",8.0000000000000004E-4,4.0000000000000003E-5,2.0000000000000001E-4,2.8000000000000003E-4,5.9999999999999995E-4,"tonelada N2O/animal.ano","MCT, 2010; BRASIL, 2015; LESSA et al., 2014"]
[null,"Suíno","Até 0,5 ano",1.6000000000000001E-4,7.9999999999999996E-6,4.0000000000000003E-5,5.5999999999999992E-5,1.1999999999999999E-4,"tonelada N2O/animal.ano","MCT, 2010; BRASIL, 2015; LESSA et al., 2014"]
[null,"Suíno","Maior que 0,5 ano",3.2000000000000003E-4,1.5999999999999999E-5,8.0000000000000007E-5,1.1199999999999998E-4,2.3999999999999998E-4,"tonelada N2O/animal.ano","MCT, 2010; BRASIL, 2015; LESSA et al., 2014"]
[]
[null,"Tabela 7. Manejo de dejetos animais."]
[null,null,null,"Fatores de emissão por tipo de animal"]
[null,null,null,"Bovino de corte",null,null,"Suíno","Bovino de leite","Asinino","Muare","Bubalino","Caprino","Equino","Ovino","Ave","Unidade","Referência"]
[null,"Estado","Detalhes","Macho","Fêmea","Jovens"]
[null,"Acre","-",1.8E-3,1.6000000000000001E-3,1.1000000000000001E-3,4.0000000000000002E-4,2.1000000000000003E-3,1.1999999999999999E-3,1.1999999999999999E-3,2E-3,2.2000000000000003E-4,2.2000000000000001E-3,2.0999999999999998E-4,2.3E-5,"tonelada CH4/cabeça.ano","MCT, 2010"]
[null,"Alagoas","-",1.9E-3,1.6999999999999999E-3,1.1999999999999999E-3,1.9E-3,2.7000000000000001E-3,1.1999999999999999E-3,1.1999999999999999E-3,2E-3,2.2000000000000003E-4,2.2000000000000001E-3,2.0999999999999998E-4,2.3E-5,"tonelada CH4/cabeça.ano","MCT, 2010",null,null,null,null,null,null,null,null,null,null,null,null,null,null,null,{"$f":"IF(R117<>\"\",R117*25,\"\")","v":""}]
[null,"Amapá","-",1.8E-3,1.6000000000000001E-3,1.1000000000000001E-3,5.0000000000000001E-4,2.3999999999999998E-3,1.1999999999999999E-3,1.1999999999999999E-3,2E-3,2.2000000000000003E-4,2.2000000000000001E-3,2.0999999999999998E-4,2.3E-5,"tonelada CH4/cabeça.ano","MCT, 2010",null,null,null,null,null,null,null,null,null,null,null,null,null,null,null,""]
[null,"Amazonas","-",1.8E-3,1.6000000000000001E-3,1.1000000000000001E-3,5.0000000000000001E-4,2.1000000000000003E-3,1.1999999999999999E-3,1.1999999999999999E-3,2E-3,2.2000000000000003E-4,2.2000000000000001E-3,2.0999999999999998E-4,2.3E-5,"tonelada CH4/cabeça.ano","MCT, 2010",null,null,null,null,null,null,null,null,null,null,null,null,null,null,null,""]
[null,"Bahia","-",1.2999999999999999E-3,1.1999999999999999E-3,8.0000000000000004E-4,6.9999999999999988E-4,1.6000000000000001E-3,8.9999999999999998E-4,8.9999999999999998E-4,1E-3,1.7000000000000001E-4,1.6000000000000001E-3,1.6000000000000001E-4,1.7999999999999997E-5,"tonelada CH4/cabeça.ano","MCT, 2010",null,null,null,null,null,null,null,null,null,null,null,null,null,null,null,""]
[null,"Ceará","-",1.6999999999999999E-3,1.5E-3,1E-3,1.1000000000000001E-3,2.1000000000000003E-3,1.1999999999999999E-3,1.1999999999999999E-3,2E-3,2.2000000000000003E-4,2.2000000000000001E-3,2.0999999999999998E-4,2.3E-5,"tonelada CH4/cabeça.ano","MCT, 2010",null,null,null,null,null,null,null,null,null,null,null,null,null,null,null,""]
[null,"Distrito Federal","-",3.2000000000000002E-3,2.7999999999999995E-3,1.9E-3,8.8000000000000005E-3,1.3999999999999998E-3,8.9999999999999998E-4,8.9999999999999998E-4,1E-3,1.7000000000000001E-4,1.6000000000000001E-3,1.6000000000000001E-4,1.7999999999999997E-5,"tonelada CH4/cabeça.ano","MCT, 2010",null,null,null,null,null,null,null,null,null,null,null,null,null,null,null,""]
[null,"Espírito Santo","Pequenas propriedades",1.3999999999999998E-3,1.2999999999999999E-3,8.9999999999999998E-4,2.1000000000000003E-3,1.8E-3,8.9999999999999998E-4,8.9999999999999998E-4,1E-3,1.7000000000000001E-4,1.6000000000000001E-3,1.6000000000000001E-4,1.7999999999999997E-5,"tonelada CH4/cabeça.ano","MCT, 2010",null,null,null,null,null,null,null,null,null,null,null,null,null,null,null,""]
[null,"Espírito Santo","Grandes propriedades","","","",5.9000000000000007E-3,"","","","","","","","","tonelada CH4/cabeça.ano","MCT, 2010",null,null,null,null,null,null,null,null,null,null,null,null,null,null,null,""]
[null,"Goiás","Pequenas propriedades",1.3999999999999998E-3,1.1999999999999999E-3,8.0000000000000004E-4,1.9E-3,1.6000000000000001E-3,8.9999999999999998E-4,8.9999999999999998E-4,1E-3,1.7000000000000001E-4,1.6000000000000001E-3,1.6000000000000001E-4,1.7999999999999997E-5,"tonelada CH4/cabeça.ano","MCT, 2010",null,null,null,null,null,null,null,null,null,null,null,null,null,null,null,""]
[null,"Goiás","Grandes propriedades","","","",7.7000000000000002E-3,"","","","","","","","","tonelada CH4/cabeça.ano","MCT, 2010",null,null,null,null,null,null,null,null,null,null,null,null,null,null,null,""]
[null,"Maranhão","-",1.6999999999999999E-3,1.5E-3,1E-3,8.9999999999999998E-4,2.1000000000000003E-3,1.1999999999999999E-3,1.1999999999999999E-3,2E-3,2.2000000000000003E-4,2.2000000000000001E-3,2.0999999999999998E-4,2.3E-5,"tonelada CH4/cabeça.ano","MCT, 2010",null,null,null,null,null,null,null,null,null,null,null,null,null,null,null,""]
[null,"Mato Grosso","Pequenas propriedades",1.2999999999999999E-3,1.1999999999999999E-3,8.0000000000000004E-4,3.3E-3,1.6000000000000001E-3,8.9999999999999998E-4,8.9999999999999998E-4,1E-3,1.7000000000000001E-4,1.6000000000000001E-3,1.6000000000000001E-4,1.7999999999999997E-5,"tonelada CH4/cabeça.ano","MCT, 2010",null,null,null,null,null,null,null,null,null,null,null,null,null,null,null,""]
[null,"Mato Grosso","Grandes propriedades","","","",8.5000000000000006E-3,"","","","","","","","","tonelada CH4/cabeça.ano","MCT, 2010",null,null,null,null,null,null,null,null,null,null,null,null,null,null,null,""]
[null,"Mato Grosso do Sul","Pequenas propriedades",1.2999999999999999E-3,1.1999999999999999E-3,8.0000000000000004E-4,2.7000000000000001E-3,1.9E-3,8.9999999999999998E-4,8.9999999999999998E-4,1E-3,1.7000000000000001E-4,1.6000000000000001E-3,1.6000000000000001E-4,1.7999999999999997E-5,"tonelada CH4/cabeça.ano","MCT, 2010",null,null,null,null,null,null,null,null,null,null,null,null,null,null,null,""]
[null,"Mato Grosso do Sul","Grandes propriedades","","","",9.6999999999999986E-3,"","","","","","","","","tonelada CH4/cabeça.ano","MCT, 2010",null,null,null,null,null,null,null,null,null,null,null,null,null,null,null,""]
[null,"Minas Gerais","Pequenas propriedades",1.5E-3,1.3999999999999998E-3,8.9999999999999998E-4,2.5000000000000001E-3,1.8E-3,8.9999999999999998E-4,8.9999999999999998E-4,1E-3,1.7000000000000001E-4,1.6000000000000001E-3,1.6000000000000001E-4,1.17E-4,"tonelada CH4/cabeça.ano","MCT, 2010",null,null,null,null,null,null,null,null,null,null,null,null,null,null,null,{"$f":"IF(R132<>\"\",R132*25,\"\")","v":""}]
[null,"Minas Gerais","Grandes propriedades","","","",8.6E-3,"","","","","","","","","tonelada CH4/cabeça.ano","MCT, 2010",null,null,null,null,null,null,null,null,null,null,null,null,null,null,null,""]
[null,"Pará","-",1.8E-3,1.6000000000000001E-3,1.1000000000000001E-3,5.0000000000000001E-4,2.1000000000000003E-3,1.1999999999999999E-3,1.1999999999999999E-3,2E-3,2.2000000000000003E-4,2.2000000000000001E-3,2.0999999999999998E-4,2.3E-5,"tonelada CH4/cabeça.ano","MCT, 2010",null,null,null,null,null,null,null,null,null,null,null,null,null,null,null,""]
[null,"Paraíba","-",1.6999999999999999E-3,1.5E-3,1.1000000000000001E-3,8.0000000000000004E-4,2.2000000000000001E-3,1.1999999999999999E-3,1.1999999999999999E-3,2E-3,2.2000000000000003E-4,2.2000000000000001E-3,2.0999999999999998E-4,2.3E-5,"tonelada CH4/cabeça.ano","MCT, 2010",null,null,null,null,null,null,null,null,null,null,null,null,null,null,null,""]
[null,"Paraná","Pequenas propriedades",1.6000000000000001E-3,1.5E-3,1E-3,3.5999999999999999E-3,2.3999999999999998E-3,8.9999999999999998E-4,8.9999999999999998E-4,1E-3,1.7000000000000001E-4,1.6000000000000001E-3,1.6000000000000001E-4,1.17E-4,"tonelada CH4/cabeça.ano","MCT, 2010",null,null,null,null,null,null,null,null,null,null,null,null,null,null,null,""]
[null,"Paraná","Grandes propriedades","","","",6.0000000000000001E-3,"","","","","","","","","tonelada CH4/cabeça.ano","MCT, 2010",null,null,null,null,null,null,null,null,null,null,null,null,null,null,null,""]
[null,"Pernambuco","-",1.6999999999999999E-3,1.5E-3,1E-3,6.9999999999999988E-4,2.1000000000000003E-3,1.1999999999999999E-3,1.1999999999999999E-3,2E-3,2.2000000000000003E-4,2.2000000000000001E-3,2.0999999999999998E-4,2.3E-5,"tonelada CH4/cabeça.ano","MCT, 2010",null,null,null,null,null,null,null,null,null,null,null,null,null,null,null,""]
[null,"Piauí","-",1.6999999999999999E-3,1.5E-3,1.1000000000000001E-3,5.9999999999999995E-4,2.1000000000000003E-3,1.1999999999999999E-3,1.1999999999999999E-3,2E-3,2.2000000000000003E-4,2.2000000000000001E-3,2.0999999999999998E-4,2.3E-5,"tonelada CH4/cabeça.ano","MCT, 2010",null,null,null,null,null,null,null,null,null,null,null,null,null,null,null,""]
[null,"Rio de Janeiro","-",1.5E-3,1.2999999999999999E-3,8.9999999999999998E-4,5.9000000000000007E-3,1.6000000000000001E-3,8.9999999999999998E-4,8.9999999999999998E-4,1E-3,1.7000000000000001E-4,1.6000000000000001E-3,1.6000000000000001E-4,1.17E-4,"tonelada CH4/cabeça.ano","MCT, 2010",null,null,null,null,null,null,null,null,null,null,null,null,null,null,null,""]
[null,"Rio Grande do Norte","-",1.6999999999999999E-3,1.5E-3,1.1000000000000001E-3,8.0000000000000004E-4,2.1000000000000003E-3,1.1999999999999999E-3,1.1999999999999999E-3,2E-3,2.2000000000000003E-4,2.2000000000000001E-3,2.0999999999999998E-4,2.3E-5,"tonelada CH4/cabeça.ano","MCT, 2010",null,null,null,null,null,null,null,null,null,null,null,null,null,null,null,""]
[null,"Rio Grande do Sul","Pequenas propriedades",1.5E-3,1.2999999999999999E-3,8.9999999999999998E-4,3.8999999999999994E-3,2E-3,8.9999999999999998E-4,8.9999999999999998E-4,1E-3,1.7000000000000001E-4,1.6000000000000001E-3,1.6000000000000001E-4,1.17E-4,"tonelada CH4/cabeça.ano","MCT, 2010",null,null,null,null,null,null,null,null,null,null,null,null,null,null,null,""]
[null,"Rio Grande do Sul","Grandes propriedades","","","",0.01,"","","","","","","","","tonelada CH4/cabeça.ano","MCT, 2010",null,null,null,null,null,null,null,null,null,null,null,null,null,null,null,""]
[null,"Rondônia","-",1.8E-3,1.6000000000000001E-3,1.1000000000000001E-3,5.9999999999999995E-4,2.2000000000000001E-3,1.1999999999999999E-3,1.1999999999999999E-3,2E-3,2.2000000000000003E-4,2.2000000000000001E-3,2.0999999999999998E-4,2.3E-5,"tonelada CH4/cabeça.ano","MCT, 2010",null,null,null,null,null,null,null,null,null,null,null,null,null,null,null,""]
[null,"Roraima","-",1.9E-3,1.6999999999999999E-3,1.1999999999999999E-3,4.0000000000000002E-4,1.8E-3,1.1999999999999999E-3,1.1999999999999999E-3,2E-3,2.2000000000000003E-4,2.2000000000000001E-3,2.0999999999999998E-4,2.3E-5,"tonelada CH4/cabeça.ano","MCT, 2010",null,null,null,null,null,null,null,null,null,null,null,null,null,null,null,""]
[null,"Santa Catarina","Pequenas propriedades",1.8E-3,1.6000000000000001E-3,1.1000000000000001E-3,5.7999999999999996E-3,2.3E-3,8.9999999999999998E-4,8.9999999999999998E-4,1E-3,1.7000000000000001E-4,1.6000000000000001E-3,1.6000000000000001E-4,1.17E-4,"tonelada CH4/cabeça.ano","MCT, 2010",null,null,null,null,null,null,null,null,null,null,null,null,null,null,null,""]
[null,"Santa Catarina","Grandes propriedades","","","",6.5000000000000006E-3,"","","","","","","","","tonelada CH4/cabeça.ano","MCT, 2010",null,null,null,null,null,null,null,null,null,null,null,null,null,null,null,""]
[null,"São Paulo","Pequenas propriedades",1.5E-3,1.3999999999999998E-3,8.9999999999999998E-4,2.2000000000000001E-3,2E-3,8.9999999999999998E-4,8.9999999999999998E-4,1E-3,1.7000000000000001E-4,1.6000000000000001E-3,1.6000000000000001E-4,1.17E-4,"tonelada CH4/cabeça.ano","MCT, 2010",null,null,null,null,null,null,null,null,null,null,null,null,null,null,null,""]
[null,"São Paulo","Grandes propriedades","","","",6.4000000000000003E-3,"","","","","","","","","tonelada CH4/cabeça.ano","MCT, 2010",null,null,null,null,null,null,null,null,null,null,null,null,null,null,null,""]
[null,"Sergipe","-",1.6999999999999999E-3,1.5E-3,1.1000000000000001E-3,1.1999999999999999E-3,2.1000000000000003E-3,1.1999999999999999E-3,1.1999999999999999E-3,2E-3,2.2000000000000003E-4,2.2000000000000001E-3,2.0999999999999998E-4,2.3E-5,"tonelada CH4/cabeça.ano","MCT, 2010",null,null,null,null,null,null,null,null,null,null,null,null,null,null,null,""]
[null,"Tocantins","-",1.8E-3,1.6000000000000001E-3,1.1000000000000001E-3,5.9999999999999995E-4,2.1000000000000003E-3,1.1999999999999999E-3,1.1999999999999999E-3,2E-3,2.2000000000000003E-4,2.2000000000000001E-3,2.0999999999999998E-4,2.3E-5,"tonelada CH4/cabeça.ano","MCT, 2010",null,null,null,null,null,null,null,null,null,null,null,null,null,null,null,""]
[]
[null,"Tabela 8. Fermentação entérica."]
[null,null,"Fatores de emissão por tipo de animal"]
[null,null,"Bovino de corte",null,null,"Suíno","Bovino de leite","Asinino","Muare","Bubalino","Caprino","Equino","Ovino","Unidade","Referência"]
[null,"Estado","Macho","Fêmea","Jovens"]
[null,"Acre",5.2999999999999999E-2,5.8000000000000003E-2,4.1000000000000002E-2,1E-3,6.0999999999999999E-2,0.01,0.01,5.5E-2,5.0000000000000001E-3,1.7999999999999999E-2,5.0000000000000001E-3,"tonelada CH4/cabeça.ano","MCT, 2010"]
[null,"Alagoas",5.5E-2,7.3999999999999996E-2,4.2999999999999997E-2,1E-3,6.7000000000000004E-2,0.01,0.01,5.5E-2,5.0000000000000001E-3,1.7999999999999999E-2,5.0000000000000001E-3,"tonelada CH4/cabeça.ano","MCT, 2010"]
[null,"Amapá",5.2999999999999999E-2,6.0999999999999999E-2,4.1000000000000002E-2,1E-3,6.4000000000000001E-2,0.01,0.01,5.5E-2,5.0000000000000001E-3,1.7999999999999999E-2,5.0000000000000001E-3,"tonelada CH4/cabeça.ano","MCT, 2010"]
[null,"Amazonas",5.2999999999999999E-2,5.6000000000000001E-2,4.1000000000000002E-2,1E-3,5.8999999999999997E-2,0.01,0.01,5.5E-2,5.0000000000000001E-3,1.7999999999999999E-2,5.0000000000000001E-3,"tonelada CH4/cabeça.ano","MCT, 2010"]
[null,"Bahia",5.5E-2,0.06,4.2999999999999997E-2,1E-3,5.6000000000000001E-2,0.01,0.01,5.5E-2,5.0000000000000001E-3,1.7999999999999999E-2,5.0000000000000001E-3,"tonelada CH4/cabeça.ano","MCT, 2010"]
[null,"Ceará",5.5E-2,6.4000000000000001E-2,4.2999999999999997E-2,1E-3,5.8999999999999997E-2,0.01,0.01,5.5E-2,5.0000000000000001E-3,1.7999999999999999E-2,5.0000000000000001E-3,"tonelada CH4/cabeça.ano","MCT, 2010"]
[null,"Distrito Federal",5.0999999999999997E-2,7.1999999999999995E-2,0.04,1E-3,6.3E-2,0.01,0.01,5.5E-2,5.0000000000000001E-3,1.7999999999999999E-2,5.0000000000000001E-3,"tonelada CH4/cabeça.ano","MCT, 2010"]
[null,"Espírito Santo",5.1999999999999998E-2,6.4000000000000001E-2,4.1000000000000002E-2,1E-3,0.06,0.01,0.01,5.5E-2,5.0000000000000001E-3,1.7999999999999999E-2,5.0000000000000001E-3,"tonelada CH4/cabeça.ano","MCT, 2010"]
[null,"Goiás",5.0999999999999997E-2,6.6000000000000003E-2,0.04,1E-3,5.8000000000000003E-2,0.01,0.01,5.5E-2,5.0000000000000001E-3,1.7999999999999999E-2,5.0000000000000001E-3,"tonelada CH4/cabeça.ano","MCT, 2010"]
[null,"Maranhão",5.5E-2,6.0999999999999999E-2,4.2999999999999997E-2,1E-3,5.7000000000000002E-2,0.01,0.01,5.5E-2,5.0000000000000001E-3,1.7999999999999999E-2,5.0000000000000001E-3,"tonelada CH4/cabeça.ano","MCT, 2010"]
[null,"Mato Grosso",5.0999999999999997E-2,6.4000000000000001E-2,0.04,1E-3,5.6000000000000001E-2,0.01,0.01,5.5E-2,5.0000000000000001E-3,1.7999999999999999E-2,5.0000000000000001E-3,"tonelada CH4/cabeça.ano","MCT, 2010"]
[null,"Mato Grosso do Sul",5.0999999999999997E-2,6.2E-2,0.04,1E-3,5.5E-2,0.01,0.01,5.5E-2,5.0000000000000001E-3,1.7999999999999999E-2,5.0000000000000001E-3,"tonelada CH4/cabeça.ano","MCT, 2010"]
[null,"Minas Gerais",5.1999999999999998E-2,7.0000000000000007E-2,4.1000000000000002E-2,1E-3,6.4000000000000001E-2,0.01,0.01,5.5E-2,5.0000000000000001E-3,1.7999999999999999E-2,5.0000000000000001E-3,"tonelada CH4/cabeça.ano","MCT, 2010"]
[null,"Pará",5.2999999999999999E-2,0.06,4.1000000000000002E-2,1E-3,6.3E-2,0.01,0.01,5.5E-2,5.0000000000000001E-3,1.7999999999999999E-2,5.0000000000000001E-3,"tonelada CH4/cabeça.ano","MCT, 2010"]
[null,"Paraíba",5.5E-2,6.5000000000000002E-2,4.2999999999999997E-2,1E-3,0.06,0.01,0.01,5.5E-2,5.0000000000000001E-3,1.7999999999999999E-2,5.0000000000000001E-3,"tonelada CH4/cabeça.ano","MCT, 2010"]
[null,"Paraná",5.5E-2,8.3000000000000004E-2,4.2999999999999997E-2,1E-3,6.9000000000000006E-2,0.01,0.01,5.5E-2,5.0000000000000001E-3,1.7999999999999999E-2,5.0000000000000001E-3,"tonelada CH4/cabeça.ano","MCT, 2010"]
[null,"Pernambuco",5.5E-2,7.2999999999999995E-2,4.2999999999999997E-2,1E-3,6.7000000000000004E-2,0.01,0.01,5.5E-2,5.0000000000000001E-3,1.7999999999999999E-2,5.0000000000000001E-3,"tonelada CH4/cabeça.ano","MCT, 2010"]
[null,"Piauí",5.5E-2,0.06,4.2999999999999997E-2,1E-3,5.5E-2,0.01,0.01,5.5E-2,5.0000000000000001E-3,1.7999999999999999E-2,5.0000000000000001E-3,"tonelada CH4/cabeça.ano","MCT, 2010"]
[null,"Rio de Janeiro",5.1999999999999998E-2,6.5000000000000002E-2,4.1000000000000002E-2,1E-3,0.06,0.01,0.01,5.5E-2,5.0000000000000001E-3,1.7999999999999999E-2,5.0000000000000001E-3,"tonelada CH4/cabeça.ano","MCT, 2010"]
[null,"Rio Grande do Norte",5.5E-2,6.5000000000000002E-2,4.2999999999999997E-2,1E-3,5.8999999999999997E-2,0.01,0.01,5.5E-2,5.0000000000000001E-3,1.7999999999999999E-2,5.0000000000000001E-3,"tonelada CH4/cabeça.ano","MCT, 2010"]
[null,"Rio Grande do Sul",5.5E-2,8.4000000000000005E-2,4.2999999999999997E-2,1E-3,7.0000000000000007E-2,0.01,0.01,5.5E-2,5.0000000000000001E-3,1.7999999999999999E-2,5.0000000000000001E-3,"tonelada CH4/cabeça.ano","MCT, 2010"]
[null,"Rondônia",5.2999999999999999E-2,0.06,4.1000000000000002E-2,1E-3,6.3E-2,0.01,0.01,5.5E-2,5.0000000000000001E-3,1.7999999999999999E-2,5.0000000000000001E-3,"tonelada CH4/cabeça.ano","MCT, 2010"]
[null,"Roraima",5.2999999999999999E-2,5.3999999999999999E-2,4.1000000000000002E-2,1E-3,5.8000000000000003E-2,0.01,0.01,5.5E-2,5.0000000000000001E-3,1.7999999999999999E-2,5.0000000000000001E-3,"tonelada CH4/cabeça.ano","MCT, 2010"]
[null,"Santa Catarina",5.5E-2,8.4000000000000005E-2,4.2999999999999997E-2,1E-3,7.0000000000000007E-2,0.01,0.01,5.5E-2,5.0000000000000001E-3,1.7999999999999999E-2,5.0000000000000001E-3,"tonelada CH4/cabeça.ano","MCT, 2010"]
[null,"São Paulo",5.1999999999999998E-2,6.4000000000000001E-2,4.1000000000000002E-2,1E-3,5.8999999999999997E-2,0.01,0.01,5.5E-2,5.0000000000000001E-3,1.7999999999999999E-2,5.0000000000000001E-3,"tonelada CH4/cabeça.ano","MCT, 2010"]
[null,"Sergipe",5.5E-2,7.0999999999999994E-2,4.2999999999999997E-2,1E-3,6.5000000000000002E-2,0.01,0.01,5.5E-2,5.0000000000000001E-3,1.7999999999999999E-2,5.0000000000000001E-3,"tonelada CH4/cabeça.ano","MCT, 2010"]
[null,"Tocantins",5.2999999999999999E-2,5.7000000000000002E-2,4.1000000000000002E-2,1E-3,0.06,0.01,0.01,5.5E-2,5.0000000000000001E-3,1.7999999999999999E-2,5.0000000000000001E-3,"tonelada CH4/cabeça.ano","MCT, 2010"]
[]
[null,"Tabela 9. Estoque inicial de carbono no solo para transição de vegetação nativa."]
[null,"Bioma","Detalhe","Estoque de carbono","Unidade","Referência"]
[null,"Amazônia","Ombrófila e estacional",573.15599999999995,"tonelada de CO2 eq./hectare","BRASIL, 2016"]
[null,"Amazônia","Savana e campina",86.376000000000005,"tonelada de CO2 eq./hectare","BRASIL, 2016"]
[null,"Caatinga","-",159.56684999999999,"tonelada de CO2 eq./hectare","BRASIL, 2016"]
[null,"Cerrado","-",115.91952000000002,"tonelada de CO2 eq./hectare","BRASIL, 2016"]
[null,"Cerrado","Norte",378.62700000000001,"tonelada de CO2 eq./hectare","BRASIL, 2016"]
[null,"Mata atlântica","Estacional",361.722375,"tonelada de CO2 eq./hectare","BRASIL, 2016"]
[null,"Mata atlântica","Ombrófila",539.44740000000002,"tonelada de CO2 eq./hectare","BRASIL, 2016"]
[null,"Mata atlântica","Mista",504.33884999999998,"tonelada de CO2 eq./hectare","BRASIL, 2016"]
[null,"Pampas","-",92.097800000000007,"tonelada de CO2 eq./hectare","BRASIL, 2016"]
[null,"Pantanal","-",150.52453846153847,"tonelada de CO2 eq./hectare","BRASIL, 2016"]
[]
[null,"Tabela 10. Queima de combustíveis fósseis."]
[null,"GEE","Fator de emissão","Unidade","Referência"]
[null,"Óleo diesel",2.6809999999999998E-3,"tonelada CO2/litro","IPCC, 2006; DEFRA GHG, 2009/2010"]
[null,"Óleo diesel",2.9999999999999999E-7,"tonelada CH4/litro","IPCC, 2006; DEFRA GHG, 2009/2010"]
[null,"Óleo diesel",2E-8,"tonelada N2O/litro","IPCC, 2006; DEFRA GHG, 2009/2010"]
[null,"Gasolina A",2.212E-3,"tonelada CO2/litro","BRASIL, 2014"]
[]
[null,"Escopo 2"]
[]
[null,"Tabela 11. Compra de energia elétrica."]
[null,null,"Fatores de emissão por mês e ano de referência"]
[null,"Ano","Janeiro","Fevereiro","Março","Abril","Maio","Junho","Julho","Agosto","Setembro","Outubro","Novembro","Dezembro","Média","Unidade","Referência"]
[null,2006,3.2199999999999999E-2,3.4599999999999999E-2,3.3700000000000001E-2,2.75E-2,3.1699999999999999E-2,3.0599999999999999E-2,3.5099999999999999E-2,3.3599999999999998E-2,3.8300000000000001E-2,3.5999999999999997E-2,2.6499999999999999E-2,2.8000000000000001E-2,3.2316666666666667E-2,"tonelada CO2/MWh","MCT, 2015"]
[null,2007,2.29E-2,1.95E-2,1.95E-2,1.9699999999999999E-2,1.61E-2,2.5600000000000001E-2,3.1E-2,3.2399999999999998E-2,3.5499999999999997E-2,3.7699999999999997E-2,4.0599999999999997E-2,4.9599999999999998E-2,2.9174999999999996E-2,"tonelada CO2/MWh","MCT, 2015"]
[null,2008,5.8400000000000001E-2,6.6799999999999998E-2,5.9900000000000002E-2,4.53E-2,4.5900000000000003E-2,5.21E-2,4.3700000000000003E-2,4.2500000000000003E-2,4.1099999999999998E-2,4.3799999999999999E-2,3.3399999999999999E-2,4.7699999999999999E-2,4.8383333333333334E-2,"tonelada CO2/MWh","MCT, 2015"]
[null,2009,2.81E-2,2.3699999999999999E-2,2.47E-2,2.4500000000000001E-2,4.0500000000000001E-2,3.6900000000000002E-2,2.41E-2,1.9900000000000001E-2,1.6199999999999999E-2,1.7899999999999999E-2,1.8100000000000002E-2,1.9400000000000001E-2,2.4500000000000004E-2,"tonelada CO2/MWh","MCT, 2015"]
[null,2010,2.1100000000000001E-2,2.8000000000000001E-2,2.4299999999999999E-2,2.3800000000000002E-2,3.4099999999999998E-2,5.0599999999999999E-2,4.3499999999999997E-2,7.7399999999999997E-2,9.0700000000000003E-2,8.1699999999999995E-2,8.6900000000000005E-2,5.3199999999999997E-2,5.1274999999999994E-2,"tonelada CO2/MWh","MCT, 2015"]
[null,2011,2.6200000000000001E-2,2.8799999999999999E-2,2.0799999999999999E-2,1.9800000000000002E-2,2.7E-2,3.4099999999999998E-2,3.0800000000000001E-2,3.0099999999999998E-2,2.7300000000000001E-2,3.5000000000000003E-2,3.56E-2,3.49E-2,2.92E-2,"tonelada CO2/MWh","MCT, 2015"]
[null,2012,2.9399999999999999E-2,3.2199999999999999E-2,4.0500000000000001E-2,6.4199999999999993E-2,6.2E-2,5.2200000000000003E-2,3.9399999999999998E-2,4.5999999999999999E-2,7.8299999999999995E-2,9.8400000000000001E-2,0.12470000000000001,0.1168,6.5341666666666673E-2,"tonelada CO2/MWh","MCT, 2015"]
[null,2013,0.11509999999999999,0.109,9.8100000000000007E-2,9.5899999999999999E-2,0.11509999999999999,0.1079,8.3799999999999999E-2,8.3299999999999999E-2,8.4000000000000005E-2,8.3099999999999993E-2,9.2999999999999999E-2,8.4099999999999994E-2,9.6033333333333346E-2,"tonelada CO2/MWh","MCT, 2015"]
[null,2014,9.11E-2,0.1169,0.12379999999999999,0.13100000000000001,0.14219999999999999,0.14399999999999999,0.1464,0.1578,0.1431,0.14130000000000001,0.15140000000000001,0.1368,0.13548333333333332,"tonelada CO2/MWh","MCT, 2015"]
[]
[null,"Emissões biogênicas"]
[]
[null,"Tabela 12. Queima de combustíveis fósseis."]
[null,"Fonte","Detalhes","Fator de emissão","Unidade","Referência"]
[null,"Biodiesel","-",2.4989999999999999E-3,"tonelada CO2/litro","IPCC, 2006; DEFRA 2009/2010"]
[null,"Etanol anidro","-",1.526E-3,"tonelada CO2/litro","BRASIL, 2014"]
[null,"Etanol hidratado","-",1.4570000000000002E-3,"tonelada CO2/litro","BRASIL, 2014"]
[]
[null,"Tabela 13. Queima de resíduos das culturas."]
[null,null,"Fatores de emissão (GEE)"]
[null,"Cultura","N2O","CH4","CO","NOX","Unidade","Referência"]
[null,"Cana",1.8642565763182677E-5,3.7792230666666666E-4,7.9363684400000009E-3,6.7379559115503089E-4,"tGEE/hectare","RR, 2010; RR, 2014"]
[null,"Algodão",3.55509E-4,5.1299999999999991E-3,0.10773000000000001,1.2849110999999998E-2,"tGEE/hectare","RR, 2010"]
[null,"Milho",1.2348881599999999E-4,3.7420853333333328E-3,7.8583792E-2,4.4632386354285705E-3,"tGEE/hectare","IPCC, 1996; IPCC, 2006; RR, 2010"]
[null,"Soja",3.83328E-4,4.6464000000000002E-3,9.7574400000000019E-2,1.3854569142857143E-2,"tGEE/hectare","RR, 2010"]
[null,"Feijão",2.8846399999999994E-4,3.4965333333333327E-3,7.3427199999999998E-2,1.0425913142857141E-2,"tGEE/hectare","IPCC, 2006; RR, 2010"]
[null,"Arroz",5.3606783999999999E-5,2.3206400000000001E-3,4.873344000000001E-2,1.9375023359999998E-3,"tGEE/hectare","IPCC, 1996; IPCC, 2006; RR, 2010"]
[null,"Trigo",5.4885600000000002E-5,2.7719999999999997E-3,5.8212000000000007E-2,1.9837224E-3,"tGEE/hectare","IPCC, 2006; RR, 2010"]
[]
[null,"Tabela 14. Adubação."]
[null,"Fonte","Detalhes","Fator de remoção","Unidade","Referência"]
[null,"Adubo verde","-",1.835,"tonelada CO2 eq./hectare","CARVALHO et al., 2009"]
[]
[null,"Mudança de uso e ocupação do solo"]
[]
[null,"Tabela 15. Mudança de uso do solo."]
[null,"Uso anterior","Uso atual","Detalhes","Fator de emissão","Unidade","Referência"]
[null,"Cana-de-açúcar com queima","Cana-de-açúcar sem queima","-",-2.2477,"tonelada CO2/hectare.ano","GALDOS et al., 2011"]
[null,"Cultivo convencional","Cana-de-açúcar com queima","-",-2.09,"tonelada CO2/hectare.ano","MELLO et al., 2014"]
[null,"Cultivo convencional","Integração lavoura-pecuária","-",-6.2332999999999998,"tonelada CO2/hectare.ano","ASSAD e MARTINS, 2015"]
[null,"Cultivo convencional","Plantio direto","Demais regiões",-1.7599999999999998,"tonelada CO2/hectare.ano","MAIA et al., 2013"]
[null,"Cultivo convencional","Plantio direto","Região sul",-1.2833000000000001,"tonelada CO2/hectare.ano","BAYER et al., 2006"]
[null,"Pastagem degradada","Cana-de-açúcar com queima","-",0.94230000000000003,"tonelada CO2/hectare.ano","MELLO et al., 2014"]
[null,"Pastagem degradada","Cultivo convencional","-",0.91669999999999996,"tonelada CO2/hectare.ano","Adaptado de MAIA et al., 2009"]
[null,"Pastagem degradada","Integração lavoura-pecuária","-",-6.2332999999999998,"tonelada CO2/hectare.ano","ASSAD e MARTINS, 2015"]
[null,"Pastagem degradada","Pastagem melhorada com insumos","-",-3.6659999999999999,"tonelada CO2/hectare.ano","Adaptado de IPCC, 2006; ASSAD e MARTINS, 2015"]
[null,"Pastagem degradada","Pastagem/pastagem melhorada","-",-3.6659999999999999,"tonelada CO2/hectare.ano","ASSAD e MARTINS, 2015"]
[null,"Pastagem degradada","Plantio direto","-",-0.69669999999999999,"tonelada CO2/hectare.ano","MAIA et al., 2013"]
[null,"Pastagem/pastagem melhorada","Integração lavoura-pecuária","-",-3.6659999999999999,"tonelada CO2/hectare.ano","ASSAD e MARTINS, 2015"]
[null,"Pastagem/pastagem melhorada","Pastagem/pastagem melhorada","-",-4.6340000000000003,"tonelada CO2/hectare.ano","IPCC, 2006"]
[null,"Pastagem/pastagem melhorada","Pastagem melhorada com insumos","-",-4.6340000000000003,"tonelada CO2/hectare.ano","IPCC, 2006"]
[null,"Pastagem/pastagem melhorada","Pastagem melhorada sem insumos","-",-3.6659999999999999,"tonelada CO2/hectare.ano","Adaptado de IPCC, 2006; ASSAD e MARTINS, 2015"]
[null,"Pastagem/pastagem melhorada","Pastagem moderadamente degradada","-",4.13,"tonelada CO2/hectare.ano","Adaptado de IPCC, 2006; ASSAD e MARTINS, 2015"]
[null,"Pastagem/pastagem melhorada","Pastagem severamente degradada","-",4.5042999999999997,"tonelada CO2/hectare.ano","Adaptado de IPCC, 2006; ASSAD e MARTINS, 2015"]
[null,"Pastagem melhorada com insumos","Integração lavoura-pecuária","-",-3.6659999999999999,"tonelada CO2/hectare.ano","Adaptado de IPCC, 2006; ASSAD e MARTINS, 2015"]
[null,"Pastagem melhorada com insumos","Pastagem/pastagem melhorada","-",-4.6340000000000003,"tonelada CO2/hectare.ano","IPCC, 2006"]
[null,"Pastagem melhorada com insumos","Pastagem melhorada com insumos","-",-4.6340000000000003,"tonelada CO2/hectare.ano","IPCC, 2006"]
[null,"Pastagem melhorada com insumos","Pastagem melhorada sem insumos","-",-3.6659999999999999,"tonelada CO2/hectare.ano","IPCC, 2006"]
[null,"Pastagem melhorada com insumos","Pastagem moderadamente degradada","-",4.13,"tonelada CO2/hectare.ano","IPCC, 2006"]
[null,"Pastagem melhorada com insumos","Pastagem severamente degradada","-",4.5042999999999997,"tonelada CO2/hectare.ano","IPCC, 2006"]
[null,"Pastagem melhorada sem insumos","Pastagem/pastagem melhorada","-",-4.6340000000000003,"tonelada CO2/hectare.ano","Adaptado de IPCC, 2006; ASSAD e MARTINS, 2015"]
[null,"Pastagem melhorada sem insumos","Pastagem melhorada com insumos","-",-4.6340000000000003,"tonelada CO2/hectare.ano","IPCC, 2006"]
[null,"Pastagem melhorada sem insumos","Pastagem melhorada sem insumos","-",-3.6659999999999999,"tonelada CO2/hectare.ano","IPCC, 2006"]
[null,"Pastagem melhorada sem insumos","Pastagem moderadamente degradada","-",1.5046999999999999,"tonelada CO2/hectare.ano","IPCC, 2006"]
[null,"Pastagem melhorada sem insumos","Pastagem severamente degradada","-",3.536,"tonelada CO2/hectare.ano","IPCC, 2006"]
[null,"Pastagem moderadamente degradada","Pastagem/pastagem melhorada","-",-4.13,"tonelada CO2/hectare.ano","Adaptado de IPCC, 2006; ASSAD e MARTINS, 2015"]
[null,"Pastagem moderadamente degradada","Pastagem melhorada com insumos","-",-4.13,"tonelada CO2/hectare.ano","IPCC, 2006"]
[null,"Pastagem moderadamente degradada","Pastagem melhorada sem insumos","-",-3.5377000000000001,"tonelada CO2/hectare.ano","IPCC, 2006"]
[null,"Pastagem moderadamente degradada","Pastagem moderadamente degradada","-",2.0329999999999999,"tonelada CO2/hectare.ano","IPCC, 2006"]
[null,"Pastagem moderadamente degradada","Pastagem severamente degradada","-",2.0312999999999999,"tonelada CO2/hectare.ano","IPCC, 2006"]
[null,"Pastagem severamente degradada","Pastagem/pastagem melhorada","-",-4.5042999999999997,"tonelada CO2/hectare.ano","Adaptado de IPCC, 2006; ASSAD e MARTINS, 2015"]
[null,"Pastagem severamente degradada","Pastagem melhorada com insumos","-",-4.5042999999999997,"tonelada CO2/hectare.ano","IPCC, 2006"]
[null,"Pastagem severamente degradada","Pastagem melhorada sem insumos","-",-3.536,"tonelada CO2/hectare.ano","IPCC, 2006"]
[null,"Pastagem severamente degradada","Pastagem moderadamente degradada","-",-2.016,"tonelada CO2/hectare.ano","IPCC, 2006"]
[null,"Pastagem severamente degradada","Pastagem severamente degradada","-",1.83,"tonelada CO2/hectare.ano","IPCC, 2006"]
[null,"Plantio direto","Cultivo convencional","-",0.91669999999999996,"tonelada CO2/hectare.ano","Adaptado de MAIA et al., 2009"]
[null,"Plantio direto","Integração lavoura-pecuária","-",-1.0266999999999999,"tonelada CO2/hectare.ano","MAIA et al., 2013"]
[null,"Floresta nativa","Cana-de-açúcar com queima","Cerrado",3.1202999999999999,"tonelada CO2/hectare.ano","MELLO et al., 2014"]
[null,"Floresta nativa","Cultivo convencional","Alto teor de argila",0.1613,"tonelada CO2/hectare.ano","MAIA et al., 2013"]
[null,"Floresta nativa","Cultivo convencional","Baixo teor de argila",0.91669999999999996,"tonelada CO2/hectare.ano","MAIA et al., 2013"]
[null,"Floresta nativa","Integração lavoura-pecuária","-",-0.7077,"tonelada CO2/hectare.ano","ASSAD e MARTINS, 2015"]
[null,"Floresta nativa","Pastagem degradada","-",0.64899999999999991,"tonelada CO2/hectare.ano","MAIA et al., 2009"]
[null,"Floresta nativa","Pastagem melhorada com insumos","-",-1.3859999999999999,"tonelada CO2/hectare.ano","Adaptado de IPCC, 2006; MAIA et al., 2015"]
[null,"Floresta nativa","Pastagem melhorada sem insumos","-",-1.3859999999999999,"tonelada CO2/hectare.ano","Adaptado de IPCC, 2006; MAIA et al., 2015"]
[null,"Floresta nativa","Pastagem/pastagem melhorada","-",-1.3859999999999999,"tonelada CO2/hectare.ano","MAIA et al., 2009"]
[null,"Floresta nativa","Plantio direto","Amazônia",0.87999999999999989,"tonelada CO2/hectare.ano","MAIA et al., 2013"]
[null,"Floresta nativa","Plantio direto","Cerrado",-0.43999999999999995,"tonelada CO2/hectare.ano","MAIA et al., 2013"]

{"sheet":"listas de formulários","index":5,"n_rows":29,"n_cols":30,"rows_kept":29,"cut":false,"hidden":true,"merged":[[0,11,0,13],[0,24,0,27],[0,15,0,22],[0,0,0,9]]}
["Geral",null,null,null,null,null,null,null,null,null,null,"Arroz",null,null,null,"Pastagem e pecuária",null,null,null,null,null,null,null,null,"Cana-de-açúcar",null,null,null,null,"Compra de energia elétrica"]
["Estado","Tempo de adoção","Bioma","Teor de argila no solo","Classe textural","Quantificação de diesel","Uso anterior da terra","Uso atual","Sim/Não","Biocombustíveis",null,"Quantidade de matéria seca aplicada","Regime hídrico","Preparo de solo",null,"Uso anterior da terra","Uso atual da terra","Tipo de animais","Realiza manejo de dejetos? Tipo","Sexo","Idade","Diagnóstico pastagem degradada","Diagnóstico pastagem degradada",null,"Uso anterior da terra","Sistema atual de manejo","Ciclo","Início do ciclo",null,"Ano-base"]
["Acre","Maior que 20 anos","Amazônia - Ombrófila e estacional","Maior que 60%","Arenoso","Operações mecanizadas","Cultivo convencional","Cultivo convencional","Não","Diesel puro",null,"Sem aplicação","A lavoura não está em terras baixas","Preparo antecipado (Primavera)",null,"Cultivo convencional","Integração lavoura-pecuária","Bovino de corte","Animais em pastagem","Fêmea","Entre 0 e 6 meses","Muito alta","Menor que 0,5",null,"Cana-de-açúcar com queima","Cana-de-açúcar com queima","12 meses",{"$f":"IF(cana_ciclocultura=\"12 meses\",DATE(YEAR(cana_datacolheita),MONTH(cana_datacolheita)-12,DAY(cana_datacolheita)),IF(cana_ciclocultura=\"18 meses\",DATE(YEAR(cana_datacolheita),MONTH(cana_datacolheita)-18,DAY(cana_datacolheita)),\"\"))","v":""},null,2006]
["Alagoas","Menor ou igual a 20 anos","Amazônia - Savana e campina","Menor que 60%","Argiloso","Quantidade consumida","Pastagem degradada","Integração lavoura-pecuária","Sim","Diesel B2",null,"De 1.000 a 2.000","Águas profundas entre 50 e 100 cm","Preparo convencional (Outono/Inverno)",null,"Pastagem degradada","Pastagem degradada","Bovino de leite","Armazenamento sólido","Macho","Entre 6 e 12 meses","Alta","Entre 0,51 e 0,8",null,"Cultivo convencional","Cana-de-açúcar sem queima","18 meses",null,null,2007]
["Amapá",null,"Caatinga",null,"Médio",null,"Pastagem/pastagem melhorada","Plantio direto",null,"Diesel B5",null,"De 2.000 a 4.000","Águas profundas maiores que 100 cm",null,null,"Pastagem melhorada com insumos","Pastagem melhorada com insumos","Suíno","Biodigestor",null,"Entre 12 e 24 meses","Baixa","Entre 0,81 e 1,5",null,"Pastagem degradada",null,null,null,null,2008]
["Amazonas",null,"Cerrado",null,null,null,"Plantio direto",null,null,"Diesel B6",null,"De 4.000 a 8.000","Continuamente inundado",null,null,"Pastagem melhorada sem insumos","Pastagem melhorada sem insumos","Asinino","Dry lot",null,"Acima de 24 meses","Muito baixa","Entre 1,51 e 2,0",null,"Floresta nativa",null,null,null,null,2009]
["Bahia",null,"Cerrado - Norte",null,null,null,"Floresta nativa",null,null,"Diesel B7",null,"De 8.000 a 15.000","Inundação intermitente com aeração única",null,null,"Pastagem/pastagem melhorada","Pastagem/pastagem melhorada","Bubalino","Esterqueira",null,null,"Ausente","Maior que 2,0",null,null,null,null,null,null,2010]
["Ceará",null,"Mata atlântica - Estacional",null,null,null,null,null,null,"Diesel B8",null,"Mais que 15.000","Inundação intermitente com aerações múltiplas",null,null,"Plantio direto",null,"Caprino","Lagoa anaeróbica",null,null,null,null,null,null,null,null,null,null,2011]
["Distrito Federal",null,"Mata atlântica - Mista",null,null,null,null,null,null,"Diesel B9",null,null,"Várzea seca",null,null,"Floresta nativa",null,"Codorna","Outros",null,null,null,null,null,null,null,null,null,null,2012]
["Espírito Santo",null,"Mata atlântica - Ombrófila",null,null,null,null,null,null,"Diesel B10",null,null,"Várzea úmida",null,null,null,null,"Equino","Poços abaixo do confinamento",null,null,null,null,null,null,null,null,null,null,2013]
["Goiás",null,"Pampas",null,null,null,null,null,null,null,null,null,null,null,null,null,null,"Frango/pinto","Queimado como combustível",null,null,null,null,null,null,null,null,null,null,2014]
["Maranhão",null,"Pantanal",null,null,null,null,null,null,null,null,null,null,null,null,null,null,"Galinha de corte"]
["Mato Grosso",null,null,null,null,null,null,null,null,null,null,null,null,null,null,null,null,"Galo"]
["Mato Grosso do Sul",null,null,null,null,null,null,null,null,null,null,null,null,null,null,null,null,"Muare"]
["Minas Gerais",null,null,null,null,null,null,null,null,null,null,null,null,null,null,null,null,"Ovino"]
["Pará",null,null,null,null,null,null,null,null,null,null,null,null,null,null,null,null,"Poedeira"]
["Paraíba"]
["Paraná"]
["Pernambuco"]
["Piauí"]
["Rio de Janeiro"]
["Rio Grande do Norte"]
["Rio Grande do Sul"]
["Rondônia"]
["Roraima"]
["Santa Catarina"]
["São Paulo"]
["Sergipe"]
["Tocantins"]

{"sheet":"Fatores variáveis","index":6,"n_rows":126,"n_cols":7,"rows_kept":126,"cut":false,"hidden":false,"merged":[[13,1,13,5],[28,1,28,5],[15,1,15,4],[44,1,44,5],[54,2,54,3],[46,2,46,3],[47,2,47,3],[48,2,48,3],[49,2,49,3],[50,2,50,3],[51,2,51,3],[52,2,52,3],[38,1,38,5],[53,2,53,3],[45,2,45,3],[56,1,56,5],[60,1,60,6],[21,1,21,4]]}
[]
[]
[]
[]
[]
[]
[]
[]
[]
[]
[]
[]
[]
[null,"Fatores variáveis"]
[]
[null,"Tabela 1. PAG dos GEE."]
[null,"GEE","Detalhes","PAG","Referência"]
[null,"Dióxido de carbono (CO2)","-",1,"IPCC, 2013"]
[null,"Óxido nitroso (N2O)","-",298,"IPCC, 2013"]
[null,"Metano (CH4)","-",25,"IPCC, 2013"]
[]
[null,"Tabela 2. Conversor de GEE."]
[null,"GEE","Detalhes","Conversor","Referência"]
[null,"Carbono > Dióxido de carbono","C > CO2",3.66,"IPCC, 2013"]
[null,"Monóxido de carbono > Dióxido de carbono","CO > CO2",1.57,"IPCC, 2013"]
[null,"Nitrogênio disponível > Óxido Nitroso","N-N2O > N2O",1.57,"IPCC, 2013"]
[null,"X-Óxido de nitrogênio > Óxido nitroso","NOX > N2O",0.96,"IPCC, 2013"]
[]
[null,"Tabela 3. Composição dos adubos orgânicos."]
[null,"Fonte","Detalhes","Teor de nitrogênio","Unidade","Referência"]
[null,"Esterco","Bovino, equino, suino, ovino",1.6,"% Nitrogênio","KIEHL, 1985; LOPES, 1989"]
[null,"Esterco","Avícola",3,"% Nitrogênio","KIEHL, 1985; LOPES, 1989"]
[null,"Composto orgânico","-",1.4,"% Nitrogênio","KIEHL, 1985; LOPES, 1989"]
[null,"Adubo orgânico geral","-",1.8,"% Nitrogênio","KIEHL, 1985; LOPES, 1989"]
[null,"Vinhaça","-",3.1300000000000001E-2,"% Nitrogênio","BRASIL, 2015"]
[null,"Torta de filtro","-",1.4,"% Nitrogênio","FERREIRA et al., 1986"]
[null,"Ureia","-",45,"% Nitrogênio","MAPA, 2017"]
[]
[null,"Tabela 4. Emissões secundárias - Perdas dos adubos após aplicação."]
[null,"Fonte ou processo","Detalhes","Fração perdida","Unidade","Referência"]
[null,"Volatilização","-",10,"%","IPCC, 2006"]
[null,"Resíduo","-",20,"%","IPCC, 2006"]
[null,"Lixiviação/escoamento superficial","-",30,"%","GUIDELINES, 1996"]
[]
[null,"Tabela 5. Composição de combustíveis."]
[null,"Combustível","Detalhes",null,"Proporção","Unidade","Referência"]
[null,"Diesel puro","Até 2007",null,100,"%","ANP, 2015"]
[null,"Diesel B2","Diesel + biodiesel. Obrigatório a partir de 2008",null,98,"%","ANP, 2015"]
[null,"Diesel B5","Diesel + biodiesel. Obrigatório a partir de 2010",null,95,"%","ANP, 2015"]
[null,"Diesel B6","Diesel + biodiesel. Obrigatório a partir de 07/2014",null,94,"%","ANP, 2015"]
[null,"Diesel B7","Diesel + biodiesel. Obrigatório a partir de 11/2014",null,93,"%","ANP, 2015"]
[null,"Diesel B8","Diesel + biodiesel. Obrigatório a partir de 03/2017",null,92,"%","BRASIL, 2016"]
[null,"Diesel B9","Diesel + biodiesel. Obrigatório a partir de 03/2018",null,91,"%","BRASIL, 2016"]
[null,"Diesel B10","Diesel + biodiesel. Obrigatório a partir de 03/2019",null,90,"%","BRASIL, 2016"]
[null,"Gasolina comum","Gasolina A + etanol anidro",null,73,"% Gasolina A","BRASIL, 2014"]
[]
[null,"Tabela 6. Consumo de combustível."]
[null,"Combustível","Detalhes","Valor","Unidade","Referência"]
[null,"Diesel","Consumo médio",20,"litro/hora","REVISTA CULTIVAR, 2003"]
[]
[null,"Tabela 7. Operações mecanizadas - Culturas anuais."]
[null,"Etapa","Operação","Detalhes","Rendimento operacional","Unidade","Referência"]
[null,"Etapa 1 - Pré-implantação","Terraceamento","Cana-de-açúcar",1.2,"hora-máquina/hectare","KANEKO et al, 2009"]
[null,"Etapa 1 - Pré-implantação","Reforma de taipas","Arroz",0.8,"hora-máquina/hectare","EMBRAPA, 2004"]
[null,"Etapa 1 - Pré-implantação","Preparo do solo","Algodão",1.61,"hora-máquina/hectare","EMBRAPA, 2003"]
[null,"Etapa 1 - Pré-implantação","Construção da curva de nível","Pastagem",0.18,"hora-máquina/hectare","OLIVEIRA et al., 2010"]
[null,"Etapa 1 - Pré-implantação","Aração","Feijão",4,"hora-máquina/hectare","EMBRAPA, 2005"]
[null,"Etapa 1 - Pré-implantação","Aração","Pastagem",0.9,"hora-máquina/hectare","ROCKENBACH et al., 2005"]
[null,"Etapa 1 - Pré-implantação","Aração","Cana-de-açúcar",1.7,"hora-máquina/hectare","KANEKO et al, 2009"]
[null,"Etapa 1 - Pré-implantação","Gradagem pesada","Pastagem",0.36,"hora-máquina/hectare","OLIVEIRA et al., 2010"]
[null,"Etapa 1 - Pré-implantação","Gradagem intermediária","Pastagem",0.15,"hora-máquina/hectare","OLIVEIRA et al., 2010"]
[null,"Etapa 1 - Pré-implantação","Gradagem aradora","Milho",1.6,"hora-máquina/hectare","EMBRAPA, 2010"]
[null,"Etapa 1 - Pré-implantação","Gradagem aradora","Arroz",1,"hora-máquina/hectare","EMBRAPA, 2004"]
[null,"Etapa 1 - Pré-implantação","Gradagem aradora","Cana-de-açúcar",1.6,"hora-máquina/hectare","KANEKO et al, 2009"]
[null,"Etapa 1 - Pré-implantação","Gradagem niveladora","Feijão",4,"hora-máquina/hectare","EMBRAPA, 2005"]
[null,"Etapa 1 - Pré-implantação","Gradagem niveladora","Milho",0.4,"hora-máquina/hectare","EMBRAPA, 2010"]
[null,"Etapa 1 - Pré-implantação","Gradagem niveladora","Arroz",0.5,"hora-máquina/hectare","EMBRAPA, 2004"]
[null,"Etapa 1 - Pré-implantação","Gradagem niveladora","Cana-de-açúcar",1,"hora-máquina/hectare","KANEKO et al, 2009"]
[null,"Etapa 1 - Pré-implantação","Gradagem niveladora","Pastagem",0.15,"hora-máquina/hectare","OLIVEIRA et al., 2010"]
[null,"Etapa 1 - Pré-implantação","Calagem","Algodão",0.25,"hora-máquina/hectare","EMBRAPA, 2003"]
[null,"Etapa 1 - Pré-implantação","Calagem","Feijão",2,"hora-máquina/hectare","EMBRAPA, 2005"]
[null,"Etapa 1 - Pré-implantação","Calagem","Cana-de-açúcar",0.9,"hora-máquina/hectare","KANEKO et al, 2009"]
[null,"Etapa 1 - Pré-implantação","Calagem","Milho",0.125,"hora-máquina/hectare","EMBRAPA, 2010"]
[null,"Etapa 1 - Pré-implantação","Calagem","Soja",1.07,"hora-máquina/hectare","FURLANETO et al., 2007"]
[null,"Etapa 1 - Pré-implantação","Calagem","Pastagem",0.5,"hora-máquina/hectare","PERES et al., 2013"]
[null,"Etapa 1 - Pré-implantação","Calagem","Arroz",0.4,"hora-máquina/hectare","EMBRAPA, 2004"]
[null,"Etapa 1 - Pré-implantação","Aplicação de herbicida","Soja",1,"hora-máquina/hectare","FURLANETO et al., 2007"]
[null,"Etapa 1 - Pré-implantação","Aplicação de herbicida","Arroz",0.22,"hora-máquina/hectare","EMBRAPA, 2004"]
[null,"Etapa 1 - Pré-implantação","Limpeza","Soja",0.56999999999999995,"hora-máquina/hectare","FURLANETO et al., 2007"]
[null,"Etapa 1 - Pré-implantação","Sulcação","Cana-de-açúcar",1.8,"hora-máquina/hectare","KANEKO et al, 2009"]
[null,"Etapa 2 - Implantação","Cobrição","Cana-de-açúcar",0.77,"hora-máquina/hectare","KANEKO et al, 2009"]
[null,"Etapa 2 - Implantação","Plantio","Feijão",2,"hora-máquina/hectare","EMBRAPA, 2005"]
[null,"Etapa 2 - Implantação","Plantio","Trigo",0.84,"hora-máquina/hectare","RICHETTI & LAZZAROTTO, 2009"]
[null,"Etapa 2 - Implantação","Plantio","Arroz",1,"hora-máquina/hectare","EMBRAPA, 2004"]
[null,"Etapa 2 - Implantação","Distribuição e incorporação de sementes","Pastagem",0.3,"hora-máquina/hectare","ROCKENBACH et al., 2005"]
[null,"Etapa 2 - Implantação","Plantio com adubação","Algodão",0.4,"hora-máquina/hectare","EMBRAPA, 2003"]
[null,"Etapa 2 - Implantação","Plantio com adubação","Milho",0.8,"hora-máquina/hectare","EMBRAPA, 2010"]
[null,"Etapa 2 - Implantação","Plantio com adubação","Soja",0.5,"hora-máquina/hectare","FURLANETO et al., 2007"]
[null,"Etapa 3 - Manutenção","Adubação de cobertura","Pastagem",0.5,"hora-máquina/hectare","PERES et al., 2013"]
[null,"Etapa 3 - Manutenção","Adubação de cobertura","Algodão",1.4,"hora-máquina/hectare","EMBRAPA, 2003"]
[null,"Etapa 3 - Manutenção","Adubação de cobertura","Feijão",1.5,"hora-máquina/hectare","EMBRAPA, 2005"]
[null,"Etapa 3 - Manutenção","Adubação de cobertura","Milho",0.6,"hora-máquina/hectare","EMBRAPA, 2010"]
[null,"Etapa 3 - Manutenção","Adubação de cobertura","Arroz",0.12,"hora-máquina/hectare","EMBRAPA, 2004"]
[null,"Etapa 3 - Manutenção","Distribuição de esterco","Pastagem",0.28000000000000003,"hora-máquina/hectare","ROCKENBACH et al., 2005"]
[null,"Etapa 3 - Manutenção","Pulverização","Cana-de-açúcar",0.6,"hora-máquina/hectare","KANEKO et al, 2009"]
[null,"Etapa 3 - Manutenção","Aplicação de defensivos","Algodão",2.0499999999999998,"hora-máquina/hectare","EMBRAPA, 2003"]
[null,"Etapa 3 - Manutenção","Aplicação de fungicida","Feijão",2,"hora-máquina/hectare","EMBRAPA, 2005"]
[null,"Etapa 3 - Manutenção","Aplicação de fungicida","Soja",0.5,"hora-máquina/hectare","FURLANETO et al., 2007"]
[null,"Etapa 3 - Manutenção","Aplicação de fungicida","Trigo",0.15,"hora-máquina/hectare","RICHETTI & LAZZAROTTO, 2009"]
[null,"Etapa 3 - Manutenção","Aplicação de inseticida","Soja",2.2000000000000002,"hora-máquina/hectare","FURLANETO et al., 2007"]
[null,"Etapa 3 - Manutenção","Aplicação de inseticida","Milho",0.6,"hora-máquina/hectare","EMBRAPA, 2010"]
[null,"Etapa 3 - Manutenção","Aplicação de inseticida","Trigo",0.56000000000000005,"hora-máquina/hectare","RICHETTI & LAZZAROTTO, 2009"]
[null,"Etapa 3 - Manutenção","Aplicação de herbicida","Pastagem",0.8,"hora-máquina/hectare","RICHETTI & LAZZAROTTO, 2009"]
[null,"Etapa 3 - Manutenção","Aplicação de herbicida","Milho",0.3,"hora-máquina/hectare","EMBRAPA, 2010"]
[null,"Etapa 3 - Manutenção","Aplicação de herbicida","Trigo",0.4,"hora-máquina/hectare","RICHETTI & LAZZAROTTO, 2009"]
[null,"Etapa 3 - Manutenção","Aplicação de herbicida","Feijão",2,"hora-máquina/hectare","EMBRAPA, 2005"]
[null,"Etapa 3 - Manutenção","Aplicação de herbicida","Soja",1.7,"hora-máquina/hectare","FURLANETO et al., 2007"]
[null,"Etapa 3 - Manutenção","Roçada mecânica","Pastagem",0.7,"hora-máquina/hectare","ROCKENBACH et al., 2005"]
[null,"Etapa 3 - Manutenção","Dessecação","Cana-de-açúcar",0.6,"hora-máquina/hectare","KANEKO et al, 2009"]
[null,"Colheita","Colheita","Algodão",7,"hora-máquina/hectare","EMBRAPA, 2003"]
[null,"Colheita","Colheita","Cana-de-açúcar",1.84,"litro/tonelada colhida","MANHÃES, 2014"]
[null,"Colheita","Colheita","Milho",0.85,"hora-máquina/hectare","EMBRAPA, 2010"]
[null,"Colheita","Colheita","Soja",0.7,"hora-máquina/hectare","FERREIRA et al., 2015"]
[null,"Colheita","Colheita","Trigo",0.56000000000000005,"hora-máquina/hectare","RICHETTI & LAZZAROTTO, 2009"]
[null,"Colheita","Colheita","Arroz",2,"hora-máquina/hectare","EMBRAPA, 2004"]
[null,"Colheita","Trilha com batedeira de cereais","Feijão",5,"hora-máquina/hectare","EMBRAPA, 2005"]

{"sheet":"Equipe","index":7,"n_rows":14,"n_cols":4,"rows_kept":14,"cut":false,"hidden":false,"merged":[[10,1,10,3]]}
[]
[]
[]
[]
[]
[]
[]
[]
[]
[]
[null,"Equipe de desenvolvimento"]
[null,"Eduardo de Morais Pavão","Natália Kurimori","Stephen Russel"]
[null,"Eduardo Delgado Assad","Rachel Biderman","Stoécio Malta Ferreira Maia"]
[null,"João Paulo da Silva","Roberto Strumpf","Susian Christian Martins"]

{"sheet":"Algodão","index":8,"n_rows":100,"n_cols":5,"rows_kept":100,"cut":false,"hidden":false,"merged":[[99,1,99,3],[95,1,95,3],[97,1,97,3],[58,1,58,4],[91,1,91,4],[93,1,93,3],[81,1,81,4],[86,1,86,4],[66,1,66,4],[77,1,77,4],[78,1,78,4],[67,1,67,4],[70,1,70,4],[71,1,71,4],[73,1,73,4],[74,1,74,4],[64,1,64,4],[52,1,52,4],[13,1,13,4],[15,1,15,4],[22,1,22,4],[36,1,36,4],[46,1,46,4],[41,1,41,4]]}
[]
[]
[]
[]
[]
[]
[]
[]
[]
[]
[]
[]
[]
[null,"Formulário de emissões - Algodão"]
[]
[null,"Tabela 1. Informações sobre a propriedade agrícola."]
[null,null,"Detalhes","Unidade","Valor"]
[null,"Estado","-","-"]
[null,"Latitude","Converter unidade","graus"]
[null,"Longitude","Converter unidade","graus"]
[null,"Bioma","-","-"]
[]
[null,"Tabela 2. Sistema de cultivo."]
[null,null,"Detalhes","Unidade","Valor"]
[null,"Data de plantio","-","-"]
[null,"Data de colheita","-","-"]
[null,"Classe textural do solo","-","-"]
[null,"Teor de argila no solo","-","-"]
[null,"Uso anterior da terra","-","-"]
[null,"Sistema de cultivo atual","-","-"]
[null,"Tempo de adoção do sistema","-","-"]
[null,"Área de queima de resíduos da cultura","-","hectare"]
[null,"Área de manejo de solos orgânicos","-","hectare"]
[null,"Área cultivada","-","hectare"]
[null,"Produtividade média","-","tonelada/hectare"]
[]
[null,"Tabela 3. Adubação."]
[null,"Adubação sintética","Detalhes","Unidade","Valor"]
[null,"Adubação nitrogenada sintética","Exceto ureia","kg/hectare"]
[null,"Teor de nitrogênio no adubo sintético","-","%"]
[null,"Ureia","-","kg/hectare"]
[]
[null,"Correção e condicionamento de solo","Detalhes","Unidade","Valor"]
[null,"Calcário calcítico","-","kg/hectare"]
[null,"Calcário dolomítico","-","kg/hectare"]
[null,"Gesso agrícola","-","kg/hectare"]
[]
[null,"Adubação orgânica","Detalhes","Unidade","Valor"]
[null,"Composto orgânico","-","kg/hectare"]
[null,"Esterco","Bovino, equino, suino ou ovino","kg/hectare"]
[null,"Esterco","Avícola","kg/hectare"]
[null,"Outros","-","kg/hectare"]
[]
[null,"Adubação verde","Detalhes","Unidade","Valor"]
[null,"Leguminosa","-","kg/hectare"]
[null,"Gramínea","-","kg/hectare"]
[null,"Outros","-","kg/hectare"]
[]
[null,"Tabela 4. Consumo de combustível das operações mecanizadas."]
[null,null,"Detalhes","Unidade","Valor"]
[null,"Tipo de combustível","-","-"]
[null,"Tipo de quantificação de consumo","-","-"]
[null,"Quantidade consumida","-","litro"]
[]
[null,"Tabela 4.1. Operações mecanizadas."]
[null,"Operação mecanizada","Detalhes","Unidade","Valor"]
[]
[null,"Pré-implantação"]
[null,"Preparo do solo","-","Nº de repetições"]
[null,"Calagem","-","Nº de repetições"]
[]
[null,"Implantação"]
[null,"Plantio com adubação","-","Nº de repetições"]
[]
[null,"Manutenção"]
[null,"Adubação de cobertura","-","Nº de repetições"]
[null,"Aplicação de defensivos","-","Nº de repetições"]
[]
[null,"Colheita"]
[null,"Colheita","-","Nº de repetições"]
[]
[null,"Tabela 5. Consumo de combustível nas operações internas da propriedade."]
[null,null,"Detalhes","Unidade","Valor"]
[null,"Gasolina","-","litro"]
[null,"Etanol hidratado","-","litro"]
[]
[null,"Tabela 6. Consumo de combustível no transporte da produção."]
[null,null,"Detalhes","Unidade","Valor"]
[null,"Tipo de combustível","-","-"]
[null,"Quantidade consumida","-","litro"]
[]
[null,"Resumo do balanço de GEE"]
[]
[null,"Balanço de GEE (tonelada de CO2 eq.)",null,null,{"$f":"SUM('Síntese das emissões'!C44,'Síntese das emissões'!C45,'Síntese das emissões'!C50,'Síntese das emissões'!C54*-1,'Síntese das emissões'!C58)","v":0}]
[]
[null,"Balanço de GEE por área (tonelada de CO2 eq./hectare)",null,null,{"$f":"IF(ISERROR(balanco_algodao/algodao_areacultivada),0,balanco_algodao/algodao_areacultivada)","v":0}]
[]
[null,"Balanço de GEE por tonelada produzida (tonelada de CO2 eq./tonelada)",null,null,{"$f":"IF(ISERROR(balanco_algodao/(algodao_areacultivada*algodao_produtividademedia)),0,balanco_algodao/(algodao_areacultivada*algodao_produtividademedia))","v":0}]
[]
[null,"Balanço de emissões por processos biogênicos (tonelada de CO2 eq.)",null,null,{"$f":"IF(ISERROR('Síntese das emissões'!C50-'Síntese das emissões'!C54),0,'Síntese das emissões'!C50-'Síntese das emissões'!C54)","v":0}]

{"sheet":"Arroz","index":9,"n_rows":102,"n_cols":5,"rows_kept":102,"cut":false,"hidden":false,"merged":[[101,1,101,3],[97,1,97,3],[99,1,99,3],[58,1,58,4],[93,1,93,4],[95,1,95,3],[83,1,83,4],[88,1,88,4],[66,1,66,4],[79,1,79,4],[80,1,80,4],[67,1,67,4],[73,1,73,4],[74,1,74,4],[76,1,76,4],[77,1,77,4],[64,1,64,4],[52,1,52,4],[13,1,13,4],[15,1,15,4],[22,1,22,4],[38,1,38,4],[48,1,48,4],[43,1,43,4]]}
[]
[]
[]
[]
[]
[]
[]
[]
[]
[]
[]
[]
[]
[null,"Formulário de emissões - Arroz"]
[]
[null,"Tabela 1. Informações sobre a propriedade agrícola."]
[null,null,"Detalhes","Unidade","Valor"]
[null,"Estado","-","-"]
[null,"Latitude","Converter unidade","graus"]
[null,"Longitude","Converter unidade","graus"]
[null,"Bioma","-","-"]
[]
[null,"Tabela 2. Sistema de cultivo."]
[null,null,"Detalhes","Unidade","Valor"]
[null,"Data de plantio","-","-"]
[null,"Data de colheita","-","-"]
[null,"Classe textural do solo","-","-"]
[null,"Teor de argila no solo","-","-"]
[null,"Uso anterior da terra","-","-"]
[null,"Sistema de cultivo atual","-","-"]
[null,"Tempo de adoção do sistema","-","-"]
[null,"Preparo de solo","-","-"]
[null,"Regime hídrico","Para lavouras em terras baixas","-"]
[null,"Área de queima de resíduos da cultura","-","hectare"]
[null,"Área de manejo de solos orgânicos","-","hectare"]
[null,"Área cultivada","-","hectare"]
[null,"Produtividade média","-","tonelada/hectare"]
[]
[null,"Tabela 3. Adubação."]
[null,"Adubação sintética","Detalhes","Unidade","Valor"]
[null,"Adubação nitrogenada sintética","Exceto ureia","kg/hectare"]
[null,"Teor de nitrogênio no adubo sintético","-","%"]
[null,"Ureia","-","kg/hectare"]
[]
[null,"Correção e condicionamento de solo","Detalhes","Unidade","Valor"]
[null,"Calcário calcítico","-","kg/hectare"]
[null,"Calcário dolomítico","-","kg/hectare"]
[null,"Gesso agrícola","-","kg/hectare"]
[]
[null,"Adubação orgânica","Detalhes","Unidade","Valor"]
[null,"Aplicação de matéria seca","-","kg/hectare/hectare"]
[null,"A matéria seca é fermentada?","-","-"]
[]
[null,"Adubação verde","Detalhes","Unidade","Valor"]
[null,"Leguminosa","-","kg/hectare"]
[null,"Gramínea","-","kg/hectare"]
[null,"Outros","-","kg/hectare"]
[]
[null,"Tabela 4. Consumo de combustível das operações mecanizadas."]
[null,null,"Detalhes","Unidade","Valor"]
[null,"Tipo de combustível","-","-"]
[null,"Tipo de quantificação de consumo","-","-"]
[null,"Quantidade consumida","-","litro"]
[]
[null,"Tabela 4.1. Operações mecanizadas."]
[null,"Operação mecanizada","Detalhes","Unidade","Valor"]
[]
[null,"Pré-implantação"]
[null,"Reforma de taipas","-","Nº de repetições"]
[null,"Gradagem aradora","-","Nº de repetições"]
[null,"Gradagem niveladora","-","Nº de repetições"]
[null,"Calagem","-","Nº de repetições"]
[null,"Aplicação de herbicida","-","Nº de repetições"]
[]
[null,"Implantação"]
[null,"Plantio","-","Nº de repetições"]
[]
[null,"Manutenção"]
[null,"Adubação de cobertura","-","Nº de repetições"]
[]
[null,"Colheita"]
[null,"Colheita","-","Nº de repetições"]
[]
[null,"Tabela 5. Consumo de combustível nas operações internas da propriedade."]
[null,null,"Detalhes","Unidade","Valor"]
[null,"Gasolina","-","litro"]
[null,"Etanol hidratado","-","litro"]
[]
[null,"Tabela 6. Consumo de combustível no transporte da produção."]
[null,null,"Detalhes","Unidade","Valor"]
[null,"Tipo de combustível","-","-"]
[null,"Quantidade consumida","-","litro"]
[]
[null,"Resumo do balanço de GEE"]
[]
[null,"Balanço de GEE (tonelada de CO2 eq)",null,null,{"$f":"SUM('Síntese das emissões'!C101,'Síntese das emissões'!C102,'Síntese das emissões'!C107,'Síntese das emissões'!C111*-1,'Síntese das emissões'!C115)","v":0}]
[]
[null,"Balanço de GEE por área (tonelada de CO2 eq./hectare)",null,null,{"$f":"IF(ISERROR(balanco_arroz/arroz_areacultivada),0,balanco_arroz/arroz_areacultivada)","v":0}]
[]
[null,"Balanço de GEE por tonelada produzida (tonelada de CO2 eq./tonelada)",null,null,{"$f":"IF(ISERROR(balanco_arroz/(arroz_areacultivada*arroz_produtividademedia)),0,balanco_arroz/(arroz_areacultivada*arroz_produtividademedia))","v":0}]
[]
[null,"Balanço de emissões por processos biogênicos (tonelada de CO2 eq.)",null,null,{"$f":"IF(ISERROR('Síntese das emissões'!C107-'Síntese das emissões'!C111),0,'Síntese das emissões'!C107-'Síntese das emissões'!C111)","v":0}]

{"sheet":"Cana-de-açúcar","index":10,"n_rows":107,"n_cols":5,"rows_kept":107,"cut":false,"hidden":false,"merged":[[106,1,106,3],[85,1,85,4],[102,1,102,3],[104,1,104,3],[13,1,13,4],[15,1,15,4],[22,1,22,4],[36,1,36,4],[46,1,46,4],[41,1,41,4],[55,1,55,4],[61,1,61,4],[98,1,98,4],[100,1,100,3],[80,1,80,4],[81,1,81,4],[93,1,93,4],[67,1,67,4],[78,1,78,4],[84,1,84,4],[69,1,69,4],[70,1,70,4],[77,1,77,4],[88,1,88,4]]}
[]
[]
[]
[]
[]
[]
[]
[]
[]
[]
[]
[]
[]
[null,"Formulário de emissões - Cana-de-açúcar"]
[]
[null,"Tabela 1. Informações sobre a propriedade agrícola."]
[null,null,"Detalhes","Unidade","Valor"]
[null,"Estado","-","-"]
[null,"Latitude","Converter unidade","graus"]
[null,"Longitude","Converter unidade","graus"]
[null,"Bioma","-","-"]
[]
[null,"Tabela 2. Sistema de cultivo."]
[null,null,"Detalhes","Unidade","Valor"]
[null,"Ciclo","-","-"]
[null,"Data de colheita","-","-"]
[null,"Classe textural do solo","-","-"]
[null,"Teor de argila no solo","-","-"]
[null,"Uso anterior da terra","-","-"]
[null,"Sistema de cultivo atual","-","-"]
[null,"Tempo de adoção do sistema","-","-"]
[null,"Área de queima de resíduos da cultura","-","hectare"]
[null,"Área de manejo de solos orgânicos","-","hectare"]
[null,"Área cultivada","-","hectare"]
[null,"Produtividade média","-","tonelada/hectare"]
[]
[null,"Tabela 3. Adubação."]
[null,"Adubação sintética","Detalhes","Unidade","Valor"]
[null,"Adubação nitrogenada sintética","Exceto ureia","kg/hectare"]
[null,"Teor de nitrogênio no adubo sintético","-","%"]
[null,"Ureia","-","kg/hectare"]
[]
[null,"Correção e condicionamento de solo","Detalhes","Unidade","Valor"]
[null,"Calcário calcítico","-","kg/hectare"]
[null,"Calcário dolomítico","-","kg/hectare"]
[null,"Gesso agrícola","-","kg/hectare"]
[]
[null,"Adubação orgânica","Detalhes","Unidade","Valor"]
[null,"Vinhaça","-","m³/hectare"]
[null,"Torta de filtro","Quantidade aplicada","kg/hectare"]
[null,"Torta de filtro","Área de aplicação","hectare"]
[null,"Composto orgânico","-","kg/hectare"]
[null,"Esterco","Bovino, equino, suino ou ovino","kg/hectare"]
[null,"Esterco","Avícola","kg/hectare"]
[null,"Outros","-","kg/hectare"]
[]
[null,"Adubação verde","Detalhes","Unidade","Valor"]
[null,"Leguminosa","-","kg/hectare"]
[null,"Gramínea","-","kg/hectare"]
[null,"Outros","-","kg/hectare"]
[]
[null,"Tabela 4. Consumo de combustível das operações mecanizadas."]
[null,null,"Detalhes","Unidade","Valor"]
[null,"Tipo de quantificação de consumo","-","-"]
[null,"Tipo de quantificação de consumo","-","-"]
[null,"Quantidade consumida","-","litro"]
[]
[null,"Tabela 4.1. Operações mecanizadas."]
[null,"Operação mecanizada","Detalhes","Unidade","Valor"]
[]
[null,"Pré-implantação"]
[null,"Terraceamento","-","Nº de repetições"]
[null,"Aração","-","Nº de repetições"]
[null,"Gradagem aradora","-","Nº de repetições"]
[null,"Gradagem niveladora","-","Nº de repetições"]
[null,"Calagem","-","Nº de repetições"]
[null,"Sulcação","-","Nº de repetições"]
[]
[null,"Implantação"]
[null,"Cobrição","-","Nº de repetições"]
[]
[null,"Manutenção"]
[null,"Pulverização","-","Nº de repetições"]
[null,"Dessecação","-","Nº de repetições"]
[]
[null,"Colheita"]
[null,"Colheita","-","tonelada colhida"]
[]
[null,"Tabela 5. Consumo de combustível nas operações internas da propriedade."]
[null,null,"Detalhes","Unidade","Valor"]
[null,"Gasolina","-","litro"]
[null,"Etanol hidratado","-","litro"]
[]
[null,"Tabela 6. Consumo de combustível no transporte da produção."]
[null,null,"Detalhes","Unidade","Valor"]
[null,"Tipo de combustível","-","-"]
[null,"Quantidade consumida","-","litro"]
[]
[null,"Resumo do balanço de GEE"]
[]
[null,"Balanço de GEE (tonelada de CO2 eq.)",null,null,{"$f":"SUM('Síntese das emissões'!C158,'Síntese das emissões'!C159,'Síntese das emissões'!C164,'Síntese das emissões'!C168*-1,'Síntese das emissões'!C172)","v":0}]
[]
[null,"Balanço de GEE por área (tonelada de CO2 eq./hectare)",null,null,{"$f":"IF(ISERROR(balanco_cana/cana_areacultivada),0,balanco_cana/cana_areacultivada)","v":0}]
[]
[null,"Balanço de GEE por tonelada produzida (tonelada de CO2 eq./tonelada)",null,null,{"$f":"IF(ISERROR(balanco_cana/(cana_produtividademedia*cana_areacultivada)),0,balanco_cana/(cana_produtividademedia*cana_areacultivada))","v":0}]
[]
[null,"Balanço de emissões por processos biogênicos (tonelada de CO2 eq.)",null,null,{"$f":"IF(ISERROR('Síntese das emissões'!C164-'Síntese das emissões'!C168),0,'Síntese das emissões'!C164-'Síntese das emissões'!C168)","v":0}]

{"sheet":"Feijão","index":11,"n_rows":102,"n_cols":5,"rows_kept":102,"cut":false,"hidden":false,"merged":[[101,1,101,3],[97,1,97,3],[99,1,99,3],[58,1,58,4],[93,1,93,4],[95,1,95,3],[83,1,83,4],[88,1,88,4],[66,1,66,4],[79,1,79,4],[80,1,80,4],[67,1,67,4],[71,1,71,4],[72,1,72,4],[74,1,74,4],[75,1,75,4],[64,1,64,4],[52,1,52,4],[13,1,13,4],[15,1,15,4],[22,1,22,4],[36,1,36,4],[46,1,46,4],[41,1,41,4]]}
[]
[]
[]
[]
[]
[]
[]
[]
[]
[]
[]
[]
[]
[null,"Formulário de emissões - Feijão"]
[]
[null,"Tabela 1. Informações sobre a propriedade agrícola."]
[null,null,"Detalhes","Unidade","Valor"]
[null,"Estado","-","-"]
[null,"Latitude","Converter unidade","graus"]
[null,"Longitude","Converter unidade","graus"]
[null,"Bioma","-","-"]
[]
[null,"Tabela 2. Sistema de cultivo."]
[null,null,"Detalhes","Unidade","Valor"]
[null,"Data de plantio","-","-"]
[null,"Data de colheita","-","-"]
[null,"Classe textural do solo","-","-"]
[null,"Teor de argila no solo","-","-"]
[null,"Uso anterior da terra","-","-"]
[null,"Sistema de cultivo atual","-","-"]
[null,"Tempo de adoção do sistema","-","-"]
[null,"Área de queima de resíduos da cultura","-","hectare"]
[null,"Área de manejo de solos orgânicos","-","hectare"]
[null,"Área cultivada","-","hectare"]
[null,"Produtividade média","-","tonelada/hectare"]
[]
[null,"Tabela 3. Adubação."]
[null,"Adubação sintética","Detalhes","Unidade","Valor"]
[null,"Adubação nitrogenada sintética","Exceto ureia","kg/hectare"]
[null,"Teor de nitrogênio no adubo sintético","-","%"]
[null,"Ureia","-","kg/hectare"]
[]
[null,"Correção e condicionamento de solo","Detalhes","Unidade","Valor"]
[null,"Calcário calcítico","-","kg/hectare"]
[null,"Calcário dolomítico","-","kg/hectare"]
[null,"Gesso agrícola","-","kg/hectare"]
[]
[null,"Adubação orgânica","Detalhes","Unidade","Valor"]
[null,"Composto orgânico","-","kg/hectare"]
[null,"Esterco","Bovino, equino, suino ou ovino","kg/hectare"]
[null,"Esterco","Avícola","kg/hectare"]
[null,"Outros","-","kg/hectare"]
[]
[null,"Adubação verde","Detalhes","Unidade","Valor"]
[null,"Leguminosa","-","kg/hectare"]
[null,"Gramínea","-","kg/hectare"]
[null,"Outros","-","kg/hectare"]
[]
[null,"Tabela 4. Consumo de combustível das operações mecanizadas."]
[null,null,"Detalhes","Unidade","Valor"]
[null,"Tipo de combustível","-","-"]
[null,"Tipo de quantificação de consumo","-","-"]
[null,"Quantidade consumida","-","litro"]
[]
[null,"Tabela 4.1. Operações mecanizadas."]
[null,"Operação mecanizada","Detalhes","Unidade","Valor"]
[]
[null,"Pré-implantação"]
[null,"Aração","-","Nº de repetições"]
[null,"Gradagem niveladora","-","Nº de repetições"]
[null,"Calagem","-","Nº de repetições"]
[]
[null,"Implantação"]
[null,"Plantio","-","Nº de repetições"]
[]
[null,"Manutenção"]
[null,"Adubação de cobertura","-","Nº de repetições"]
[null,"Aplicação de fungicida","-","Nº de repetições"]
[null,"Aplicação de herbicida","-","Nº de repetições"]
[]
[null,"Colheita"]
[null,"Trilha com batedeira de cereais","-","Nº de repetições"]
[]
[null,"Tabela 5. Consumo de combustível nas operações internas da propriedade."]
[null,null,"Detalhes","Unidade","Valor"]
[null,"Gasolina","-","litro"]
[null,"Etanol hidratado","-","litro"]
[]
[null,"Tabela 6. Consumo de combustível no transporte da produção."]
[null,null,"Detalhes","Unidade","Valor"]
[null,"Tipo de combustível","-","-"]
[null,"Quantidade consumida","-","litro"]
[]
[null,"Resumo do balanço de GEE"]
[]
[null,"Balanço de GEE (tonelada de CO2 eq.)",null,null,{"$f":"SUM('Síntese das emissões'!C215,'Síntese das emissões'!C216,'Síntese das emissões'!C221,'Síntese das emissões'!C225*-1,'Síntese das emissões'!C229)","v":0}]
[]
[null,"Balanço de GEE por área (tonelada de CO2 eq./hectare)",null,null,{"$f":"IF(ISERROR(balanco_feijao/feijao_areacultivada),0,balanco_feijao/feijao_areacultivada)","v":0}]
[]
[null,"Balanço de GEE por tonelada produzida (tonelada de CO2 eq./tonelada)",null,null,{"$f":"IF(ISERROR(balanco_feijao/(feijao_produtividademedia*feijao_areacultivada)),0,balanco_feijao/(feijao_produtividademedia*feijao_areacultivada))","v":0}]
[]
[null,"Balanço de emissões por processos biogênicos (tonelada de CO2 eq.)",null,null,{"$f":"IF(ISERROR('Síntese das emissões'!C221-'Síntese das emissões'!C225),0,'Síntese das emissões'!C221-'Síntese das emissões'!C225)","v":0}]

{"sheet":"Milho","index":12,"n_rows":102,"n_cols":5,"rows_kept":102,"cut":false,"hidden":false,"merged":[[101,1,101,3],[97,1,97,3],[99,1,99,3],[58,1,58,4],[93,1,93,4],[95,1,95,3],[83,1,83,4],[88,1,88,4],[66,1,66,4],[79,1,79,4],[80,1,80,4],[67,1,67,4],[71,1,71,4],[72,1,72,4],[74,1,74,4],[75,1,75,4],[64,1,64,4],[52,1,52,4],[13,1,13,4],[15,1,15,4],[22,1,22,4],[36,1,36,4],[46,1,46,4],[41,1,41,4]]}
[]
[]
[]
[]
[]
[]
[]
[]
[]
[]
[]
[]
[]
[null,"Formulário de emissões - Milho"]
[]
[null,"Tabela 1. Informações sobre a propriedade agrícola."]
[null,null,"Detalhes","Unidade","Valor"]
[null,"Estado","-","-"]
[null,"Latitude","Converter unidade","graus"]
[null,"Longitude","Converter unidade","graus"]
[null,"Bioma","-","-"]
[]
[null,"Tabela 2. Sistema de cultivo."]
[null,null,"Detalhes","Unidade","Valor"]
[null,"Data de plantio","-","-"]
[null,"Data de colheita","-","-"]
[null,"Classe textural do solo","-","-"]
[null,"Teor de argila no solo","-","-"]
[null,"Uso anterior da terra","-","-"]
[null,"Sistema de cultivo atual","-","-"]
[null,"Tempo de adoção do sistema","-","-"]
[null,"Área de queima de resíduos da cultura","-","hectare"]
[null,"Área de manejo de solos orgânicos","-","hectare"]
[null,"Área cultivada","-","hectare"]
[null,"Produtividade média","-","tonelada/hectare"]
[]
[null,"Tabela 3. Adubação."]
[null,"Adubação sintética","Detalhes","Unidade","Valor"]
[null,"Adubação nitrogenada sintética","Exceto ureia","kg/hectare"]
[null,"Teor de nitrogênio no adubo sintético","-","%"]
[null,"Ureia","-","kg/hectare"]
[]
[null,"Correção e condicionamento de solo","Detalhes","Unidade","Valor"]
[null,"Calcário calcítico","-","kg/hectare"]
[null,"Calcário dolomítico","-","kg/hectare"]
[null,"Gesso agrícola","-","kg/hectare"]
[]
[null,"Adubação orgânica","Detalhes","Unidade","Valor"]
[null,"Composto orgânico","-","kg/hectare"]
[null,"Esterco","Bovino, equino, suino ou ovino","kg/hectare"]
[null,"Esterco","Avícola","kg/hectare"]
[null,"Outros","-","kg/hectare"]
[]
[null,"Adubação verde","Detalhes","Unidade","Valor"]
[null,"Leguminosa","-","kg/hectare"]
[null,"Gramínea","-","kg/hectare"]
[null,"Outros","-","kg/hectare"]
[]
[null,"Tabela 4. Consumo de combustível das operações mecanizadas."]
[null,null,"Detalhes","Unidade","Valor"]
[null,"Tipo de combustível","-","-"]
[null,"Tipo de quantificação de consumo","-","-"]
[null,"Quantidade consumida","-","litro"]
[]
[null,"Tabela 4.1. Operações mecanizadas."]
[null,"Operação mecanizada","Detalhes","Unidade","Valor"]
[]
[null,"Pré-implantação"]
[null,"Gradagem aradora","-","Nº de repetições"]
[null,"Gradagem niveladora","-","Nº de repetições"]
[null,"Calagem","-","Nº de repetições"]
[]
[null,"Implantação"]
[null,"Plantio com adubação","-","Nº de repetições"]
[]
[null,"Manutenção"]
[null,"Adubação de cobertura","-","Nº de repetições"]
[null,"Aplicação de inseticida","-","Nº de repetições"]
[null,"Aplicação de herbicida","-","Nº de repetições"]
[]
[null,"Colheita"]
[null,"Colheita","-","Nº de repetições"]
[]
[null,"Tabela 5. Consumo de combustível nas operações internas da propriedade."]
[null,null,"Detalhes","Unidade","Valor"]
[null,"Gasolina","-","litro"]
[null,"Etanol hidratado","-","litro"]
[]
[null,"Tabela 6. Consumo de combustível no transporte da produção."]
[null,null,"Detalhes","Unidade","Valor"]
[null,"Tipo de combustível","-","-"]
[null,"Quantidade consumida","-","litro"]
[]
[null,"Resumo do balanço de GEE"]
[]
[null,"Balanço de GEE (tonelada de CO2 eq.)",null,null,{"$f":"SUM('Síntese das emissões'!C272,'Síntese das emissões'!C273,'Síntese das emissões'!C278,'Síntese das emissões'!C282*-1,'Síntese das emissões'!C286)","v":0}]
[]
[null,"Balanço de GEE por área (tonelada de CO2 eq./hectare)",null,null,{"$f":"IF(ISERROR(balanco_milho/milho_areacultivada),0,balanco_milho/milho_areacultivada)","v":0}]
[]
[null,"Balanço de GEE por tonelada produzida (tonelada de CO2 eq./tonelada)",null,null,{"$f":"IF(ISERROR(balanco_milho/(milho_areacultivada*milho_produtividademedia)),0,balanco_milho/(milho_areacultivada*milho_produtividademedia))","v":0}]
[]
[null,"Balanço de emissões por processos biogênicos (tonelada de CO2 eq.)",null,null,{"$f":"IF(ISERROR('Síntese das emissões'!C278-'Síntese das emissões'!C282),0,'Síntese das emissões'!C278-'Síntese das emissões'!C282)","v":0}]

{"sheet":"Pecuária e pastagem","index":13,"n_rows":140,"n_cols":8,"rows_kept":140,"cut":false,"hidden":false,"merged":[[139,1,139,3],[137,1,137,3],[15,1,15,4],[22,1,22,4],[50,1,50,4],[60,1,60,4],[121,1,121,4],[112,1,112,4],[114,1,114,4],[115,1,115,4],[101,1,101,4],[13,1,13,4],[133,1,133,3],[135,1,135,3],[131,1,131,4],[66,1,66,4],[126,1,126,4],[95,1,95,4],[72,1,72,7],[32,1,32,4],[41,1,41,4],[103,1,103,4],[104,1,104,4],[111,1,111,4],[55,1,55,4]]}
[]
[]
[]
[]
[]
[]
[]
[]
[]
[]
[]
[]
[]
[null,"Formulário de emissões - Pecuária e pastagem"]
[]
[null,"Tabela 1. Informações sobre a propriedade agrícola."]
[null,null,"Detalhes","Unidade","Valor"]
[null,"Estado","-","-"]
[null,"Latitude","Converter unidade","graus"]
[null,"Longitude","Converter unidade","graus"]
[null,"Bioma","-","-"]
[]
[null,"Tabela 2. Sistema de cultivo."]
[null,null,"Detalhes","Unidade","Valor"]
[null,"Classe textural do solo","-","-"]
[null,"Teor de argila no solo","-","-"]
[null,"Uso anterior da terra","-","-"]
[null,"Sistema de cultivo atual","-","-"]
[null,"Tempo de adoção do sistema","-","-"]
[null,"Área de manejo de solos orgânicos","-","hectare"]
[null,"Área da pastagem","-","hectare"]
[]
[null,"Tabela 2.1. Diagnóstico de degradação da pastagem - Uso anterior"]
[null,null,"Detalhes","Unidade","Valor"]
[null,"Infestação por cupins","-","-"]
[null,"Infestação por formigas","-","-"]
[null,"Infestação por plantas daninhas","-","-"]
[null,"Presença de erosão","-","-"]
[null,"Taxa de lotação","-","Animais/hectare"]
[null,"Diagnóstico de uso anterior da pastagem","-","-"]
[]
[null,"Tabela 2.2. Diagnóstico de degradação da pastagem - Uso atual"]
[null,null,"Detalhes","Unidade","Valor"]
[null,"Infestação por cupins","-","-"]
[null,"Infestação por formigas","-","-"]
[null,"Infestação por plantas daninhas","-","-"]
[null,"Presença de erosão","-","-"]
[null,"Taxa de lotação","-","Animais/hectare"]
[null,"Diagnóstico de uso atual da pastagem","-","-"]
[]
[null,"Tabela 3. Adubação."]
[null,"Adubação sintética","Detalhes","Unidade","Valor"]
[null,"Adubação nitrogenada sintética","Exceto ureia","kg/hectare"]
[null,"Teor de nitrogênio no adubo sintético","-","%"]
[null,"Ureia","-","kg/hectare"]
[]
[null,"Correção e condicionamento de solo","Detalhes","Unidade","Valor"]
[null,"Calcário calcítico","-","kg/hectare"]
[null,"Calcário dolomítico","-","kg/hectare"]
[null,"Gesso agrícola","-","kg/hectare"]
[]
[null,"Adubação orgânica","Detalhes","Unidade","Valor"]
[null,"Composto orgânico","-","kg/hectare"]
[null,"Esterco","Bovino, equino, suino ou ovino","kg/hectare"]
[null,"Esterco","Avícola","kg/hectare"]
[null,"Outros","-","kg/hectare"]
[]
[null,"Adubação verde","Detalhes","Unidade","Valor"]
[null,"Leguminosa","-","kg/hectare"]
[null,"Gramínea","-","kg/hectare"]
[null,"Outros","-","kg/hectare"]
[]
[null,"Tabela 4. Rebanho."]
[null,"Animal","Sexo","Idade do rebanho","Número de animais","Manejo de dejetos","Data de entrada","Data de saída"]
[]
[]
[]
[]
[]
[]
[]
[]
[]
[]
[]
[]
[]
[]
[]
[]
[]
[]
[]
[]
[]
[null,"Tabela 5. Consumo de combustível das operações mecanizadas."]
[null,null,"Detalhes","Unidade","Valor"]
[null,"Tipo de combustível","-","-"]
[null,"Tipo de quantificação de consumo","-","-"]
[null,"Quantidade consumida","-","litro"]
[]
[null,"Tabela 5.1. Operações mecanizadas."]
[null,"Operação mecanizada","Detalhes","Unidade","Valor"]
[]
[null,"Pré-implantação"]
[null,"Construção da curva de nível","-","Nº de repetições"]
[null,"Aração","-","Nº de repetições"]
[null,"Gradagem pesada","-","Nº de repetições"]
[null,"Gradagem intermediária","-","Nº de repetições"]
[null,"Gradagem niveladora","-","Nº de repetições"]
[null,"Calagem","-","Nº de repetições"]
[]
[null,"Implantação"]
[null,"Distribuição e incorporação de sementes","-","Nº de repetições"]
[]
[null,"Manutenção"]
[null,"Adubação de cobertura","-","Nº de repetições"]
[null,"Distribuição de esterco","-","Nº de repetições"]
[null,"Aplicação de herbicida","-","Nº de repetições"]
[null,"Roçada mecânica","-","Nº de repetições"]
[]
[null,"Tabela 6. Consumo de combustível nas operações internas da propriedade."]
[null,null,"Detalhes","Unidade","Valor"]
[null,"Gasolina","-","litro"]
[null,"Etanol hidratado","-","litro"]
[]
[null,"Tabela 7. Consumo de combustível no transporte da produção."]
[null,null,"Detalhes","Unidade","Valor"]
[null,"Tipo de combustível","-","-"]
[null,"Quantidade consumida","-","litro"]
[]
[null,"Resumo do balanço de GEE"]
[]
[null,"Balanço de GEE (tonelada de CO2 eq.)",null,null,{"$f":"SUM('Síntese das emissões'!C329,'Síntese das emissões'!C330,'Síntese das emissões'!C335,'Síntese das emissões'!C339*-1,'Síntese das emissões'!C343)","v":0}]
[]
[null,"Balanço de GEE por área (tonelada de CO2 eq./hectare)",null,null,{"$f":"IF(ISERROR(balanco_pecuariapastagem/pastagem_areacultivada),0,balanco_pecuariapastagem/pastagem_areacultivada)","v":0}]
[]
[null,"Balanço de GEE por animal (tonelada de CO2 eq./animal)",null,null,{"$f":"IF(ISERROR(balanco_pecuariapastagem/SUM(pecuaria_rebanho)),0,balanco_pecuariapastagem/SUM(pecuaria_rebanho))","v":0}]
[]
[null,"Balanço de emissões por processos biogênicos (tonelada de CO2 eq.)",null,null,{"$f":"IF(ISERROR('Síntese das emissões'!C335-'Síntese das emissões'!C339),0,'Síntese das emissões'!C335-'Síntese das emissões'!C339)","v":0}]

{"sheet":"Soja","index":14,"n_rows":102,"n_cols":5,"rows_kept":102,"cut":false,"hidden":false,"merged":[[101,1,101,3],[13,1,13,4],[66,1,66,4],[93,1,93,4],[15,1,15,4],[22,1,22,4],[46,1,46,4],[52,1,52,4],[83,1,83,4],[88,1,88,4],[58,1,58,4],[67,1,67,4],[71,1,71,4],[99,1,99,3],[97,1,97,3],[95,1,95,3],[80,1,80,4],[64,1,64,4],[41,1,41,4],[36,1,36,4],[72,1,72,4],[74,1,74,4],[75,1,75,4],[79,1,79,4]]}
[]
[]
[]
[]
[]
[]
[]
[]
[]
[]
[]
[]
[]
[null,"Formulário de emissões - Soja"]
[]
[null,"Tabela 1. Informações sobre a propriedade agrícola."]
[null,null,"Detalhes","Unidade","Valor"]
[null,"Estado","-","-"]
[null,"Latitude","Converter unidade","graus"]
[null,"Longitude","Converter unidade","graus"]
[null,"Bioma","-","-"]
[]
[null,"Tabela 2. Sistema de cultivo."]
[null,null,"Detalhes","Unidade","Valor"]
[null,"Data de plantio","-","-"]
[null,"Data de colheita","-","-"]
[null,"Classe textural do solo","-","-"]
[null,"Teor de argila no solo","-","-"]
[null,"Uso anterior da terra","-","-"]
[null,"Sistema de cultivo atual","-","-"]
[null,"Tempo de adoção do sistema","-","-"]
[null,"Área de queima de resíduos da cultura","-","hectare"]
[null,"Área de manejo de solos orgânicos","-","hectare"]
[null,"Área cultivada","-","hectare"]
[null,"Produtividade média","-","tonelada/hectare"]
[]
[null,"Tabela 3. Adubação."]
[null,"Adubação sintética","Detalhes","Unidade","Valor"]
[null,"Adubação nitrogenada sintética","Exceto ureia","kg/hectare"]
[null,"Teor de nitrogênio no adubo sintético","-","%"]
[null,"Ureia","-","kg/hectare"]
[]
[null,"Correção e condicionamento de solo","Detalhes","Unidade","Valor"]
[null,"Calcário calcítico","-","kg/hectare"]
[null,"Calcário dolomítico","-","kg/hectare"]
[null,"Gesso agrícola","-","kg/hectare"]
[]
[null,"Adubação orgânica","Detalhes","Unidade","Valor"]
[null,"Composto orgânico","-","kg/hectare"]
[null,"Esterco","Bovino, equino, suino ou ovino","kg/hectare"]
[null,"Esterco","Avícola","kg/hectare"]
[null,"Outros","-","kg/hectare"]
[]
[null,"Adubação verde","Detalhes","Unidade","Valor"]
[null,"Leguminosa","-","kg/hectare"]
[null,"Gramínea","-","kg/hectare"]
[null,"Outros","-","kg/hectare"]
[]
[null,"Tabela 4. Consumo de combustível das operações mecanizadas."]
[null,null,"Detalhes","Unidade","Valor"]
[null,"Tipo de combustível","-","-"]
[null,"Tipo de quantificação de consumo","-","-"]
[null,"Quantidade consumida","-","litro"]
[]
[null,"Tabela 4.1. Operações mecanizadas."]
[null,"Operação mecanizada","Detalhes","Unidade","Valor"]
[]
[null,"Pré-implantação"]
[null,"Calagem","-","Nº de repetições"]
[null,"Aplicação de herbicida","-","Nº de repetições"]
[null,"Limpeza","-","Nº de repetições"]
[]
[null,"Implantação"]
[null,"Plantio com adubação","-","Nº de repetições"]
[]
[null,"Manutenção"]
[null,"Aplicação de fungicida","-","Nº de repetições"]
[null,"Aplicação de inseticida","-","Nº de repetições"]
[null,"Aplicação de herbicida","-","Nº de repetições"]
[]
[null,"Colheita"]
[null,"Colheita","-","Nº de repetições"]
[]
[null,"Tabela 5. Consumo de combustível nas operações internas da propriedade."]
[null,null,"Detalhes","Unidade","Valor"]
[null,"Gasolina","-","litro"]
[null,"Etanol hidratado","-","litro"]
[]
[null,"Tabela 6. Consumo de combustível no transporte da produção."]
[null,null,"Detalhes","Unidade","Valor"]
[null,"Tipo de combustível","-","-"]
[null,"Quantidade consumida","-","litro"]
[]
[null,"Resumo do balanço de GEE"]
[]
[null,"Balanço de GEE (tonelada de CO2 eq.)",null,null,{"$f":"SUM('Síntese das emissões'!C423,'Síntese das emissões'!C424,'Síntese das emissões'!C429,'Síntese das emissões'!C433*-1,'Síntese das emissões'!C437)","v":0}]
[]
[null,"Balanço de GEE por área (tonelada de CO2 eq./hectare)",null,null,{"$f":"IF(ISERROR(balanco_soja/soja_areacultivada),0,balanco_soja/soja_areacultivada)","v":0}]
[]
[null,"Balanço de GEE por tonelada produzida (tonelada de CO2 eq./tonelada)",null,null,{"$f":"IF(ISERROR(balanco_soja/(soja_produtividademedia*soja_areacultivada)),0,balanco_soja/(soja_produtividademedia*soja_areacultivada))","v":0}]
[]
[null,"Balanço de emissões por processos biogênicos (tonelada de CO2 eq.)",null,null,{"$f":"IF(ISERROR('Síntese das emissões'!C429-'Síntese das emissões'!C433),0,'Síntese das emissões'!C429-'Síntese das emissões'!C433)","v":0}]

{"sheet":"Trigo","index":15,"n_rows":97,"n_cols":5,"rows_kept":97,"cut":false,"hidden":false,"merged":[[96,1,96,3],[92,1,92,3],[94,1,94,3],[58,1,58,4],[88,1,88,4],[90,1,90,3],[78,1,78,4],[83,1,83,4],[66,1,66,4],[67,1,67,4],[69,1,69,4],[70,1,70,4],[74,1,74,4],[75,1,75,4],[64,1,64,4],[52,1,52,4],[13,1,13,4],[15,1,15,4],[22,1,22,4],[36,1,36,4],[46,1,46,4],[41,1,41,4]]}
[]
[]
[]
[]
[]
[]
[]
[]
[]
[]
[]
[]
[]
[null,"Formulário de emissões - Trigo"]
[]
[null,"Tabela 1. Informações sobre a propriedade agrícola."]
[null,null,"Detalhes","Unidade","Valor"]
[null,"Estado","-","-"]
[null,"Latitude","Converter unidade","graus"]
[null,"Longitude","Converter unidade","graus"]
[null,"Bioma","-","-"]
[]
[null,"Tabela 2. Sistema de cultivo."]
[null,null,"Detalhes","Unidade","Valor"]
[null,"Data de plantio","-","-"]
[null,"Data de colheita","-","-"]
[null,"Classe textural do solo","-","-"]
[null,"Teor de argila no solo","-","-"]
[null,"Uso anterior da terra","-","-"]
[null,"Sistema de cultivo atual","-","-"]
[null,"Tempo de adoção do sistema","-","-"]
[null,"Área de queima de resíduos da cultura","-","hectare"]
[null,"Área de manejo de solos orgânicos","-","hectare"]
[null,"Área cultivada","-","hectare"]
[null,"Produtividade média","-","tonelada/hectare"]
[]
[null,"Tabela 3. Adubação."]
[null,"Adubação sintética","Detalhes","Unidade","Valor"]
[null,"Adubação nitrogenada sintética","Exceto ureia","kg/hectare"]
[null,"Teor de nitrogênio no adubo sintético","-","%"]
[null,"Ureia","-","kg/hectare"]
[]
[null,"Correção e condicionamento de solo","Detalhes","Unidade","Valor"]
[null,"Calcário calcítico","-","kg/hectare"]
[null,"Calcário dolomítico","-","kg/hectare"]
[null,"Gesso agrícola","-","kg/hectare"]
[]
[null,"Adubação orgânica","Detalhes","Unidade","Valor"]
[null,"Composto orgânico","-","kg/hectare"]
[null,"Esterco","Bovino, equino, suino ou ovino","kg/hectare"]
[null,"Esterco","Avícola","kg/hectare"]
[null,"Outros","-","kg/hectare"]
[]
[null,"Adubação verde","Detalhes","Unidade","Valor"]
[null,"Leguminosa","-","kg/hectare"]
[null,"Gramínea","-","kg/hectare"]
[null,"Outros","-","kg/hectare"]
[]
[null,"Tabela 4. Consumo de combustível das operações mecanizadas."]
[null,null,"Detalhes","Unidade","Valor"]
[null,"Tipo de combustível","-","-"]
[null,"Tipo de quantificação de consumo","-","-"]
[null,"Quantidade consumida","-","litro"]
[]
[null,"Tabela 4.1. Operações mecanizadas."]
[null,"Operação mecanizada","Detalhes","Unidade","Valor"]
[]
[null,"Implantação"]
[null,"Plantio","-","Nº de repetições"]
[]
[null,"Manutenção"]
[null,"Aplicação de fungicida","-","Nº de repetições"]
[null,"Aplicação de inseticida","-","Nº de repetições"]
[null,"Aplicação de herbicida","-","Nº de repetições"]
[]
[null,"Colheita"]
[null,"Colheita","-","Nº de repetições"]
[]
[null,"Tabela 5. Consumo de combustível nas operações internas da propriedade."]
[null,null,"Detalhes","Unidade","Valor"]
[null,"Gasolina","-","litro"]
[null,"Etanol hidratado","-","litro"]
[]
[null,"Tabela 6. Consumo de combustível no transporte da produção."]
[null,null,"Detalhes","Unidade","Valor"]
[null,"Tipo de combustível","-","-"]
[null,"Quantidade consumida","-","litro"]
[]
[null,"Resumo do balanço de GEE"]
[]
[null,"Balanço de GEE (tonelada de CO2 eq.)",null,null,{"$f":"SUM('Síntese das emissões'!C480,'Síntese das emissões'!C481,'Síntese das emissões'!C486,'Síntese das emissões'!C490*-1,'Síntese das emissões'!C494)","v":0}]
[]
[null,"Balanço de GEE por área (tonelada de CO2 eq./hectare)",null,null,{"$f":"IF(ISERROR(balanco_trigo/trigo_areacultivada),0,balanco_trigo/trigo_areacultivada)","v":0}]
[]
[null,"Balanço de GEE por tonelada produzida (tonelada de CO2 eq./tonelada)",null,null,{"$f":"IF(ISERROR(balanco_trigo/(trigo_areacultivada*trigo_produtividademedia)),0,balanco_trigo/(trigo_areacultivada*trigo_produtividademedia))","v":0}]
[]
[null,"Balanço de emissões por processos biogênicos (tonelada de CO2 eq.)",null,null,{"$f":"IF(ISERROR('Síntese das emissões'!C486-'Síntese das emissões'!C490),0,'Síntese das emissões'!C486-'Síntese das emissões'!C490)","v":0}]

{"sheet":"Compra de energia elétrica","index":16,"n_rows":27,"n_cols":5,"rows_kept":27,"cut":false,"hidden":false,"merged":[[24,1,24,4],[26,1,26,3],[20,1,20,4],[13,1,13,20],[17,3,17,4],[18,3,18,4],[18,1,18,2],[17,1,17,2],[16,1,16,4],[15,1,15,4]]}
[]
[]
[]
[]
[]
[]
[]
[]
[]
[]
[]
[]
[]
[null,"Consumo de energia elétrica"]
[]
[null,"Tabela 1. Período de consumo de energia elétrica para o inventário"]
[null,"Período"]
[null,"Período inicial",null,"Período final"]
[null,"-",null,"-"]
[]
[null,"Tabela 2. Consumo total no período"]
[null,null,"Detalhes","Unidade","Valor"]
[null,"Consumo","Período total","MWh"]
[]
[null,"Resumo do balanço de GEE"]
[]
[null,"Balanço de GEE (tonelada de CO2 eq.)",null,null,{"$f":"'Síntese das emissões'!I21","v":0}]